Workbook

Sheet Main
B10: 2018-04-24
B12: Sheet No. | C12: Template Name | D12: Summary
B13: 1 | C13: Future Intra | D13: For Intraday trading in F&O segment
B14: 2 | C14: Cash Intra | D14: For Intraday trading in cash market segment
B15: 3 | C15: Mid-cap Intra | D15: For Intraday trading in Mid-cap stocks
B16: 4 | C16: Bulk Deals | D16: Reveals Bulk Deals carried on NSE & BSE
B17: 5 | C17: Call Tracker

Sheet Future Intra
M5: Back to Main Page
A6: FOR INTRA DAY TRADING | L6: =Main!B10 -> 2018-04-24
A9: Sr.no | B9: Sector | C9: Scrip | D9: CLOSE RATE | E9: Pivot Point | F9: Supports | I9: Resistances
B10: Sector | D10: Point | E10: Point | F10: S1 | G10: S2 | H10: S3 | I10: R1 | J10: R2 | K10: R3 | L10: HIGH | M10: LOW | N10: OI | O10: % Change in OI
A11: 1 | B11: Index | C11: BANKNIFTY | D11: 24947.20 | E11: 24969.02 | F11: 24789.88 | G11: 24632.57 | H11: 24453.43 | I11: 25126.33 | J11: 25305.47 | K11: 25462.78 | L11: 25148.15 | M11: 24811.7 | N11: 2127520 | O11: 4.81%
A12: 2 | B12: Index | C12: NIFTY | D12: 10585.45 | E12: 10586.62 | F12: 10550.13 | G12: 10514.82 | H12: 10478.33 | I12: 10621.93 | J12: 10658.42 | K12: 10693.73 | L12: 10623.1 | M12: 10551.3 | N12: 30065025 | O12: 1.61%
A13: 3 | B13: Index | C13: NIFTYCPSE | D13: 2827.05 | E13: 942.35 | F13: 1884.70 | G13: 942.35 | H13: 1884.70 | I13: 1884.70 | J13: 942.35 | K13: 1884.70 | L13: 0 | M13: 0 | N13: 0 | O13: 0.00%
A14: 4 | B14: Index | C14: NIFTYINFRA | D14: 3716.60 | E14: 1238.87 | F14: 2477.73 | G14: 1238.87 | H14: 2477.73 | I14: 2477.73 | J14: 1238.87 | K14: 2477.73 | L14: 0 | M14: 0 | N14: 0 | O14: 0.00%
A15: 5 | B15: Index | C15: NIFTYIT | D15: 13997.00 | E15: 14025.67 | F15: 13801.33 | G15: 13605.67 | H15: 13381.33 | I15: 14221.33 | J15: 14445.67 | K15: 14641.33 | L15: 14250 | M15: 13830 | N15: 46500 | O15: 1.20%
A16: 6 | B16: Index | C16: NIFTYMID50 | D16: 5429.90 | E16: 1809.97 | F16: 3619.93 | G16: 1809.97 | H16: 3619.93 | I16: 3619.93 | J16: 1809.97 | K16: 3619.93 | L16: 0 | M16: 0 | N16: 591600 | O16: 0.00%
A17: 7 | B17: Index | C17: NIFTYPSE | D17: 4380.60 | E17: 1460.20 | F17: 2920.40 | G17: 1460.20 | H17: 2920.40 | I17: 2920.40 | J17: 1460.20 | K17: 2920.40 | L17: 0 | M17: 0 | N17: 0 | O17: 0.00%
A18: 8 | B18: Cement | C18: ACC | D18: 1566.80 | E18: 1566.68 | F18: 1554.17 | G18: 1541.53 | H18: 1529.02 | I18: 1579.32 | J18: 1591.83 | K18: 1604.47 | L18: 1579.2 | M18: 1554.05 | N18: 1691200 | O18: 1.20%
A19: 9 | B19: Others | C19: ADANIENT | D19: 139.85 | E19: 140.00 | F19: 137.50 | G19: 135.15 | H19: 132.65 | I19: 142.35 | J19: 144.85 | K19: 147.20 | L19: 142.5 | M19: 137.65 | N19: 14932000 | O19: 0.65%
A20: 10 | B20: Others | C20: ADANIPORTS | D20: 386.70 | E20: 384.20 | F20: 378.90 | G20: 371.10 | H20: 365.80 | I20: 392.00 | J20: 397.30 | K20: 405.10 | L20: 389.5 | M20: 376.4 | N20: 15535000 | O20: 3.02%
A21: 11 | B21: Power | C21: ADANIPOWER | D21: 25.85 | E21: 25.88 | F21: 25.62 | G21: 25.38 | H21: 25.12 | I21: 26.12 | J21: 26.38 | K21: 26.62 | L21: 26.15 | M21: 25.65 | N21: 106680000 | O21: 7.09%
A22: 12 | B22: Pharma | C22: AJANTPHARM | D22: 1384.65 | E22: 1372.25 | F22: 1350.55 | G22: 1316.45 | H22: 1294.75 | I22: 1406.35 | J22: 1428.05 | K22: 1462.15 | L22: 1393.95 | M22: 1338.15 | N22: 807500 | O22: -1.22%
A23: 13 | B23: Banking | C23: ALBK | D23: 49.30 | E23: 48.78 | F23: 47.72 | G23: 46.13 | H23: 45.07 | I23: 50.37 | J23: 51.43 | K23: 53.02 | L23: 49.85 | M23: 47.2 | N23: 16670000 | O23: -3.59%
A24: 14 | B24: Automobile | C24: AMARAJABAT | D24: 861.00 | E24: 858.03 | F24: 847.82 | G24: 834.63 | H24: 824.42 | I24: 871.22 | J24: 881.43 | K24: 894.62 | L24: 868.25 | M24: 844.85 | N24: 1279600 | O24: -3.59%
A25: 15 | B25: Cement | C25: AMBUJACEM | D25: 247.20 | E25: 247.27 | F25: 245.78 | G25: 244.37 | H25: 242.88 | I25: 248.68 | J25: 250.17 | K25: 251.58 | L25: 248.75 | M25: 245.85 | N25: 10992500 | O25: 0.99%
A26: 16 | B26: Banking | C26: ANDHRABANK | D26: 39.50 | E26: 39.05 | F26: 38.35 | G26: 37.20 | H26: 36.50 | I26: 40.20 | J26: 40.90 | K26: 42.05 | L26: 39.75 | M26: 37.9 | N26: 24750000 | O26: -4.03%
A27: 17 | B27: Others | C27: APOLLOHOSP | D27: 1132.00 | E27: 1134.40 | F27: 1120.85 | G27: 1109.70 | H27: 1096.15 | I27: 1145.55 | J27: 1159.10 | K27: 1170.25 | L27: 1147.95 | M27: 1123.25 | N27: 625500 | O27: -4.14%
A28: 18 | B28: Automobile | C28: APOLLOTYRE | D28: 289.65 | E28: 288.52 | F28: 285.83 | G28: 282.02 | H28: 279.33 | I28: 292.33 | J28: 295.02 | K28: 298.83 | L28: 291.2 | M28: 284.7 | N28: 11865000 | O28: -1.45%
A29: 19 | B29: Textile | C29: ARVIND | D29: 426.45 | E29: 425.30 | F29: 421.60 | G29: 416.75 | H29: 413.05 | I29: 430.15 | J29: 433.85 | K29: 438.70 | L29: 429 | M29: 420.45 | N29: 5392000 | O29: 0.19%
A30: 20 | B30: Automobile | C30: ASHOKLEY | D30: 159.30 | E30: 158.22 | F30: 156.58 | G30: 153.87 | H30: 152.23 | I30: 160.93 | J30: 162.57 | K30: 165.28 | L30: 159.85 | M30: 155.5 | N30: 64309000 | O30: -3.30%
A31: 21 | B31: FMCG | C31: ASIANPAINT | D31: 1175.20 | E31: 1167.43 | F31: 1156.87 | G31: 1138.53 | H31: 1127.97 | I31: 1185.77 | J31: 1196.33 | K31: 1214.67 | L31: 1178 | M31: 1149.1 | N31: 5260200 | O31: 1.91%
A32: 22 | B32: Pharma | C32: AUROPHARMA | D32: 643.15 | E32: 634.65 | F32: 622.90 | G32: 602.65 | H32: 590.90 | I32: 654.90 | J32: 666.65 | K32: 686.90 | L32: 646.4 | M32: 614.4 | N32: 22490400 | O32: 1.16%
A33: 23 | B33: Banking | C33: AXISBANK | D33: 506.95 | E33: 506.30 | F33: 501.15 | G33: 495.35 | H33: 490.20 | I33: 512.10 | J33: 517.25 | K33: 523.05 | L33: 511.45 | M33: 500.5 | N33: 47650800 | O33: 2.41%
A34: 24 | B34: Automobile | C34: BAJAJ-AUTO | D34: 2852.00 | E34: 2851.22 | F34: 2822.43 | G34: 2792.87 | H34: 2764.08 | I34: 2880.78 | J34: 2909.57 | K34: 2939.13 | L34: 2880 | M34: 2821.65 | N34: 2443000 | O34: 1.94%
A35: 25 | B35: Others | C35: BAJAJFINSV | D35: 5301.05 | E35: 5307.63 | F35: 5258.47 | G35: 5215.88 | H35: 5166.72 | I35: 5350.22 | J35: 5399.38 | K35: 5441.97 | L35: 5356.8 | M35: 5265.05 | N35: 744000 | O35: -0.47%
A36: 26 | B36: Finance | C36: BAJFINANCE | D36: 1899.55 | E36: 1894.88 | F36: 1868.77 | G36: 1837.98 | H36: 1811.87 | I36: 1925.67 | J36: 1951.78 | K36: 1982.57 | L36: 1921 | M36: 1864.1 | N36: 4937500 | O36: 2.04%
A37: 27 | B37: Others | C37: BALKRISIND | D37: 1285.45 | E37: 1291.85 | F37: 1275.75 | G37: 1266.05 | H37: 1249.95 | I37: 1301.55 | J37: 1317.65 | K37: 1327.35 | L37: 1307.95 | M37: 1282.15 | N37: 973600 | O37: -0.16%
A38: 28 | B38: Others | C38: BALRAMCHIN | D38: 68.95 | E38: 68.77 | F38: 67.53 | G38: 66.12 | H38: 64.88 | I38: 70.18 | J38: 71.42 | K38: 72.83 | L38: 70 | M38: 67.35 | N38: 18445000 | O38: -5.28%
A39: 29 | B39: Banking | C39: BANKBARODA | D39: 144.25 | E39: 144.02 | F39: 141.93 | G39: 139.62 | H39: 137.53 | I39: 146.33 | J39: 148.42 | K39: 150.73 | L39: 146.1 | M39: 141.7 | N39: 52076000 | O39: 1.24%
A40: 30 | B40: Banking | C40: BANKINDIA | D40: 102.60 | E40: 102.28 | F40: 100.32 | G40: 98.03 | H40: 96.07 | I40: 104.57 | J40: 106.53 | K40: 108.82 | L40: 104.25 | M40: 100 | N40: 27666000 | O40: -2.31%
A41: 31 | B41: FMCG | C41: BATAINDIA | D41: 786.45 | E41: 791.40 | F41: 778.35 | G41: 770.25 | H41: 757.20 | I41: 799.50 | J41: 812.55 | K41: 820.65 | L41: 804.45 | M41: 783.3 | N41: 2901800 | O41: 1.07%
A42: 32 | B42: Capital_Goods | C42: BEL | D42: 137.55 | E42: 136.25 | F42: 133.75 | G42: 129.95 | H42: 127.45 | I42: 140.05 | J42: 142.55 | K42: 146.35 | L42: 138.75 | M42: 132.45 | N42: 31788900 | O42: -5.01%
A43: 33 | B43: Infrastructure | C43: BEML | D43: 1068.25 | E43: 1074.77 | F43: 1057.48 | G43: 1046.72 | H43: 1029.43 | I43: 1085.53 | J43: 1102.82 | K43: 1113.58 | L43: 1092.05 | M43: 1064 | N43: 2340600 | O43: -1.58%
A44: 34 | B44: Others | C44: BERGEPAINT | D44: 267.75 | E44: 267.05 | F44: 265.10 | G44: 262.45 | H44: 260.50 | I44: 269.70 | J44: 271.65 | K44: 274.30 | L44: 269 | M44: 264.4 | N44: 2125200 | O44: -4.64%
A45: 35 | B45: Finance | C45: BHARATFIN | D45: 1160.05 | E45: 1147.05 | F45: 1129.50 | G45: 1098.95 | H45: 1081.40 | I45: 1177.60 | J45: 1195.15 | K45: 1225.70 | L45: 1164.6 | M45: 1116.5 | N45: 5224000 | O45: 5.39%
A46: 36 | B46: Automobile | C46: BHARATFORG | D46: 761.55 | E46: 761.30 | F46: 756.80 | G46: 752.05 | H46: 747.55 | I46: 766.05 | J46: 770.55 | K46: 775.30 | L46: 765.8 | M46: 756.55 | N46: 9242400 | O46: 0.68%
A47: 37 | B47: Telecom | C47: BHARTIARTL | D47: 403.05 | E47: 402.23 | F47: 397.82 | G47: 392.58 | H47: 388.17 | I47: 407.47 | J47: 411.88 | K47: 417.12 | L47: 406.65 | M47: 397 | N47: 61324100 | O47: 1.16%
A48: 38 | B48: Capital_Goods | C48: BHEL | D48: 89.35 | E48: 89.55 | F48: 88.80 | G48: 88.25 | H48: 87.50 | I48: 90.10 | J48: 90.85 | K48: 91.40 | L48: 90.3 | M48: 89 | N48: 46402500 | O48: 2.48%
A49: 39 | B49: Pharma | C49: BIOCON | D49: 637.30 | E49: 635.47 | F49: 629.63 | G49: 621.97 | H49: 616.13 | I49: 643.13 | J49: 648.97 | K49: 656.63 | L49: 641.3 | M49: 627.8 | N49: 9853200 | O49: 4.89%
A50: 40 | B50: Automobile | C50: BOSCHLTD | D50: 19702.30 | E50: 19665.82 | F50: 19486.48 | G50: 19270.67 | H50: 19091.33 | I50: 19881.63 | J50: 20060.97 | K50: 20276.78 | L50: 19845.15 | M50: 19450 | N50: 189300 | O50: -2.86%
A51: 41 | B51: Oil_Gas | C51: BPCL | D51: 381.80 | E51: 380.28 | F51: 375.22 | G51: 368.63 | H51: 363.57 | I51: 386.87 | J51: 391.93 | K51: 398.52 | L51: 385.35 | M51: 373.7 | N51: 20674800 | O51: -4.28%
A52: 42 | B52: FMCG | C52: BRITANNIA | D52: 5327.35 | E52: 5340.05 | F52: 5305.30 | G52: 5283.25 | H52: 5248.50 | I52: 5362.10 | J52: 5396.85 | K52: 5418.90 | L52: 5374.8 | M52: 5318 | N52: 853800 | O52: 1.86%
A53: 43 | B53: Pharma | C53: CADILAHC | D53: 399.80 | E53: 396.22 | F53: 389.63 | G53: 379.47 | H53: 372.88 | I53: 406.38 | J53: 412.97 | K53: 423.13 | L53: 402.8 | M53: 386.05 | N53: 7017600 | O53: 12.38%
A54: 44 | B54: Banking | C54: CANBK | D54: 262.70 | E54: 259.80 | F54: 254.30 | G54: 245.90 | H54: 240.40 | I54: 268.20 | J54: 273.70 | K54: 282.10 | L54: 265.3 | M54: 251.4 | N54: 12003200 | O54: -3.82%
A55: 45 | B55: Others | C55: CANFINHOME | D55: 436.15 | E55: 435.90 | F55: 432.05 | G55: 427.95 | H55: 424.10 | I55: 440.00 | J55: 443.85 | K55: 447.95 | L55: 439.75 | M55: 431.8 | N55: 7382500 | O55: 0.51%
A56: 46 | B56: Finance | C56: CAPF | D56: 639.05 | E56: 640.83 | F56: 635.52 | G56: 631.98 | H56: 626.67 | I56: 644.37 | J56: 649.68 | K56: 653.22 | L56: 646.15 | M56: 637.3 | N56: 7201600 | O56: -7.03%
A57: 47 | B57: Oil_Gas | C57: CASTROLIND | D57: 198.65 | E57: 199.42 | F57: 197.48 | G57: 196.32 | H57: 194.38 | I57: 200.58 | J57: 202.52 | K57: 203.68 | L57: 201.35 | M57: 198.25 | N57: 12686800 | O57: 6.61%
A58: 48 | B58: Automobile | C58: CEATLTD | D58: 1561.35 | E58: 1563.10 | F58: 1547.70 | G58: 1534.05 | H58: 1518.65 | I58: 1576.75 | J58: 1592.15 | K58: 1605.80 | L58: 1578.5 | M58: 1549.45 | N58: 1616300 | O58: 5.41%
A59: 49 | B59: Textile | C59: CENTURYTEX | D59: 1242.05 | E59: 1235.42 | F59: 1223.13 | G59: 1204.22 | H59: 1191.93 | I59: 1254.33 | J59: 1266.62 | K59: 1285.53 | L59: 1247.7 | M59: 1216.5 | N59: 6226550 | O59: 1.17%
A60: 50 | B60: Power | C60: CESC | D60: 1037.05 | E60: 1036.82 | F60: 1023.83 | G60: 1010.62 | H60: 997.63 | I60: 1050.03 | J60: 1063.02 | K60: 1076.23 | L60: 1049.8 | M60: 1023.6 | N60: 6185850 | O60: 6.29%
A61: 51 | B61: Power | C61: CGPOWER | D61: 82.80 | E61: 83.12 | F61: 81.98 | G61: 81.17 | H61: 80.03 | I61: 83.93 | J61: 85.07 | K61: 85.88 | L61: 84.25 | M61: 82.3 | N61: 22392000 | O61: 5.07%
A62: 52 | B62: Others | C62: CHENNPETRO | D62: 331.75 | E62: 331.28 | F62: 326.62 | G62: 321.48 | H62: 316.82 | I62: 336.42 | J62: 341.08 | K62: 346.22 | L62: 335.95 | M62: 326.15 | N62: 3052500 | O62: 3.19%
A63: 53 | B63: Others | C63: CHOLAFIN | D63: 1670.95 | E63: 1646.75 | F63: 1577.65 | G63: 1484.35 | H63: 1415.25 | I63: 1740.05 | J63: 1809.15 | K63: 1902.45 | L63: 1715.85 | M63: 1553.45 | N63: 802000 | O63: 49.49%
A64: 54 | B64: Pharma | C64: CIPLA | D64: 600.15 | E64: 594.17 | F64: 586.63 | G64: 573.12 | H64: 565.58 | I64: 607.68 | J64: 615.22 | K64: 628.73 | L64: 601.7 | M64: 580.65 | N64: 8263000 | O64: -0.67%
A65: 55 | B65: Others | C65: COALINDIA | D65: 289.70 | E65: 289.93 | F65: 288.17 | G65: 286.63 | H65: 284.87 | I65: 291.47 | J65: 293.23 | K65: 294.77 | L65: 291.7 | M65: 288.4 | N65: 21304800 | O65: -1.53%
A66: 56 | B66: FMCG | C66: COLPAL | D66: 1105.95 | E66: 1106.47 | F66: 1101.73 | G66: 1097.52 | H66: 1092.78 | I66: 1110.68 | J66: 1115.42 | K66: 1119.63 | L66: 1111.2 | M66: 1102.25 | N66: 1554700 | O66: -1.81%
A67: 57 | B67: Others | C67: CONCOR | D67: 1334.25 | E67: 1331.42 | F67: 1307.83 | G67: 1281.42 | H67: 1257.83 | I67: 1357.83 | J67: 1381.42 | K67: 1407.83 | L67: 1355 | M67: 1305 | N67: 1105000 | O67: 4.31%
A68: 58 | B68: Capital_Goods | C68: CUMMINSIND | D68: 732.85 | E68: 737.57 | F68: 723.93 | G68: 715.02 | H68: 701.38 | I68: 746.48 | J68: 760.12 | K68: 769.03 | L68: 751.2 | M68: 728.65 | N68: 1925400 | O68: -14.40%
A69: 59 | B69: FMCG | C69: DABUR | D69: 358.55 | E69: 358.87 | F69: 353.93 | G69: 349.32 | H69: 344.38 | I69: 363.48 | J69: 368.42 | K69: 373.03 | L69: 363.8 | M69: 354.25 | N69: 12152500 | O69: 2.64%
A70: 60 | B70: Cement | C70: DALMIABHA | D70: 3010.80 | E70: 2989.93 | F70: 2938.87 | G70: 2866.93 | H70: 2815.87 | I70: 3061.87 | J70: 3112.93 | K70: 3184.87 | L70: 3041 | M70: 2918 | N70: 730500 | O70: 8.95%
A71: 61 | B71: Banking | C71: DCBBANK | D71: 196.55 | E71: 196.67 | F71: 192.83 | G71: 189.12 | H71: 185.28 | I71: 200.38 | J71: 204.22 | K71: 207.93 | L71: 200.5 | M71: 192.95 | N71: 7551000 | O71: 0.48%
A72: 62 | B72: Finance | C72: DHFL | D72: 579.25 | E72: 584.75 | F72: 569.70 | G72: 560.15 | H72: 545.10 | I72: 594.30 | J72: 609.35 | K72: 618.90 | L72: 599.8 | M72: 575.2 | N72: 28621500 | O72: -3.54%
A73: 63 | B73: Media | C73: DISHTV | D73: 77.60 | E73: 78.07 | F73: 76.33 | G73: 75.07 | H73: 73.33 | I73: 79.33 | J73: 81.07 | K73: 82.33 | L73: 79.8 | M73: 76.8 | N73: 49224000 | O73: 7.62%
A74: 64 | B74: Pharma | C74: DIVISLAB | D74: 1180.55 | E74: 1185.50 | F74: 1172.00 | G74: 1163.45 | H74: 1149.95 | I74: 1194.05 | J74: 1207.55 | K74: 1216.10 | L74: 1199 | M74: 1176.95 | N74: 2411200 | O74: 0.03%
A75: 65 | B75: Realty | C75: DLF | D75: 212.10 | E75: 212.13 | F75: 209.32 | G75: 206.53 | H75: 203.72 | I75: 214.92 | J75: 217.73 | K75: 220.52 | L75: 214.95 | M75: 209.35 | N75: 49115000 | O75: -3.50%
A76: 66 | B76: Pharma | C76: DRREDDY | D76: 2137.10 | E76: 2125.47 | F76: 2104.43 | G76: 2071.77 | H76: 2050.73 | I76: 2158.13 | J76: 2179.17 | K76: 2211.83 | L76: 2146.5 | M76: 2092.8 | N76: 4664250 | O76: 2.29%
A77: 67 | B77: Automobile | C77: EICHERMOT | D77: 31066.85 | E77: 31154.12 | F77: 30928.23 | G77: 30789.62 | H77: 30563.73 | I77: 31292.73 | J77: 31518.62 | K77: 31657.23 | L77: 31380 | M77: 31015.5 | N77: 223375 | O77: -1.59%
A78: 68 | B78: Infrastructure | C78: ENGINERSIN | D78: 153.90 | E78: 153.10 | F78: 151.85 | G78: 149.80 | H78: 148.55 | I78: 155.15 | J78: 156.40 | K78: 158.45 | L78: 154.35 | M78: 151.05 | N78: 10451000 | O78: 3.79%
A79: 69 | B79: Finance | C79: EQUITAS | D79: 149.55 | E79: 150.02 | F79: 148.53 | G79: 147.52 | H79: 146.03 | I79: 151.03 | J79: 152.52 | K79: 153.53 | L79: 151.5 | M79: 149 | N79: 19936000 | O79: 0.60%
A80: 70 | B80: Automobile | C80: ESCORTS | D80: 960.40 | E80: 963.63 | F80: 952.82 | G80: 945.23 | H80: 934.42 | I80: 971.22 | J80: 982.03 | K80: 989.62 | L80: 974.45 | M80: 956.05 | N80: 3773000 | O80: 1.93%
A81: 71 | B81: Automobile | C81: EXIDEIND | D81: 244.60 | E81: 244.53 | F81: 242.47 | G81: 240.33 | H81: 238.27 | I81: 246.67 | J81: 248.73 | K81: 250.87 | L81: 246.6 | M81: 242.4 | N81: 10056000 | O81: 4.27%
A82: 72 | B82: Banking | C82: FEDERALBNK | D82: 97.35 | E82: 97.25 | F82: 96.15 | G82: 94.95 | H82: 93.85 | I82: 98.45 | J82: 99.55 | K82: 100.75 | L82: 98.35 | M82: 96.05 | N82: 66770000 | O82: 4.98%
A83: 73 | B83: Oil_Gas | C83: GAIL | D83: 333.40 | E83: 332.43 | F83: 328.92 | G83: 324.43 | H83: 320.92 | I83: 336.92 | J83: 340.43 | K83: 344.92 | L83: 335.95 | M83: 327.95 | N83: 13572363 | O83: 0.20%
A84: 74 | B84: Pharma | C84: GLENMARK | D84: 581.40 | E84: 578.75 | F84: 572.60 | G84: 563.80 | H84: 557.65 | I84: 587.55 | J84: 593.70 | K84: 602.50 | L84: 584.9 | M84: 569.95 | N84: 5608800 | O84: -2.93%
A85: 75 | B85: Infrastructure | C85: GMRINFRA | D85: 19.70 | E85: 19.72 | F85: 19.33 | G85: 18.97 | H85: 18.58 | I85: 20.08 | J85: 20.47 | K85: 20.83 | L85: 20.1 | M85: 19.35 | N85: 316350000 | O85: 6.08%
A86: 76 | B86: Others | C86: GODFRYPHLP | D86: 895.15 | E86: 894.03 | F86: 888.12 | G86: 881.08 | H86: 875.17 | I86: 901.07 | J86: 906.98 | K86: 914.02 | L86: 899.95 | M86: 887 | N86: 669500 | O86: -1.03%
A87: 77 | B87: FMCG | C87: GODREJCP | D87: 1114.95 | E87: 1122.02 | F87: 1102.23 | G87: 1089.52 | H87: 1069.73 | I87: 1134.73 | J87: 1154.52 | K87: 1167.23 | L87: 1141.8 | M87: 1109.3 | N87: 2885600 | O87: -2.57%
A88: 78 | B88: FMCG | C88: GODREJIND | D88: 598.45 | E88: 599.27 | F88: 594.73 | G88: 591.02 | H88: 586.48 | I88: 602.98 | J88: 607.52 | K88: 611.23 | L88: 603.8 | M88: 595.55 | N88: 2799000 | O88: 1.86%
A89: 79 | B89: Pharma | C89: GRANULES | D89: 110.65 | E89: 109.62 | F89: 107.83 | G89: 105.02 | H89: 103.23 | I89: 112.43 | J89: 114.22 | K89: 117.03 | L89: 111.4 | M89: 106.8 | N89: 15065000 | O89: -1.95%
A90: 80 | B90: Cement | C90: GRASIM | D90: 1088.35 | E90: 1093.45 | F90: 1079.90 | G90: 1071.45 | H90: 1057.90 | I90: 1101.90 | J90: 1115.45 | K90: 1123.90 | L90: 1107 | M90: 1085 | N90: 6360750 | O90: 2.51%
A91: 81 | B91: Others | C91: GSFC | D91: 130.30 | E91: 131.22 | F91: 128.68 | G91: 127.07 | H91: 124.53 | I91: 132.83 | J91: 135.37 | K91: 136.98 | L91: 133.75 | M91: 129.6 | N91: 19539000 | O91: -1.32%
A92: 82 | B92: Others | C92: HAVELLS | D92: 547.65 | E92: 548.62 | F92: 544.83 | G92: 542.02 | H92: 538.23 | I92: 551.43 | J92: 555.22 | K92: 558.03 | L92: 552.4 | M92: 545.8 | N92: 6804000 | O92: 6.41%
A93: 83 | B93: Others | C93: HCC | D93: 24.55 | E93: 24.50 | F93: 24.10 | G93: 23.65 | H93: 23.25 | I93: 24.95 | J93: 25.35 | K93: 25.80 | L93: 24.9 | M93: 24.05 | N93: 45060000 | O93: -6.77%
A94: 84 | B94: Technology | C94: HCLTECH | D94: 1083.20 | E94: 1080.35 | F94: 1056.30 | G94: 1029.40 | H94: 1005.35 | I94: 1107.25 | J94: 1131.30 | K94: 1158.20 | L94: 1104.4 | M94: 1053.45 | N94: 11109700 | O94: -0.90%
A95: 85 | B95: Finance | C95: HDFC | D95: 1833.65 | E95: 1837.43 | F95: 1827.32 | G95: 1820.98 | H95: 1810.87 | I95: 1843.77 | J95: 1853.88 | K95: 1860.22 | L95: 1847.55 | M95: 1831.1 | N95: 19964500 | O95: 2.35%
A96: 86 | B96: Banking | C96: HDFCBANK | D96: 1932.55 | E96: 1928.22 | F96: 1879.33 | G96: 1826.12 | H96: 1777.23 | I96: 1981.43 | J96: 2030.32 | K96: 2083.53 | L96: 1977.1 | M96: 1875 | N96: 21034000 | O96: 2.56%
A97: 87 | B97: Realty | C97: HDIL | D97: 39.40 | E97: 39.68 | F97: 38.82 | G97: 38.23 | H97: 37.37 | I97: 40.27 | J97: 41.13 | K97: 41.72 | L97: 40.55 | M97: 39.1 | N97: 23427000 | O97: -7.92%
A98: 88 | B98: Automobile | C98: HEROMOTOCO | D98: 3720.60 | E98: 3721.62 | F98: 3697.23 | G98: 3673.87 | H98: 3649.48 | I98: 3744.98 | J98: 3769.37 | K98: 3792.73 | L98: 3746 | M98: 3698.25 | N98: 1582400 | O98: -0.19%
A99: 89 | B99: Technology | C99: HEXAWARE | D99: 434.35 | E99: 435.92 | F99: 429.13 | G99: 423.92 | H99: 417.13 | I99: 441.13 | J99: 447.92 | K99: 453.13 | L99: 442.7 | M99: 430.7 | N99: 5958000 | O99: 9.66%
A100: 90 | B100: Metals | C100: HINDALCO | D100: 256.05 | E100: 258.60 | F100: 252.35 | G100: 248.65 | H100: 242.40 | I100: 262.30 | J100: 268.55 | K100: 272.25 | L100: 264.85 | M100: 254.9 | N100: 54582500 | O100: 2.41%
A101: 91 | B101: Oil_Gas | C101: HINDPETRO | D101: 304.55 | E101: 304.97 | F101: 301.48 | G101: 298.42 | H101: 294.93 | I101: 308.03 | J101: 311.52 | K101: 314.58 | L101: 308.45 | M101: 301.9 | N101: 32555250 | O101: -1.26%
A102: 92 | B102: FMCG | C102: HINDUNILVR | D102: 1453.85 | E102: 1458.38 | F102: 1446.27 | G102: 1438.68 | H102: 1426.57 | I102: 1465.97 | J102: 1478.08 | K102: 1485.67 | L102: 1470.5 | M102: 1450.8 | N102: 10120200 | O102: 0.43%
A103: 93 | B103: Metals | C103: HINDZINC | D103: 324.15 | E103: 324.28 | F103: 319.92 | G103: 315.68 | H103: 311.32 | I103: 328.52 | J103: 332.88 | K103: 337.12 | L103: 328.65 | M103: 320.05 | N103: 11795200 | O103: 0.96%
A104: 94 | B104: Finance | C104: IBULHSGFIN | D104: 1323.00 | E104: 1340.28 | F104: 1296.72 | G104: 1270.43 | H104: 1226.87 | I104: 1366.57 | J104: 1410.13 | K104: 1436.42 | L104: 1383.85 | M104: 1314 | N104: 11996400 | O104: 2.36%
A105: 95 | B105: Banking | C105: ICICIBANK | D105: 279.70 | E105: 279.22 | F105: 276.08 | G105: 272.47 | H105: 269.33 | I105: 282.83 | J105: 285.97 | K105: 289.58 | L105: 282.35 | M105: 275.6 | N105: 84045500 | O105: 5.06%
A106: 96 | B106: Others | C106: ICICIPRULI | D106: 389.30 | E106: 385.03 | F106: 378.97 | G106: 368.63 | H106: 362.57 | I106: 395.37 | J106: 401.43 | K106: 411.77 | L106: 391.1 | M106: 374.7 | N106: 6216600 | O106: 7.68%
A107: 97 | B107: Banking | C107: IDBI | D107: 69.45 | E107: 68.73 | F107: 67.37 | G107: 65.28 | H107: 63.92 | I107: 70.82 | J107: 72.18 | K107: 74.27 | L107: 70.1 | M107: 66.65 | N107: 56190000 | O107: -3.60%
A108: 98 | B108: Telecom | C108: IDEA | D108: 71.70 | E108: 71.32 | F108: 70.28 | G108: 68.87 | H108: 67.83 | I108: 72.73 | J108: 73.77 | K108: 75.18 | L108: 72.35 | M108: 69.9 | N108: 133665000 | O108: -2.06%
A109: 99 | B109: Finance | C109: IDFC | D109: 53.55 | E109: 53.75 | F109: 53.20 | G109: 52.85 | H109: 52.30 | I109: 54.10 | J109: 54.65 | K109: 55.00 | L109: 54.3 | M109: 53.4 | N109: 178992000 | O109: 10.62%
A110: 100 | B110: Banking | C110: IDFCBANK | D110: 48.45 | E110: 48.75 | F110: 48.05 | G110: 47.65 | H110: 46.95 | I110: 49.15 | J110: 49.85 | K110: 50.25 | L110: 49.45 | M110: 48.35 | N110: 192429000 | O110: -1.91%
A111: 101 | B111: Finance | C111: IFCI | D111: 20.45 | E111: 20.48 | F111: 20.27 | G111: 20.08 | H111: 19.87 | I111: 20.67 | J111: 20.88 | K111: 21.07 | L111: 20.7 | M111: 20.3 | N111: 80014000 | O111: 0.86%
A112: 102 | B112: Oil_Gas | C112: IGL | D112: 294.75 | E112: 293.67 | F112: 291.73 | G112: 288.72 | H112: 286.78 | I112: 296.68 | J112: 298.62 | K112: 301.63 | L112: 295.6 | M112: 290.65 | N112: 4801500 | O112: -2.35%
A113: 103 | B113: Cement | C113: INDIACEM | D113: 150.30 | E113: 150.92 | F113: 148.93 | G113: 147.57 | H113: 145.58 | I113: 152.28 | J113: 154.27 | K113: 155.63 | L113: 152.9 | M113: 149.55 | N113: 25809000 | O113: -3.62%
A114: 104 | B114: Banking | C114: INDIANB | D114: 309.15 | E114: 305.70 | F114: 300.60 | G114: 292.05 | H114: 286.95 | I114: 314.25 | J114: 319.35 | K114: 327.90 | L114: 310.8 | M114: 297.15 | N114: 3320000 | O114: -8.74%
A115: 105 | B115: Others | C115: INDIGO | D115: 1476.80 | E115: 1483.80 | F115: 1463.00 | G115: 1449.20 | H115: 1428.40 | I115: 1497.60 | J115: 1518.40 | K115: 1532.20 | L115: 1504.6 | M115: 1470 | N115: 3591600 | O115: -0.40%
A116: 106 | B116: Banking | C116: INDUSINDBK | D116: 1871.05 | E116: 1852.10 | F116: 1825.85 | G116: 1780.65 | H116: 1754.40 | I116: 1897.30 | J116: 1923.55 | K116: 1968.75 | L116: 1878.35 | M116: 1806.9 | N116: 7929300 | O116: 7.07%
A117: 107 | B117: Technology | C117: INFIBEAM | D117: 170.05 | E117: 171.27 | F117: 168.28 | G117: 166.52 | H117: 163.53 | I117: 173.03 | J117: 176.02 | K117: 177.78 | L117: 174.25 | M117: 169.5 | N117: 39152000 | O117: 3.14%
A118: 108 | B118: Telecom | C118: INFRATEL | D118: 329.00 | E118: 329.10 | F118: 325.30 | G118: 321.60 | H118: 317.80 | I118: 332.80 | J118: 336.60 | K118: 340.30 | L118: 332.9 | M118: 325.4 | N118: 8041000 | O118: 2.43%
A119: 109 | B119: Technology | C119: INFY | D119: 1181.55 | E119: 1180.40 | F119: 1153.45 | G119: 1125.35 | H119: 1098.40 | I119: 1208.50 | J119: 1235.45 | K119: 1263.55 | L119: 1207.35 | M119: 1152.3 | N119: 46458000 | O119: 5.78%
A120: 110 | B120: Oil_Gas | C120: IOC | D120: 161.90 | E120: 162.22 | F120: 160.28 | G120: 158.67 | H120: 156.73 | I120: 163.83 | J120: 165.77 | K120: 167.38 | L120: 164.15 | M120: 160.6 | N120: 51393000 | O120: 1.47%
A121: 111 | B121: Infrastructure | C121: IRB | D121: 265.15 | E121: 266.17 | F121: 259.63 | G121: 254.12 | H121: 247.58 | I121: 271.68 | J121: 278.22 | K121: 283.73 | L121: 272.7 | M121: 260.65 | N121: 18222500 | O121: 9.81%
A122: 112 | B122: FMCG | C122: ITC | D122: 275.50 | E122: 275.88 | F122: 274.42 | G122: 273.33 | H122: 271.87 | I122: 276.97 | J122: 278.43 | K122: 279.52 | L122: 277.35 | M122: 274.8 | N122: 96436800 | O122: 2.82%
A123: 113 | B123: Others | C123: JETAIRWAYS | D123: 619.80 | E123: 621.17 | F123: 612.58 | G123: 605.37 | H123: 596.78 | I123: 628.38 | J123: 636.97 | K123: 644.18 | L123: 629.75 | M123: 613.95 | N123: 6861600 | O123: -2.01%
A124: 114 | B124: Metals | C124: JINDALSTEL | D124: 250.25 | E124: 251.05 | F124: 248.20 | G124: 246.15 | H124: 243.30 | I124: 253.10 | J124: 255.95 | K124: 258.00 | L124: 253.9 | M124: 249 | N124: 35892000 | O124: 2.98%
A125: 115 | B125: Others | C125: JISLJALEQS | D125: 112.60 | E125: 112.47 | F125: 111.43 | G125: 110.27 | H125: 109.23 | I125: 113.63 | J125: 114.67 | K125: 115.83 | L125: 113.5 | M125: 111.3 | N125: 41697000 | O125: -0.56%
A126: 116 | B126: Realty | C126: JPASSOCIAT | D126: 20.30 | E126: 20.43 | F126: 19.92 | G126: 19.53 | H126: 19.02 | I126: 20.82 | J126: 21.33 | K126: 21.72 | L126: 20.95 | M126: 20.05 | N126: 201008000 | O126: -1.78%
A127: 117 | B127: Metals | C127: JSWSTEEL | D127: 321.65 | E127: 322.95 | F127: 318.50 | G127: 315.35 | H127: 310.90 | I127: 326.10 | J127: 330.55 | K127: 333.70 | L127: 327.4 | M127: 319.8 | N127: 67437000 | O127: 0.49%
A128: 118 | B128: Others | C128: JUBLFOOD | D128: 2466.30 | E128: 2461.47 | F128: 2434.23 | G128: 2402.17 | H128: 2374.93 | I128: 2493.53 | J128: 2520.77 | K128: 2552.83 | L128: 2488.7 | M128: 2429.4 | N128: 2281500 | O128: 0.40%
A129: 119 | B129: Others | C129: JUSTDIAL | D129: 452.20 | E129: 456.22 | F129: 446.48 | G129: 440.77 | H129: 431.03 | I129: 461.93 | J129: 471.67 | K129: 477.38 | L129: 465.95 | M129: 450.5 | N129: 4946200 | O129: -1.70%
A130: 120 | B130: Others | C130: KAJARIACER | D130: 566.55 | E130: 565.65 | F130: 561.40 | G130: 556.25 | H130: 552.00 | I130: 570.80 | J130: 575.05 | K130: 580.20 | L130: 569.9 | M130: 560.5 | N130: 1495200 | O130: -2.25%
A131: 121 | B131: Banking | C131: KOTAKBANK | D131: 1165.80 | E131: 1163.50 | F131: 1154.00 | G131: 1142.20 | H131: 1132.70 | I131: 1175.30 | J131: 1184.80 | K131: 1196.60 | L131: 1173 | M131: 1151.7 | N131: 13976000 | O131: 7.71%
A132: 122 | B132: Technology | C132: KPIT | D132: 245.40 | E132: 245.90 | F132: 241.10 | G132: 236.80 | H132: 232.00 | I132: 250.20 | J132: 255.00 | K132: 259.30 | L132: 250.7 | M132: 241.6 | N132: 10372500 | O132: 5.25%
A133: 123 | B133: Others | C133: KSCL | D133: 540.50 | E133: 536.88 | F133: 527.77 | G133: 515.03 | H133: 505.92 | I133: 549.62 | J133: 558.73 | K133: 571.47 | L133: 546 | M133: 524.15 | N133: 2448000 | O133: -0.91%
A134: 124 | B134: Banking | C134: KTKBANK | D134: 118.75 | E134: 119.27 | F134: 117.68 | G134: 116.62 | H134: 115.03 | I134: 120.33 | J134: 121.92 | K134: 122.98 | L134: 120.85 | M134: 118.2 | N134: 27721000 | O134: 3.08%
A135: 125 | B135: Finance | C135: L&TFH | D135: 166.20 | E135: 165.58 | F135: 164.17 | G135: 162.13 | H135: 160.72 | I135: 167.62 | J135: 169.03 | K135: 171.07 | L135: 167 | M135: 163.55 | N135: 37930500 | O135: 2.71%
A136: 126 | B136: Finance | C136: LICHSGFIN | D136: 551.45 | E136: 548.15 | F136: 539.50 | G136: 527.55 | H136: 518.90 | I136: 560.10 | J136: 568.75 | K136: 580.70 | L136: 556.8 | M136: 536.2 | N136: 12877700 | O136: 2.15%
A137: 127 | B137: Capital_Goods | C137: LT | D137: 1354.55 | E137: 1359.87 | F137: 1345.13 | G137: 1335.72 | H137: 1320.98 | I137: 1369.28 | J137: 1384.02 | K137: 1393.43 | L137: 1374.6 | M137: 1350.45 | N137: 16256250 | O137: 6.58%
A138: 128 | B138: Pharma | C138: LUPIN | D138: 812.10 | E138: 809.35 | F138: 799.50 | G138: 786.90 | H138: 777.05 | I138: 821.95 | J138: 831.80 | K138: 844.40 | L138: 819.2 | M138: 796.75 | N138: 13603200 | O138: 0.39%
A139: 129 | B139: Automobile | C139: M&M | D139: 823.85 | E139: 818.60 | F139: 804.25 | G139: 784.65 | H139: 770.30 | I139: 838.20 | J139: 852.55 | K139: 872.15 | L139: 832.95 | M139: 799 | N139: 16529000 | O139: 3.58%
A140: 130 | B140: Finance | C140: M&MFIN | D140: 514.25 | E140: 512.17 | F140: 505.53 | G140: 496.82 | H140: 490.18 | I140: 520.88 | J140: 527.52 | K140: 536.23 | L140: 518.8 | M140: 503.45 | N140: 8593750 | O140: 2.67%
A141: 131 | B141: Others | C141: MANAPPURAM | D141: 119.95 | E141: 119.67 | F141: 118.63 | G141: 117.32 | H141: 116.28 | I141: 120.98 | J141: 122.02 | K141: 123.33 | L141: 120.7 | M141: 118.35 | N141: 19272000 | O141: 0.47%
A142: 132 | B142: FMCG | C142: MARICO | D142: 317.50 | E142: 318.25 | F142: 315.80 | G142: 314.10 | H142: 311.65 | I142: 319.95 | J142: 322.40 | K142: 324.10 | L142: 320.7 | M142: 316.55 | N142: 7430800 | O142: -0.28%
A143: 133 | B143: Automobile | C143: MARUTI | D143: 9080.90 | E143: 9076.13 | F143: 9020.27 | G143: 8959.63 | H143: 8903.77 | I143: 9136.77 | J143: 9192.63 | K143: 9253.27 | L143: 9132 | M143: 9015.5 | N143: 2638425 | O143: 1.87%
A144: 134 | B144: FMCG | C144: MCDOWELL-N | D144: 3494.70 | E144: 3482.60 | F144: 3443.20 | G144: 3391.70 | H144: 3352.30 | I144: 3534.10 | J144: 3573.50 | K144: 3625.00 | L144: 3522 | M144: 3431.1 | N144: 2168500 | O144: 0.00%
A145: 135 | B145: Others | C145: MCX | D145: 788.05 | E145: 787.22 | F145: 779.83 | G145: 771.62 | H145: 764.23 | I145: 795.43 | J145: 802.82 | K145: 811.03 | L145: 794.6 | M145: 779 | N145: 3828000 | O145: -0.87%
A146: 136 | B146: Finance | C146: MFSL | D146: 500.75 | E146: 494.13 | F146: 480.47 | G146: 460.18 | H146: 446.52 | I146: 514.42 | J146: 528.08 | K146: 548.37 | L146: 507.8 | M146: 473.85 | N146: 2981000 | O146: -2.77%
A147: 137 | B147: Others | C147: MGL | D147: 913.25 | E147: 910.60 | F147: 905.50 | G147: 897.75 | H147: 892.65 | I147: 918.35 | J147: 923.45 | K147: 931.20 | L147: 915.7 | M147: 902.85 | N147: 4313400 | O147: 3.80%
A148: 138 | B148: Technology | C148: MINDTREE | D148: 996.30 | E148: 992.55 | F148: 965.30 | G148: 934.30 | H148: 907.05 | I148: 1023.55 | J148: 1050.80 | K148: 1081.80 | L148: 1019.8 | M148: 961.55 | N148: 4370400 | O148: 14.10%
A149: 139 | B149: Automobile | C149: MOTHERSUMI | D149: 351.80 | E149: 352.33 | F149: 349.87 | G149: 347.93 | H149: 345.47 | I149: 354.27 | J149: 356.73 | K149: 358.67 | L149: 354.8 | M149: 350.4 | N149: 14246400 | O149: 1.45%
A150: 140 | B150: Automobile | C150: MRF | D150: 78082.45 | E150: 78243.47 | F150: 77638.98 | G150: 77195.52 | H150: 76591.03 | I150: 78686.93 | J150: 79291.42 | K150: 79734.88 | L150: 78847.95 | M150: 77800 | N150: 39120 | O150: -1.81%
A151: 141 | B151: Others | C151: MRPL | D151: 107.85 | E151: 107.83 | F151: 107.12 | G151: 106.38 | H151: 105.67 | I151: 108.57 | J151: 109.28 | K151: 110.02 | L151: 108.55 | M151: 107.1 | N151: 6480000 | O151: 1.77%
A152: 142 | B152: Finance | C152: MUTHOOTFIN | D152: 437.20 | E152: 434.37 | F152: 430.73 | G152: 424.27 | H152: 420.63 | I152: 440.83 | J152: 444.47 | K152: 450.93 | L152: 438 | M152: 427.9 | N152: 1881000 | O152: -6.00%
A153: 143 | B153: Others | C153: NATIONALUM | D153: 85.10 | E153: 85.77 | F153: 84.08 | G153: 83.07 | H153: 81.38 | I153: 86.78 | J153: 88.47 | K153: 89.48 | L153: 87.45 | M153: 84.75 | N153: 59424000 | O153: -2.97%
A154: 144 | B154: Others | C154: NBCC | D154: 206.45 | E154: 206.92 | F154: 204.83 | G154: 203.22 | H154: 201.13 | I154: 208.53 | J154: 210.62 | K154: 212.23 | L154: 209 | M154: 205.3 | N154: 10545000 | O154: -2.98%
A155: 145 | B155: Infrastructure | C155: NCC | D155: 129.45 | E155: 130.60 | F155: 127.55 | G155: 125.65 | H155: 122.60 | I155: 132.50 | J155: 135.55 | K155: 137.45 | L155: 133.65 | M155: 128.7 | N155: 25640000 | O155: 1.58%
A156: 146 | B156: Others | C156: NESTLEIND | D156: 8918.75 | E156: 9012.45 | F156: 8800.90 | G156: 8683.05 | H156: 8471.50 | I156: 9130.30 | J156: 9341.85 | K156: 9459.70 | L156: 9224 | M156: 8894.6 | N156: 292500 | O156: -2.40%
A157: 147 | B157: Power | C157: NHPC | D157: 28.15 | E157: 28.20 | F157: 27.90 | G157: 27.65 | H157: 27.35 | I157: 28.45 | J157: 28.75 | K157: 29.00 | L157: 28.5 | M157: 27.95 | N157: 39096000 | O157: -1.03%
A158: 148 | B158: Technology | C158: NIITTECH | D158: 1035.70 | E158: 1035.42 | F158: 989.83 | G158: 943.97 | H158: 898.38 | I158: 1081.28 | J158: 1126.87 | K158: 1172.73 | L158: 1081 | M158: 989.55 | N158: 1878000 | O158: 15.60%
A159: 149 | B159: Metals | C159: NMDC | D159: 124.35 | E159: 123.85 | F159: 122.40 | G159: 120.45 | H159: 119.00 | I159: 125.80 | J159: 127.25 | K159: 129.20 | L159: 125.3 | M159: 121.9 | N159: 29718000 | O159: -7.94%
A160: 150 | B160: Power | C160: NTPC | D160: 174.00 | E160: 174.40 | F160: 173.15 | G160: 172.30 | H160: 171.05 | I160: 175.25 | J160: 176.50 | K160: 177.35 | L160: 175.65 | M160: 173.55 | N160: 39708000 | O160: 1.64%
A161: 151 | B161: Technology | C161: OFSS | D161: 4264.50 | E161: 4288.68 | F161: 4204.87 | G161: 4145.23 | H161: 4061.42 | I161: 4348.32 | J161: 4432.13 | K161: 4491.77 | L161: 4372.5 | M161: 4229.05 | N161: 121350 | O161: 24.27%
A162: 152 | B162: Oil_Gas | C162: OIL | D162: 231.00 | E162: 229.25 | F162: 226.85 | G162: 222.70 | H162: 220.30 | I162: 233.40 | J162: 235.80 | K162: 239.95 | L162: 231.65 | M162: 225.1 | N162: 3667521 | O162: -4.17%
A163: 153 | B163: Oil_Gas | C163: ONGC | D163: 181.35 | E163: 181.50 | F163: 179.50 | G163: 177.65 | H163: 175.65 | I163: 183.35 | J163: 185.35 | K163: 187.20 | L163: 183.5 | M163: 179.65 | N163: 38298750 | O163: 3.97%
A164: 154 | B164: Banking | C164: ORIENTBANK | D164: 90.10 | E164: 90.12 | F164: 88.28 | G164: 86.47 | H164: 84.63 | I164: 91.93 | J164: 93.77 | K164: 95.58 | L164: 91.95 | M164: 88.3 | N164: 17508000 | O164: -2.11%
A165: 155 | B165: Textile | C165: PAGEIND | D165: 24006.30 | E165: 24120.45 | F165: 23810.85 | G165: 23615.40 | H165: 23305.80 | I165: 24315.90 | J165: 24625.50 | K165: 24820.95 | L165: 24430.05 | M165: 23925 | N165: 47850 | O165: 1.38%
A166: 156 | B166: Others | C166: PCJEWELLER | D166: 295.50 | E166: 297.62 | F166: 292.23 | G166: 288.97 | H166: 283.58 | I166: 300.88 | J166: 306.27 | K166: 309.53 | L166: 303 | M166: 294.35 | N166: 9633000 | O166: -1.58%
A167: 157 | B167: Pharma | C167: PEL | D167: 2610.95 | E167: 2606.83 | F167: 2567.62 | G167: 2524.28 | H167: 2485.07 | I167: 2650.17 | J167: 2689.38 | K167: 2732.72 | L167: 2646.05 | M167: 2563.5 | N167: 1868474 | O167: -1.09%
A168: 158 | B168: Oil_Gas | C168: PETRONET | D168: 237.85 | E168: 238.42 | F168: 235.83 | G168: 233.82 | H168: 231.23 | I168: 240.43 | J168: 243.02 | K168: 245.03 | L168: 241 | M168: 236.4 | N168: 17310000 | O168: 1.82%
A169: 159 | B169: Finance | C169: PFC | D169: 85.70 | E169: 85.78 | F169: 84.87 | G169: 84.03 | H169: 83.12 | I169: 86.62 | J169: 87.53 | K169: 88.37 | L169: 86.7 | M169: 84.95 | N169: 78264000 | O169: 0.26%
A170: 160 | B170: FMCG | C170: PIDILITIND | D170: 1070.25 | E170: 1067.10 | F170: 1060.20 | G170: 1050.15 | H170: 1043.25 | I170: 1077.15 | J170: 1084.05 | K170: 1094.10 | L170: 1074 | M170: 1057.05 | N170: 1943000 | O170: -0.77%
A171: 161 | B171: Banking | C171: PNB | D171: 94.15 | E171: 94.35 | F171: 93.10 | G171: 92.05 | H171: 90.80 | I171: 95.40 | J171: 96.65 | K171: 97.70 | L171: 95.6 | M171: 93.3 | N171: 74092000 | O171: -0.59%
A172: 162 | B172: Power | C172: POWERGRID | D172: 207.40 | E172: 206.93 | F172: 205.52 | G172: 203.63 | H172: 202.22 | I172: 208.82 | J172: 210.23 | K172: 212.12 | L172: 208.35 | M172: 205.05 | N172: 34548000 | O172: 1.25%
A173: 163 | B173: Power | C173: PTC | D173: 91.90 | E173: 92.03 | F173: 90.92 | G173: 89.93 | H173: 88.82 | I173: 93.02 | J173: 94.13 | K173: 95.12 | L173: 93.15 | M173: 91.05 | N173: 24472000 | O173: 7.45%
A174: 164 | B174: Others | C174: PVR | D174: 1372.75 | E174: 1355.78 | F174: 1333.47 | G174: 1294.18 | H174: 1271.87 | I174: 1395.07 | J174: 1417.38 | K174: 1456.67 | L174: 1378.1 | M174: 1316.5 | N174: 900000 | O174: 4.51%
A175: 165 | B175: Cement | C175: RAMCOCEM | D175: 855.35 | E175: 861.18 | F175: 841.57 | G175: 827.78 | H175: 808.17 | I175: 874.97 | J175: 894.58 | K175: 908.37 | L175: 880.8 | M175: 847.4 | N175: 1381600 | O175: 2.55%
A176: 166 | B176: Others | C176: RAYMOND | D176: 1046.10 | E176: 1046.35 | F176: 1034.75 | G176: 1023.40 | H176: 1011.80 | I176: 1057.70 | J176: 1069.30 | K176: 1080.65 | L176: 1057.95 | M176: 1035 | N176: 5341600 | O176: 1.97%
A177: 167 | B177: Banking | C177: RBLBANK | D177: 503.85 | E177: 506.15 | F177: 500.35 | G177: 496.85 | H177: 491.05 | I177: 509.65 | J177: 515.45 | K177: 518.95 | L177: 511.95 | M177: 502.65 | N177: 4670000 | O177: 4.78%
A178: 168 | B178: Telecom | C178: RCOM | D178: 20.10 | E178: 20.28 | F178: 19.72 | G178: 19.33 | H178: 18.77 | I178: 20.67 | J178: 21.23 | K178: 21.62 | L178: 20.85 | M178: 19.9 | N178: 118552000 | O178: -2.73%
A179: 169 | B179: Capital_Goods | C179: RNAVAL | D179: 26.90 | E179: 27.08 | F179: 25.67 | G179: 24.43 | H179: 23.02 | I179: 28.32 | J179: 29.73 | K179: 30.97 | L179: 28.5 | M179: 25.85 | N179: 45225000 | O179: 2.14%
A180: 170 | B180: Power | C180: RECLTD | D180: 128.25 | E180: 128.73 | F180: 127.12 | G180: 125.98 | H180: 124.37 | I180: 129.87 | J180: 131.48 | K180: 132.62 | L180: 130.35 | M180: 127.6 | N180: 37992000 | O180: 0.54%
A181: 171 | B181: Finance | C181: RELCAPITAL | D181: 429.70 | E181: 427.57 | F181: 419.33 | G181: 408.97 | H181: 400.73 | I181: 437.93 | J181: 446.17 | K181: 456.53 | L181: 435.8 | M181: 417.2 | N181: 12925500 | O181: 2.78%
A182: 172 | B182: Oil_Gas | C182: RELIANCE | D182: 936.35 | E182: 936.30 | F182: 928.60 | G182: 920.85 | H182: 913.15 | I182: 944.05 | J182: 951.75 | K182: 959.50 | L182: 944 | M182: 928.55 | N182: 54975000 | O182: -2.68%
A183: 173 | B183: Power | C183: RELINFRA | D183: 450.65 | E183: 451.15 | F183: 446.90 | G183: 443.15 | H183: 438.90 | I183: 454.90 | J183: 459.15 | K183: 462.90 | L183: 455.4 | M183: 447.4 | N183: 9023300 | O183: 1.08%
A184: 174 | B184: Others | C184: REPCOHOME | D184: 613.35 | E184: 612.60 | F184: 606.75 | G184: 600.15 | H184: 594.30 | I184: 619.20 | J184: 625.05 | K184: 631.65 | L184: 618.45 | M184: 606 | N184: 815400 | O184: -11.65%
A185: 175 | B185: Power | C185: RPOWER | D185: 38.40 | E185: 38.27 | F185: 37.93 | G185: 37.47 | H185: 37.13 | I185: 38.73 | J185: 39.07 | K185: 39.53 | L185: 38.6 | M185: 37.8 | N185: 72150000 | O185: -6.44%
A186: 176 | B186: Metals | C186: SAIL | D186: 79.65 | E186: 79.83 | F186: 79.07 | G186: 78.48 | H186: 77.72 | I186: 80.42 | J186: 81.18 | K186: 81.77 | L186: 80.6 | M186: 79.25 | N186: 92628000 | O186: -1.04%
A187: 177 | B187: Banking | C187: SBIN | D187: 242.70 | E187: 242.67 | F187: 239.73 | G187: 236.77 | H187: 233.83 | I187: 245.63 | J187: 248.57 | K187: 251.53 | L187: 245.6 | M187: 239.7 | N187: 92658000 | O187: 1.13%
A188: 178 | B188: Cement | C188: SHREECEM | D188: 17168.00 | E188: 17139.33 | F188: 17028.67 | G188: 16889.33 | H188: 16778.67 | I188: 17278.67 | J188: 17389.33 | K188: 17528.67 | L188: 17250 | M188: 17000 | N188: 67600 | O188: -2.59%
A189: 179 | B189: Capital_Goods | C189: SIEMENS | D189: 1090.30 | E189: 1085.62 | F189: 1073.83 | G189: 1057.37 | H189: 1045.58 | I189: 1102.08 | J189: 1113.87 | K189: 1130.33 | L189: 1097.4 | M189: 1069.15 | N189: 1408000 | O189: -0.04%
A190: 180 | B190: Banking | C190: SOUTHBANK | D190: 25.70 | E190: 25.77 | F190: 25.48 | G190: 25.27 | H190: 24.98 | I190: 25.98 | J190: 26.27 | K190: 26.48 | L190: 26.05 | M190: 25.55 | N190: 170411022 | O190: 6.66%
A191: 181 | B191: Others | C191: SREINFRA | D191: 87.25 | E191: 86.28 | F191: 84.62 | G191: 81.98 | H191: 80.32 | I191: 88.92 | J191: 90.58 | K191: 93.22 | L191: 87.95 | M191: 83.65 | N191: 16100000 | O191: 5.23%
A192: 182 | B192: Textile | C192: SRF | D192: 2191.90 | E192: 2199.57 | F192: 2175.13 | G192: 2158.37 | H192: 2133.93 | I192: 2216.33 | J192: 2240.77 | K192: 2257.53 | L192: 2224 | M192: 2182.8 | N192: 551500 | O192: 3.67%
A193: 183 | B193: Finance | C193: SRTRANSFIN | D193: 1595.45 | E193: 1591.77 | F193: 1566.78 | G193: 1538.12 | H193: 1513.13 | I193: 1620.43 | J193: 1645.42 | K193: 1674.08 | L193: 1616.75 | M193: 1563.1 | N193: 3377400 | O193: 10.22%
A194: 184 | B194: Pharma | C194: STAR | D194: 649.65 | E194: 646.70 | F194: 639.05 | G194: 628.45 | H194: 620.80 | I194: 657.30 | J194: 664.95 | K194: 675.55 | L194: 654.35 | M194: 636.1 | N194: 1975800 | O194: 1.95%
A195: 185 | B195: Pharma | C195: SUNPHARMA | D195: 515.15 | E195: 512.30 | F195: 508.10 | G195: 501.05 | H195: 496.85 | I195: 519.35 | J195: 523.55 | K195: 530.60 | L195: 516.5 | M195: 505.25 | N195: 59221800 | O195: -1.22%
A196: 186 | B196: Media | C196: SUNTV | D196: 881.20 | E196: 883.25 | F196: 874.10 | G196: 867.00 | H196: 857.85 | I196: 890.35 | J196: 899.50 | K196: 906.60 | L196: 892.4 | M196: 876.15 | N196: 5726000 | O196: 0.07%
A197: 187 | B197: Power | C197: SUZLON | D197: 11.40 | E197: 11.37 | F197: 11.23 | G197: 11.07 | H197: 10.93 | I197: 11.53 | J197: 11.67 | K197: 11.83 | L197: 11.5 | M197: 11.2 | N197: 370965000 | O197: 2.42%
A198: 188 | B198: Banking | C198: SYNDIBANK | D198: 55.35 | E198: 55.32 | F198: 54.78 | G198: 54.22 | H198: 53.68 | I198: 55.88 | J198: 56.42 | K198: 56.98 | L198: 55.85 | M198: 54.75 | N198: 35199000 | O198: 1.27%
A199: 189 | B199: Fertilisers | C199: TATACHEM | D199: 733.75 | E199: 733.80 | F199: 730.60 | G199: 727.45 | H199: 724.25 | I199: 736.95 | J199: 740.15 | K199: 743.30 | L199: 737 | M199: 730.65 | N199: 6246000 | O199: 1.76%
A200: 190 | B200: Telecom | C200: TATACOMM | D200: 634.30 | E200: 634.37 | F200: 628.78 | G200: 623.27 | H200: 617.68 | I200: 639.88 | J200: 645.47 | K200: 650.98 | L200: 639.95 | M200: 628.85 | N200: 6199200 | O200: -0.35%
A201: 191 | B201: Technology | C201: TATAELXSI | D201: 1205.85 | E201: 1197.73 | F201: 1149.42 | G201: 1092.98 | H201: 1044.67 | I201: 1254.17 | J201: 1302.48 | K201: 1358.92 | L201: 1246.05 | M201: 1141.3 | N201: 2224000 | O201: 15.16%
A202: 192 | B202: FMCG | C202: TATAGLOBAL | D202: 283.75 | E202: 284.57 | F202: 281.68 | G202: 279.62 | H202: 276.73 | I202: 286.63 | J202: 289.52 | K202: 291.58 | L202: 287.45 | M202: 282.5 | N202: 28597500 | O202: 1.78%
A203: 193 | B203: Automobile | C203: TATAMOTORS | D203: 334.70 | E203: 336.07 | F203: 332.48 | G203: 330.27 | H203: 326.68 | I203: 338.28 | J203: 341.87 | K203: 344.08 | L203: 339.65 | M203: 333.85 | N203: 76873500 | O203: 1.48%
A204: 194 | B204: Automobile | C204: TATAMTRDVR | D204: 188.30 | E204: 189.38 | F204: 186.97 | G204: 185.63 | H204: 183.22 | I204: 190.72 | J204: 193.13 | K204: 194.47 | L204: 191.8 | M204: 188.05 | N204: 27452500 | O204: 3.31%
A205: 195 | B205: Power | C205: TATAPOWER | D205: 85.50 | E205: 85.35 | F205: 84.80 | G205: 84.10 | H205: 83.55 | I205: 86.05 | J205: 86.60 | K205: 87.30 | L205: 85.9 | M205: 84.65 | N205: 51660000 | O205: 3.80%
A206: 196 | B206: Metals | C206: TATASTEEL | D206: 606.70 | E206: 606.53 | F206: 601.27 | G206: 595.83 | H206: 590.57 | I206: 611.97 | J206: 617.23 | K206: 622.67 | L206: 611.8 | M206: 601.1 | N206: 21608326 | O206: -1.27%
... 36 more rows

Sheet Cash Intra
M5: Back to Main Page
A6: FOR INTRA DAY TRADING | K6: =Main!B10 -> 2018-04-24
A8: Sr.no | B8: Scrip | C8: CLOSE RATE | D8: Pivot Point | E8: Supports | H8: Resistances
C9: Point | E9: S1 | F9: S2 | G9: S3 | H9: R1 | I9: R2 | J9: R3 | K9: HIGH | L9: LOW | M9: Total Trade Quanity in Lakhs
A10: 1 | B10: Nifty 50 | C10: 10584.7 | D10: 10579.33 | E10: 10520.32 | F10: 10455.93 | G10: 10396.92 | H10: 10643.72 | I10: 10702.73 | J10: 10767.12 | K10: 10638.35 | L10: 10514.95
A11: 2 | B11: Nifty Bank | C11: 24960.65 | D11: 24836.97 | E11: 24589.78 | F11: 24218.92 | G11: 23971.73 | H11: 25207.83 | I11: 25455.02 | J11: 25825.88 | K11: 25084.15 | L11: 24466.1
A12: 3 | B12: Nifty CPSE | C12: 2420.4 | D12: 2421.43 | E12: 2413.57 | F12: 2406.73 | G12: 2398.87 | H12: 2428.27 | I12: 2436.13 | J12: 2442.97 | K12: 2429.3 | L12: 2414.6
A13: 4 | B13: Nifty Infra | C13: 3467.2 | D13: 3470.17 | E13: 3459.38 | F13: 3451.57 | G13: 3440.78 | H13: 3477.98 | I13: 3488.77 | J13: 3496.58 | K13: 3480.95 | L13: 3462.35
A14: 5 | B14: Nifty IT | C14: 14013.95 | D14: 14048.20 | E14: 13802.25 | F14: 13590.55 | G14: 13344.60 | H14: 14259.90 | I14: 14505.85 | J14: 14717.55 | K14: 14294.15 | L14: 13836.5
A15: 6 | B15: Nifty PSE | C15: 3864.3 | D15: 3865.85 | E15: 3855.15 | F15: 3846.00 | G15: 3835.30 | H15: 3875.00 | I15: 3885.70 | J15: 3894.85 | K15: 3876.55 | L15: 3856.7
A16: 7 | B16: Nifty Midcap 50 | C16: 5386.05 | D16: 5382.68 | E16: 5362.27 | F16: 5338.48 | G16: 5318.07 | H16: 5406.47 | I16: 5426.88 | J16: 5450.67 | K16: 5403.1 | L16: 5358.9
A17: 8 | B17: ABB | C17: 1333.3 | D17: 1321.28 | E17: 1292.57 | F17: 1251.83 | G17: 1223.12 | H17: 1362.02 | I17: 1390.73 | J17: 1431.47 | K17: 1350 | L17: 1280.55 | M17: 2.52664
A18: 9 | B18: ACC | C18: 1565.3 | D18: 1566.37 | E18: 1550.93 | F18: 1536.57 | G18: 1521.13 | H18: 1580.73 | I18: 1596.17 | J18: 1610.53 | K18: 1581.8 | L18: 1552 | M18: 3.02886
A19: 10 | B19: AIAENG | C19: 1417.6 | D19: 1415.70 | E19: 1397.95 | F19: 1378.30 | G19: 1360.55 | H19: 1435.35 | I19: 1453.10 | J19: 1472.75 | K19: 1433.45 | L19: 1396.05 | M19: 0.20402
A20: 11 | B20: AUBANK | C20: 656.8 | D20: 655.52 | E20: 651.28 | F20: 645.77 | G20: 641.53 | H20: 661.03 | I20: 665.27 | J20: 670.78 | K20: 659.75 | L20: 650 | M20: 0.63508
A21: 12 | B21: ADANIENT | C21: 139.75 | D21: 139.78 | E21: 137.57 | F21: 135.38 | G21: 133.17 | H21: 141.97 | I21: 144.18 | J21: 146.37 | K21: 142 | L21: 137.6 | M21: 44.66205
A22: 13 | B22: ADANIPORTS | C22: 386.35 | D22: 383.82 | E22: 378.08 | F22: 369.82 | G22: 364.08 | H22: 392.08 | I22: 397.82 | J22: 406.08 | K22: 389.55 | L22: 375.55 | M22: 36.14484
A23: 14 | B23: ADANIPOWER | C23: 25.85 | D23: 25.87 | E23: 25.63 | F23: 25.42 | G23: 25.18 | H23: 26.08 | I23: 26.32 | J23: 26.53 | K23: 26.1 | L23: 25.65 | M23: 61.36777
A24: 15 | B24: ABFRL | C24: 148 | D24: 147.37 | E24: 145.73 | F24: 143.47 | G24: 141.83 | H24: 149.63 | I24: 151.27 | J24: 153.53 | K24: 149 | L24: 145.1 | M24: 1.84263
A25: 16 | B25: AJANTPHARM | C25: 1383.2 | D25: 1371.28 | E25: 1349.92 | F25: 1316.63 | G25: 1295.27 | H25: 1404.57 | I25: 1425.93 | J25: 1459.22 | K25: 1392.65 | L25: 1338 | M25: 1.7523
A26: 17 | B26: ALKEM | C26: 1831.7 | D26: 1818.90 | E26: 1787.80 | F26: 1743.90 | G26: 1712.80 | H26: 1862.80 | I26: 1893.90 | J26: 1937.80 | K26: 1850 | L26: 1775 | M26: 0.39257
A27: 18 | B27: AMARAJABAT | C27: 860.4 | D27: 857.67 | E27: 847.13 | F27: 833.87 | G27: 823.33 | H27: 870.93 | I27: 881.47 | J27: 894.73 | K27: 868.2 | L27: 844.4 | M27: 5.02976
A28: 19 | B28: AMBUJACEM | C28: 247.6 | D28: 247.28 | E28: 245.57 | F28: 243.53 | G28: 241.82 | H28: 249.32 | I28: 251.03 | J28: 253.07 | K28: 249 | L28: 245.25 | M28: 10.51719
A29: 20 | B29: APOLLOHOSP | C29: 1132.2 | D29: 1133.95 | E29: 1119.90 | F29: 1107.60 | G29: 1093.55 | H29: 1146.25 | I29: 1160.30 | J29: 1172.60 | K29: 1148 | L29: 1121.65 | M29: 1.42729
A30: 21 | B30: APOLLOTYRE | C30: 289.1 | D30: 287.85 | E30: 285.20 | F30: 281.30 | G30: 278.65 | H30: 291.75 | I30: 294.40 | J30: 298.30 | K30: 290.5 | L30: 283.95 | M30: 23.74803
A31: 22 | B31: ARVIND | C31: 425.2 | D31: 424.42 | E31: 420.03 | F31: 414.87 | G31: 410.48 | H31: 429.58 | I31: 433.97 | J31: 439.13 | K31: 428.8 | L31: 419.25 | M31: 12.51242
A32: 23 | B32: ASHOKLEY | C32: 159.45 | D32: 158.35 | E32: 156.75 | F32: 154.05 | G32: 152.45 | H32: 161.05 | I32: 162.65 | J32: 165.35 | K32: 159.95 | L32: 155.65 | M32: 221.19097
A33: 24 | B33: ASIANPAINT | C33: 1178.7 | D33: 1168.50 | E33: 1155.60 | F33: 1132.50 | G33: 1119.60 | H33: 1191.60 | I33: 1204.50 | J33: 1227.60 | K33: 1181.4 | L33: 1145.4 | M33: 5.54353
A34: 25 | B34: AUROPHARMA | C34: 642.55 | D34: 633.12 | E34: 621.23 | F34: 599.92 | G34: 588.03 | H34: 654.43 | I34: 666.32 | J34: 687.63 | K34: 645 | L34: 611.8 | M34: 31.38957
A35: 26 | B35: DMART | C35: 1489.5 | D35: 1486.97 | E35: 1477.53 | F35: 1465.57 | G35: 1456.13 | H35: 1498.93 | I35: 1508.37 | J35: 1520.33 | K35: 1496.4 | L35: 1475 | M35: 3.74689
A36: 27 | B36: AXISBANK | C36: 506.2 | D36: 505.80 | E36: 500.40 | F36: 494.60 | G36: 489.20 | H36: 511.60 | I36: 517.00 | J36: 522.80 | K36: 511.2 | L36: 500 | M36: 47.66412
A37: 28 | B37: BAJAJ-AUTO | C37: 2852.15 | D37: 2850.72 | E37: 2821.43 | F37: 2790.72 | G37: 2761.43 | H37: 2881.43 | I37: 2910.72 | J37: 2941.43 | K37: 2880 | L37: 2820 | M37: 2.35602
A38: 29 | B38: BAJFINANCE | C38: 1899.35 | D38: 1893.30 | E38: 1866.85 | F38: 1834.35 | G38: 1807.90 | H38: 1925.80 | I38: 1952.25 | J38: 1984.75 | K38: 1919.75 | L38: 1860.8 | M38: 7.62125
A39: 30 | B39: BAJAJFINSV | C39: 5294 | D39: 5299.83 | E39: 5250.82 | F39: 5207.63 | G39: 5158.62 | H39: 5343.02 | I39: 5392.03 | J39: 5435.22 | K39: 5348.85 | L39: 5256.65 | M39: 0.87805
A40: 31 | B40: BALKRISIND | C40: 1281.7 | D40: 1287.82 | E40: 1271.88 | F40: 1262.07 | G40: 1246.13 | H40: 1297.63 | I40: 1313.57 | J40: 1323.38 | K40: 1303.75 | L40: 1278 | M40: 3.83275
A41: 32 | B41: BANKBARODA | C41: 144.15 | D41: 143.82 | E41: 141.83 | F41: 139.52 | G41: 137.53 | H41: 146.13 | I41: 148.12 | J41: 150.43 | K41: 145.8 | L41: 141.5 | M41: 78.41803
A42: 33 | B42: BANKINDIA | C42: 102.5 | D42: 102.15 | E42: 100.30 | F42: 98.10 | G42: 96.25 | H42: 104.35 | I42: 106.20 | J42: 108.40 | K42: 104 | L42: 99.95 | M42: 90.95306
A43: 34 | B43: BATAINDIA | C43: 785.95 | D43: 790.05 | E43: 778.10 | F43: 770.25 | G43: 758.30 | H43: 797.90 | I43: 809.85 | J43: 817.70 | K43: 802 | L43: 782.2 | M43: 8.74732
A44: 35 | B44: BERGEPAINT | C44: 267.95 | D44: 267.83 | E44: 265.67 | F44: 263.38 | G44: 261.22 | H44: 270.12 | I44: 272.28 | J44: 274.57 | K44: 270 | L44: 265.55 | M44: 2.2745
A45: 36 | B45: BEL | C45: 137.25 | D45: 136.20 | E45: 133.50 | F45: 129.75 | G45: 127.05 | H45: 139.95 | I45: 142.65 | J45: 146.40 | K45: 138.9 | L45: 132.45 | M45: 87.25397
A46: 37 | B46: BHARATFIN | C46: 1159.55 | D46: 1146.85 | E46: 1127.70 | F46: 1095.85 | G46: 1076.70 | H46: 1178.70 | I46: 1197.85 | J46: 1229.70 | K46: 1166 | L46: 1115 | M46: 18.13562
A47: 38 | B47: BHARATFORG | C47: 759.9 | D47: 760.22 | E47: 755.43 | F47: 750.97 | G47: 746.18 | H47: 764.68 | I47: 769.47 | J47: 773.93 | K47: 765 | L47: 755.75 | M47: 5.49829
A48: 39 | B48: BHEL | C48: 89.3 | D48: 89.60 | E48: 88.75 | F48: 88.20 | G48: 87.35 | H48: 90.15 | I48: 91.00 | J48: 91.55 | K48: 90.45 | L48: 89.05 | M48: 35.18684
A49: 40 | B49: BPCL | C49: 381.35 | D49: 380.05 | E49: 374.90 | F49: 368.45 | G49: 363.30 | H49: 386.50 | I49: 391.65 | J49: 398.10 | K49: 385.2 | L49: 373.6 | M49: 86.84457
A50: 41 | B50: BHARTIARTL | C50: 402.85 | D50: 402.07 | E50: 397.63 | F50: 392.42 | G50: 387.98 | H50: 407.28 | I50: 411.72 | J50: 416.93 | K50: 406.5 | L50: 396.85 | M50: 37.80866
A51: 42 | B51: INFRATEL | C51: 328 | D51: 328.37 | E51: 324.13 | F51: 320.27 | G51: 316.03 | H51: 332.23 | I51: 336.47 | J51: 340.33 | K51: 332.6 | L51: 324.5 | M51: 24.75687
A52: 43 | B52: BIOCON | C52: 636 | D52: 634.52 | E52: 628.48 | F52: 620.97 | G52: 614.93 | H52: 642.03 | I52: 648.07 | J52: 655.58 | K52: 640.55 | L52: 627 | M52: 15.3005
A53: 44 | B53: BOSCHLTD | C53: 19693.1 | D53: 19642.08 | E53: 19464.22 | F53: 19235.33 | G53: 19057.47 | H53: 19870.97 | I53: 20048.83 | J53: 20277.72 | K53: 19819.95 | L53: 19413.2 | M53: 0.21505
A54: 45 | B54: BRITANNIA | C54: 5313.05 | D54: 5327.43 | E54: 5290.07 | F54: 5267.08 | G54: 5229.72 | H54: 5350.42 | I54: 5387.78 | J54: 5410.77 | K54: 5364.8 | L54: 5304.45 | M54: 0.90845
A55: 46 | B55: CRISIL | C55: 1958.8 | D55: 1947.05 | E55: 1931.75 | F55: 1904.70 | G55: 1889.40 | H55: 1974.10 | I55: 1989.40 | J55: 2016.45 | K55: 1962.35 | L55: 1920 | M55: 0.22691
A56: 47 | B56: CADILAHC | C56: 398.95 | D56: 395.67 | E56: 389.38 | F56: 379.82 | G56: 373.53 | H56: 405.23 | I56: 411.52 | J56: 421.08 | K56: 401.95 | L56: 386.1 | M56: 20.19759
A57: 48 | B57: CANBK | C57: 263.15 | D57: 259.73 | E57: 254.47 | F57: 245.78 | G57: 240.52 | H57: 268.42 | I57: 273.68 | J57: 282.37 | K57: 265 | L57: 251.05 | M57: 141.8277
A58: 49 | B58: CASTROLIND | C58: 200.75 | D58: 201.33 | E58: 199.42 | F58: 198.08 | G58: 196.17 | H58: 202.67 | I58: 204.58 | J58: 205.92 | K58: 203.25 | L58: 200 | M58: 10.00263
A59: 50 | B59: CENTRALBK | C59: 70.9 | D59: 70.47 | E59: 69.93 | F59: 68.97 | G59: 68.43 | H59: 71.43 | I59: 71.97 | J59: 72.93 | K59: 71 | L59: 69.5 | M59: 15.67444
A60: 51 | B60: CENTURYTEX | C60: 1239.95 | D60: 1232.65 | E60: 1220.30 | F60: 1200.65 | G60: 1188.30 | H60: 1252.30 | I60: 1264.65 | J60: 1284.30 | K60: 1245 | L60: 1213 | M60: 4.57842
A61: 52 | B61: CHOLAFIN | C61: 1666.75 | D61: 1642.72 | E61: 1574.78 | F61: 1482.82 | G61: 1414.88 | H61: 1734.68 | I61: 1802.62 | J61: 1894.58 | K61: 1710.65 | L61: 1550.75 | M61: 13.68519
A62: 53 | B62: CIPLA | C62: 600.15 | D62: 592.63 | E62: 583.52 | F62: 566.88 | G62: 557.77 | H62: 609.27 | I62: 618.38 | J62: 635.02 | K62: 601.75 | L62: 576 | M62: 30.165
A63: 54 | B63: COALINDIA | C63: 289.8 | D63: 290.13 | E63: 288.27 | F63: 286.73 | G63: 284.87 | H63: 291.67 | I63: 293.53 | J63: 295.07 | K63: 292 | L63: 288.6 | M63: 11.81306
A64: 55 | B64: COLPAL | C64: 1105.2 | D64: 1105.08 | E64: 1100.42 | F64: 1095.63 | G64: 1090.97 | H64: 1109.87 | I64: 1114.53 | J64: 1119.32 | K64: 1109.75 | L64: 1100.3 | M64: 3.26504
A65: 56 | B65: CONCOR | C65: 1330.25 | D65: 1329.20 | E65: 1307.40 | F65: 1284.55 | G65: 1262.75 | H65: 1352.05 | I65: 1373.85 | J65: 1396.70 | K65: 1351 | L65: 1306.35 | M65: 4.77015
A66: 57 | B66: COROMANDEL | C66: 528.95 | D66: 532.60 | E66: 523.35 | F66: 517.75 | G66: 508.50 | H66: 538.20 | I66: 547.45 | J66: 553.05 | K66: 541.85 | L66: 527 | M66: 0.75643
A67: 58 | B67: CROMPTON | C67: 230.75 | D67: 230.18 | E67: 227.42 | F67: 224.08 | G67: 221.32 | H67: 233.52 | I67: 236.28 | J67: 239.62 | K67: 232.95 | L67: 226.85 | M67: 6.71342
A68: 59 | B68: CUMMINSIND | C68: 735.55 | D68: 740.18 | E68: 727.37 | F68: 719.18 | G68: 706.37 | H68: 748.37 | I68: 761.18 | J68: 769.37 | K68: 753 | L68: 732 | M68: 7.96666
A69: 60 | B69: DLF | C69: 212.05 | D69: 211.87 | E69: 209.18 | F69: 206.32 | G69: 203.63 | H69: 214.73 | I69: 217.42 | J69: 220.28 | K69: 214.55 | L69: 209 | M69: 48.55224
A70: 61 | B70: DABUR | C70: 357.6 | D70: 358.23 | E70: 353.12 | F70: 348.63 | G70: 343.52 | H70: 362.72 | I70: 367.83 | J70: 372.32 | K70: 363.35 | L70: 353.75 | M70: 9.93987
A71: 62 | B71: DALMIABHA | C71: 3002.3 | D71: 2982.60 | E71: 2930.70 | F71: 2859.10 | G71: 2807.20 | H71: 3054.20 | I71: 3106.10 | J71: 3177.70 | K71: 3034.5 | L71: 2911 | M71: 2.03084
A72: 63 | B72: DHFL | C72: 581.35 | D72: 586.23 | E72: 572.47 | F72: 563.58 | G72: 549.82 | H72: 595.12 | I72: 608.88 | J72: 617.77 | K72: 600 | L72: 577.35 | M72: 49.53546
A73: 64 | B73: DISHTV | C73: 77.75 | D73: 78.28 | E73: 76.57 | F73: 75.38 | G73: 73.67 | H73: 79.47 | I73: 81.18 | J73: 82.37 | K73: 80 | L73: 77.1 | M73: 50.95979
A74: 65 | B74: DIVISLAB | C74: 1178.45 | D74: 1184.48 | E74: 1169.02 | F74: 1159.58 | G74: 1144.12 | H74: 1193.92 | I74: 1209.38 | J74: 1218.82 | K74: 1199.95 | L74: 1175.05 | M74: 3.3533
A75: 66 | B75: LALPATHLAB | C75: 846.9 | D75: 846.02 | E75: 840.88 | F75: 834.87 | G75: 829.73 | H75: 852.03 | I75: 857.17 | J75: 863.18 | K75: 851.15 | L75: 840 | M75: 0.20302
A76: 67 | B76: DRREDDY | C76: 2135.55 | D76: 2124.18 | E76: 2106.37 | F76: 2077.18 | G76: 2059.37 | H76: 2153.37 | I76: 2171.18 | J76: 2200.37 | K76: 2142 | L76: 2095 | M76: 5.45145
A77: 68 | B77: EDELWEISS | C77: 268 | D77: 268.90 | E77: 264.35 | F77: 260.70 | G77: 256.15 | H77: 272.55 | I77: 277.10 | J77: 280.75 | K77: 273.45 | L77: 265.25 | M77: 23.79478
A78: 69 | B78: EICHERMOT | C78: 31065.2 | D78: 31155.05 | E78: 30910.15 | F78: 30755.10 | G78: 30510.20 | H78: 31310.10 | I78: 31555.00 | J78: 31710.05 | K78: 31399.95 | L78: 31000 | M78: 0.25698
A79: 70 | B79: EMAMILTD | C79: 1141.55 | D79: 1134.68 | E79: 1118.37 | F79: 1095.18 | G79: 1078.87 | H79: 1157.87 | I79: 1174.18 | J79: 1197.37 | K79: 1151 | L79: 1111.5 | M79: 1.2279
A80: 71 | B80: ENDURANCE | C80: 1326.3 | D80: 1325.77 | E80: 1306.53 | F80: 1286.77 | G80: 1267.53 | H80: 1345.53 | I80: 1364.77 | J80: 1384.53 | K80: 1345 | L80: 1306 | M80: 0.5768
A81: 72 | B81: ENGINERSIN | C81: 153.65 | D81: 152.88 | E81: 151.52 | F81: 149.38 | G81: 148.02 | H81: 155.02 | I81: 156.38 | J81: 158.52 | K81: 154.25 | L81: 150.75 | M81: 19.94177
A82: 73 | B82: EXIDEIND | C82: 244.85 | D82: 244.57 | E82: 242.28 | F82: 239.72 | G82: 237.43 | H82: 247.13 | I82: 249.42 | J82: 251.98 | K82: 246.85 | L82: 242 | M82: 19.48091
A83: 74 | B83: FEDERALBNK | C83: 97.15 | D83: 97.08 | E83: 95.87 | F83: 94.58 | G83: 93.37 | H83: 98.37 | I83: 99.58 | J83: 100.87 | K83: 98.3 | L83: 95.8 | M83: 73.81564
A84: 75 | B84: GAIL | C84: 332.55 | D84: 331.85 | E84: 328.30 | F84: 324.05 | G84: 320.50 | H84: 336.10 | I84: 339.65 | J84: 343.90 | K84: 335.4 | L84: 327.6 | M84: 25.5059
A85: 76 | B85: GMRINFRA | C85: 19.65 | D85: 19.68 | E85: 19.32 | F85: 18.98 | G85: 18.62 | H85: 20.02 | I85: 20.38 | J85: 20.72 | K85: 20.05 | L85: 19.35 | M85: 234.90369
A86: 77 | B86: GSKCONS | C86: 5936.45 | D86: 5943.37 | E86: 5910.08 | F86: 5883.72 | G86: 5850.43 | H86: 5969.73 | I86: 6003.02 | J86: 6029.38 | K86: 5976.65 | L86: 5917 | M86: 0.19318
A87: 78 | B87: GLAXO | C87: 2418.55 | D87: 2421.20 | E87: 2402.35 | F87: 2386.15 | G87: 2367.30 | H87: 2437.40 | I87: 2456.25 | J87: 2472.45 | K87: 2440.05 | L87: 2405 | M87: 0.07848
A88: 79 | B88: GLENMARK | C88: 579.65 | D88: 577.30 | E88: 571.20 | F88: 562.75 | G88: 556.65 | H88: 585.75 | I88: 591.85 | J88: 600.30 | K88: 583.4 | L88: 568.85 | M88: 5.51306
A89: 80 | B89: GODREJCP | C89: 1114.85 | D89: 1120.72 | E89: 1101.63 | F89: 1088.42 | G89: 1069.33 | H89: 1133.93 | I89: 1153.02 | J89: 1166.23 | K89: 1139.8 | L89: 1107.5 | M89: 3.75785
A90: 81 | B90: GODREJIND | C90: 597.25 | D90: 598.83 | E90: 593.52 | F90: 589.78 | G90: 584.47 | H90: 602.57 | I90: 607.88 | J90: 611.62 | K90: 604.15 | L90: 595.1 | M90: 1.46781
A91: 82 | B91: GRUH | C91: 669.4 | D91: 665.45 | E91: 653.95 | F91: 638.50 | G91: 627.00 | H91: 680.90 | I91: 692.40 | J91: 707.85 | K91: 676.95 | L91: 650 | M91: 3.06225
A92: 83 | B92: GPPL | C92: 140.65 | D92: 141.05 | E92: 139.75 | F92: 138.85 | G92: 137.55 | H92: 141.95 | I92: 143.25 | J92: 144.15 | K92: 142.35 | L92: 140.15 | M92: 0.67162
A93: 84 | B93: GSPL | C93: 188.25 | D93: 188.80 | E93: 185.60 | F93: 182.95 | G93: 179.75 | H93: 191.45 | I93: 194.65 | J93: 197.30 | K93: 192 | L93: 186.15 | M93: 6.07044
A94: 85 | B94: HCLTECH | C94: 1088 | D94: 1083.67 | E94: 1059.33 | F94: 1030.67 | G94: 1006.33 | H94: 1112.33 | I94: 1136.67 | J94: 1165.33 | K94: 1108 | L94: 1055 | M94: 45.43462
A95: 86 | B95: HDFCBANK | C95: 1935.75 | D95: 1925.02 | E95: 1871.03 | F95: 1806.32 | G95: 1752.33 | H95: 1989.73 | I95: 2043.72 | J95: 2108.43 | K95: 1979 | L95: 1860.3 | M95: 38.26155
A96: 87 | B96: HAVELLS | C96: 546.1 | D96: 547.32 | E96: 542.73 | F96: 539.37 | G96: 534.78 | H96: 550.68 | I96: 555.27 | J96: 558.63 | K96: 551.9 | L96: 543.95 | M96: 8.99035
A97: 88 | B97: HEROMOTOCO | C97: 3718.2 | D97: 3715.32 | E97: 3694.23 | F97: 3670.27 | G97: 3649.18 | H97: 3739.28 | I97: 3760.37 | J97: 3784.33 | K97: 3736.4 | L97: 3691.35 | M97: 2.36404
A98: 89 | B98: HEXAWARE | C98: 434.95 | D98: 437.20 | E98: 430.10 | F98: 425.25 | G98: 418.15 | H98: 442.05 | I98: 449.15 | J98: 454.00 | K98: 444.3 | L98: 432.35 | M98: 22.24608
A99: 90 | B99: HINDALCO | C99: 255.6 | D99: 258.28 | E99: 251.62 | F99: 247.63 | G99: 240.97 | H99: 262.27 | I99: 268.93 | J99: 272.92 | K99: 264.95 | L99: 254.3 | M99: 95.59885
A100: 91 | B100: HINDPETRO | C100: 304.3 | D100: 304.90 | E100: 301.20 | F100: 298.10 | G100: 294.40 | H100: 308.00 | I100: 311.70 | J100: 314.80 | K100: 308.6 | L100: 301.8 | M100: 71.32275
A101: 92 | B101: HINDUNILVR | C101: 1452.75 | D101: 1457.92 | E101: 1444.83 | F101: 1436.92 | G101: 1423.83 | H101: 1465.83 | I101: 1478.92 | J101: 1486.83 | K101: 1471 | L101: 1450 | M101: 3.95622
A102: 93 | B102: HINDZINC | C102: 323.2 | D102: 323.33 | E102: 319.17 | F102: 315.13 | G102: 310.97 | H102: 327.37 | I102: 331.53 | J102: 335.57 | K102: 327.5 | L102: 319.3 | M102: 17.74416
A103: 94 | B103: HUDCO | C103: 66.95 | D103: 67.20 | E103: 66.45 | F103: 65.95 | G103: 65.20 | H103: 67.70 | I103: 68.45 | J103: 68.95 | K103: 67.95 | L103: 66.7 | M103: 9.73717
A104: 95 | B104: HDFC | C104: 1830.85 | D104: 1836.15 | E104: 1823.30 | F104: 1815.75 | G104: 1802.90 | H104: 1843.70 | I104: 1856.55 | J104: 1864.10 | K104: 1849 | L104: 1828.6 | M104: 25.1445
A105: 96 | B105: ITC | C105: 275.5 | D105: 275.90 | E105: 274.60 | F105: 273.70 | G105: 272.40 | H105: 276.80 | I105: 278.10 | J105: 279.00 | K105: 277.2 | L105: 275 | M105: 117.4622
A106: 97 | B106: ICICIBANK | C106: 279.4 | D106: 279.15 | E106: 275.50 | F106: 271.60 | G106: 267.95 | H106: 283.05 | I106: 286.70 | J106: 290.60 | K106: 282.8 | L106: 275.25 | M106: 116.20499
A107: 98 | B107: ICICIPRULI | C107: 388.4 | D107: 384.17 | E107: 378.38 | F107: 368.37 | G107: 362.58 | H107: 394.18 | I107: 399.97 | J107: 409.98 | K107: 389.95 | L107: 374.15 | M107: 16.64586
A108: 99 | B108: IDBI | C108: 69.3 | D108: 68.55 | E108: 67.20 | F108: 65.10 | G108: 63.75 | H108: 70.65 | I108: 72.00 | J108: 74.10 | K108: 69.9 | L108: 66.45 | M108: 212.25584
A109: 100 | B109: IDFCBANK | C109: 48.5 | D109: 48.68 | E109: 48.12 | F109: 47.73 | G109: 47.17 | H109: 49.07 | I109: 49.63 | J109: 50.02 | K109: 49.25 | L109: 48.3 | M109: 53.67087
A110: 101 | B110: IDFC | C110: 53.5 | D110: 53.73 | E110: 53.12 | F110: 52.73 | G110: 52.12 | H110: 54.12 | I110: 54.73 | J110: 55.12 | K110: 54.35 | L110: 53.35 | M110: 26.73201
A111: 102 | B111: IRB | C111: 264.45 | D111: 265.48 | E111: 259.07 | F111: 253.68 | G111: 247.27 | H111: 270.87 | I111: 277.28 | J111: 282.67 | K111: 271.9 | L111: 260.1 | M111: 56.69745
A112: 103 | B112: IDEA | C112: 71.65 | D112: 71.55 | E112: 70.80 | F112: 69.95 | G112: 69.20 | H112: 72.40 | I112: 73.15 | J112: 74.00 | K112: 72.3 | L112: 70.7 | M112: 100.58839
A113: 104 | B113: IBULHSGFIN | C113: 1321.1 | D113: 1340.28 | E113: 1293.12 | F113: 1265.13 | G113: 1217.97 | H113: 1368.27 | I113: 1415.43 | J113: 1443.42 | K113: 1387.45 | L113: 1312.3 | M113: 23.69944
A114: 105 | B114: INDIANB | C114: 309.35 | D114: 305.82 | E114: 300.23 | F114: 291.12 | G114: 285.53 | H114: 314.93 | I114: 320.52 | J114: 329.63 | K114: 311.4 | L114: 296.7 | M114: 18.68333
A115: 106 | B115: INDHOTEL | C115: 149.6 | D115: 149.07 | E115: 146.63 | F115: 143.67 | G115: 141.23 | H115: 152.03 | I115: 154.47 | J115: 157.43 | K115: 151.5 | L115: 146.1 | M115: 15.30202
A116: 107 | B116: IOC | C116: 161.7 | D116: 161.97 | E116: 160.03 | F116: 158.37 | G116: 156.43 | H116: 163.63 | I116: 165.57 | J116: 167.23 | K116: 163.9 | L116: 160.3 | M116: 113.18168
A117: 108 | B117: IGL | C117: 294.95 | D117: 294.20 | E117: 291.60 | F117: 288.25 | G117: 285.65 | H117: 297.55 | I117: 300.15 | J117: 303.50 | K117: 296.8 | L117: 290.85 | M117: 20.40541
A118: 109 | B118: INDUSINDBK | C118: 1874.4 | D118: 1856.20 | E118: 1827.00 | F118: 1779.60 | G118: 1750.40 | H118: 1903.60 | I118: 1932.80 | J118: 1980.20 | K118: 1885.4 | L118: 1808.8 | M118: 16.20444
A119: 110 | B119: NAUKRI | C119: 1212.6 | D119: 1209.90 | E119: 1201.80 | F119: 1191.00 | G119: 1182.90 | H119: 1220.70 | I119: 1228.80 | J119: 1239.60 | K119: 1218 | L119: 1199.1 | M119: 2.46076
A120: 111 | B120: INFY | C120: 1187.7 | D120: 1185.78 | E120: 1157.17 | F120: 1126.63 | G120: 1098.02 | H120: 1216.32 | I120: 1244.93 | J120: 1275.47 | K120: 1214.4 | L120: 1155.25 | M120: 109.15319
A121: 112 | B121: INDIGO | C121: 1486.4 | D121: 1489.48 | E121: 1472.97 | F121: 1459.53 | G121: 1443.02 | H121: 1502.92 | I121: 1519.43 | J121: 1532.87 | K121: 1506 | L121: 1476.05 | M121: 4.06232
A122: 113 | B122: IPCALAB | C122: 718.85 | D122: 712.27 | E122: 703.83 | F122: 688.82 | G122: 680.38 | H122: 727.28 | I122: 735.72 | J122: 750.73 | K122: 720.7 | L122: 697.25 | M122: 1.81556
A123: 114 | B123: JSWENERGY | C123: 83.5 | D123: 83.38 | E123: 82.37 | F123: 81.23 | G123: 80.22 | H123: 84.52 | I123: 85.53 | J123: 86.67 | K123: 84.4 | L123: 82.25 | M123: 7.25569
A124: 115 | B124: JSWSTEEL | C124: 321.8 | D124: 322.92 | E124: 318.38 | F124: 314.97 | G124: 310.43 | H124: 326.33 | I124: 330.87 | J124: 334.28 | K124: 327.45 | L124: 319.5 | M124: 31.13729
A125: 116 | B125: JINDALSTEL | C125: 249.9 | D125: 250.77 | E125: 247.78 | F125: 245.67 | G125: 242.68 | H125: 252.88 | I125: 255.87 | J125: 257.98 | K125: 253.75 | L125: 248.65 | M125: 40.13681
A126: 117 | B126: JUBLFOOD | C126: 2460.55 | D126: 2454.85 | E126: 2427.35 | F126: 2394.15 | G126: 2366.65 | H126: 2488.05 | I126: 2515.55 | J126: 2548.75 | K126: 2482.35 | L126: 2421.65 | M126: 5.51997
A127: 118 | B127: JUBILANT | C127: 803.95 | D127: 797.27 | E127: 767.73 | F127: 731.52 | G127: 701.98 | H127: 833.48 | I127: 863.02 | J127: 899.23 | K127: 826.8 | L127: 761.05 | M127: 10.24697
A128: 119 | B128: KARURVYSYA | C128: 104.5 | D128: 104.93 | E128: 103.37 | F128: 102.23 | G128: 100.67 | H128: 106.07 | I128: 107.63 | J128: 108.77 | K128: 106.5 | L128: 103.8 | M128: 5.07519
A129: 120 | B129: KOTAKBANK | C129: 1169 | D129: 1166.47 | E129: 1155.78 | F129: 1142.57 | G129: 1131.88 | H129: 1179.68 | I129: 1190.37 | J129: 1203.58 | K129: 1177.15 | L129: 1153.25 | M129: 13.54154
A130: 121 | B130: L&TFH | C130: 165.75 | D130: 165.35 | E130: 164.00 | F130: 162.25 | G130: 160.90 | H130: 167.10 | I130: 168.45 | J130: 170.20 | K130: 166.7 | L130: 163.6 | M130: 31.86938
A131: 122 | B131: LICHSGFIN | C131: 550.45 | D131: 547.52 | E131: 539.03 | F131: 527.62 | G131: 519.13 | H131: 558.93 | I131: 567.42 | J131: 578.83 | K131: 556 | L131: 536.1 | M131: 21.36054
A132: 123 | B132: LT | C132: 1360 | D132: 1364.50 | E132: 1351.00 | F132: 1342.00 | G132: 1328.50 | H132: 1373.50 | I132: 1387.00 | J132: 1396.00 | K132: 1378 | L132: 1355.5 | M132: 13.64935
A133: 124 | B133: LUPIN | C133: 811.85 | D133: 809.05 | E133: 800.20 | F133: 788.55 | G133: 779.70 | H133: 820.70 | I133: 829.55 | J133: 841.20 | K133: 817.9 | L133: 797.4 | M133: 21.68704
A134: 125 | B134: MRF | C134: 77961.45 | D134: 78101.38 | E134: 77460.07 | F134: 76958.68 | G134: 76317.37 | H134: 78602.77 | I134: 79244.08 | J134: 79745.47 | K134: 78742.7 | L134: 77600 | M134: 0.04238
A135: 126 | B135: MGL | C135: 911.55 | D135: 908.62 | E135: 903.23 | F135: 894.92 | G135: 889.53 | H135: 916.93 | I135: 922.32 | J135: 930.63 | K135: 914 | L135: 900.3 | M135: 2.86832
A136: 127 | B136: M&MFIN | C136: 511.85 | D136: 511.23 | E136: 504.12 | F136: 496.38 | G136: 489.27 | H136: 518.97 | I136: 526.08 | J136: 533.82 | K136: 518.35 | L136: 503.5 | M136: 16.32292
A137: 128 | B137: M&M | C137: 824.3 | D137: 819.38 | E137: 804.97 | F137: 785.63 | G137: 771.22 | H137: 838.72 | I137: 853.13 | J137: 872.47 | K137: 833.8 | L137: 800.05 | M137: 27.51312
A138: 129 | B138: MANAPPURAM | C138: 119.7 | D138: 119.40 | E138: 118.40 | F138: 117.10 | G138: 116.10 | H138: 120.70 | I138: 121.70 | J138: 123.00 | K138: 120.4 | L138: 118.1 | M138: 14.2068
A139: 130 | B139: MRPL | C139: 107.6 | D139: 107.73 | E139: 106.87 | F139: 106.13 | G139: 105.27 | H139: 108.47 | I139: 109.33 | J139: 110.07 | K139: 108.6 | L139: 107 | M139: 4.6263
A140: 131 | B140: MARICO | C140: 316.95 | D140: 317.85 | E140: 315.10 | F140: 313.25 | G140: 310.50 | H140: 319.70 | I140: 322.45 | J140: 324.30 | K140: 320.6 | L140: 316 | M140: 4.84381
A141: 132 | B141: MARUTI | C141: 9064.85 | D141: 9065.27 | E141: 9005.53 | F141: 8946.22 | G141: 8886.48 | H141: 9124.58 | I141: 9184.32 | J141: 9243.63 | K141: 9125 | L141: 9005.95 | M141: 3.02205
A142: 133 | B142: MFSL | C142: 500.5 | D142: 493.83 | E142: 478.67 | F142: 456.83 | G142: 441.67 | H142: 515.67 | I142: 530.83 | J142: 552.67 | K142: 509 | L142: 472 | M142: 18.86785
A143: 134 | B143: MINDTREE | C143: 1000.6 | D143: 998.20 | E143: 968.70 | F143: 936.80 | G143: 907.30 | H143: 1030.10 | I143: 1059.60 | J143: 1091.50 | K143: 1027.7 | L143: 966.3 | M143: 89.86864
A144: 135 | B144: MOTHERSUMI | C144: 351.9 | D144: 352.65 | E144: 350.25 | F144: 348.60 | G144: 346.20 | H144: 354.30 | I144: 356.70 | J144: 358.35 | K144: 355.05 | L144: 351 | M144: 20.65235
A145: 136 | B145: MPHASIS | C145: 931.8 | D145: 928.50 | E145: 912.25 | F145: 892.70 | G145: 876.45 | H145: 948.05 | I145: 964.30 | J145: 983.85 | K145: 944.75 | L145: 908.95 | M145: 5.42992
A146: 137 | B146: MUTHOOTFIN | C146: 437.95 | D146: 435.32 | E146: 430.73 | F146: 423.52 | G146: 418.93 | H146: 442.53 | I146: 447.12 | J146: 454.33 | K146: 439.9 | L146: 428.1 | M146: 8.95976
A147: 138 | B147: NATCOPHARM | C147: 812.05 | D147: 809.57 | E147: 801.23 | F147: 790.42 | G147: 782.08 | H147: 820.38 | I147: 828.72 | J147: 839.53 | K147: 817.9 | L147: 798.75 | M147: 1.48072
A148: 139 | B148: NBCC | C148: 206.1 | D148: 206.63 | E148: 204.87 | F148: 203.63 | G148: 201.87 | H148: 207.87 | I148: 209.63 | J148: 210.87 | K148: 208.4 | L148: 205.4 | M148: 11.43752
A149: 140 | B149: NHPC | C149: 28.15 | D149: 28.17 | E149: 27.83 | F149: 27.52 | G149: 27.18 | H149: 28.48 | I149: 28.82 | J149: 29.13 | K149: 28.5 | L149: 27.85 | M149: 47.94847
A150: 141 | B150: NMDC | C150: 124.5 | D150: 123.98 | E150: 122.57 | F150: 120.63 | G150: 119.22 | H150: 125.92 | I150: 127.33 | J150: 129.27 | K150: 125.4 | L150: 122.05 | M150: 28.43083
A151: 142 | B151: NTPC | C151: 173.6 | D151: 174.08 | E151: 172.67 | F151: 171.73 | G151: 170.32 | H151: 175.02 | I151: 176.43 | J151: 177.37 | K151: 175.5 | L151: 173.15 | M151: 29.74188
A152: 143 | B152: NATIONALUM | C152: 84.85 | D152: 85.48 | E152: 83.92 | F152: 82.98 | G152: 81.42 | H152: 86.42 | I152: 87.98 | J152: 88.92 | K152: 87.05 | L152: 84.55 | M152: 114.17218
A153: 144 | B153: OBEROIRLTY | C153: 577.15 | D153: 565.02 | E153: 538.03 | F153: 498.92 | G153: 471.93 | H153: 604.13 | I153: 631.12 | J153: 670.23 | K153: 592 | L153: 525.9 | M153: 23.14914
A154: 145 | B154: ONGC | C154: 181.05 | D154: 181.40 | E154: 179.05 | F154: 177.05 | G154: 174.70 | H154: 183.40 | I154: 185.75 | J154: 187.75 | K154: 183.75 | L154: 179.4 | M154: 39.30421
A155: 146 | B155: OIL | C155: 231.6 | D155: 230.77 | E155: 228.08 | F155: 224.57 | G155: 221.88 | H155: 234.28 | I155: 236.97 | J155: 240.48 | K155: 233.45 | L155: 227.25 | M155: 8.97579
A156: 147 | B156: OFSS | C156: 4244.9 | D156: 4274.42 | E156: 4185.83 | F156: 4126.77 | G156: 4038.18 | H156: 4333.48 | I156: 4422.07 | J156: 4481.13 | K156: 4363 | L156: 4215.35 | M156: 0.54999
A157: 148 | B157: PCJEWELLER | C157: 294.7 | D157: 296.90 | E157: 291.40 | F157: 288.10 | G157: 282.60 | H157: 300.20 | I157: 305.70 | J157: 309.00 | K157: 302.4 | L157: 293.6 | M157: 32.08717
A158: 149 | B158: PIIND | C158: 865 | D158: 865.67 | E158: 855.33 | F158: 845.67 | G158: 835.33 | H158: 875.33 | I158: 885.67 | J158: 895.33 | K158: 876 | L158: 856 | M158: 2.04312
A159: 150 | B159: PNBHOUSING | C159: 1353.2 | D159: 1349.18 | E159: 1339.37 | F159: 1325.53 | G159: 1315.72 | H159: 1363.02 | I159: 1372.83 | J159: 1386.67 | K159: 1359 | L159: 1335.35 | M159: 0.28502
A160: 151 | B160: PAGEIND | C160: 23955.75 | D160: 24081.90 | E160: 23724.90 | F160: 23494.05 | G160: 23137.05 | H160: 24312.75 | I160: 24669.75 | J160: 24900.60 | K160: 24438.9 | L160: 23851.05 | M160: 0.11775
A161: 152 | B161: PETRONET | C161: 237.05 | D161: 238.35 | E161: 234.70 | F161: 232.35 | G161: 228.70 | H161: 240.70 | I161: 244.35 | J161: 246.70 | K161: 242 | L161: 236 | M161: 23.89971
A162: 153 | B162: PIDILITIND | C162: 1068.05 | D162: 1067.97 | E162: 1063.33 | F162: 1058.62 | G162: 1053.98 | H162: 1072.68 | I162: 1077.32 | J162: 1082.03 | K162: 1072.6 | L162: 1063.25 | M162: 1.97511
A163: 154 | B163: PEL | C163: 2602.65 | D163: 2598.17 | E163: 2557.48 | F163: 2512.32 | G163: 2471.63 | H163: 2643.33 | I163: 2684.02 | J163: 2729.18 | K163: 2638.85 | L163: 2553 | M163: 1.12226
A164: 155 | B164: PFC | C164: 85.65 | D164: 85.82 | E164: 85.08 | F164: 84.52 | G164: 83.78 | H164: 86.38 | I164: 87.12 | J164: 87.68 | K164: 86.55 | L164: 85.25 | M164: 24.89151
A165: 156 | B165: POWERGRID | C165: 206.8 | D165: 206.63 | E165: 205.37 | F165: 203.93 | G165: 202.67 | H165: 208.07 | I165: 209.33 | J165: 210.77 | K165: 207.9 | L165: 205.2 | M165: 23.28743
A166: 157 | B166: PRESTIGE | C166: 307.2 | D166: 306.25 | E166: 302.50 | F166: 297.80 | G166: 294.05 | H166: 310.95 | I166: 314.70 | J166: 319.40 | K166: 310 | L166: 301.55 | M166: 2.64001
A167: 158 | B167: PGHH | C167: 9759.5 | D167: 9760.35 | E167: 9726.75 | F167: 9694.00 | G167: 9660.40 | H167: 9793.10 | I167: 9826.70 | J167: 9859.45 | K167: 9793.95 | L167: 9727.6 | M167: 0.0102
A168: 159 | B168: PNB | C168: 94.1 | D168: 94.25 | E168: 93.10 | F168: 92.10 | G168: 90.95 | H168: 95.25 | I168: 96.40 | J168: 97.40 | K168: 95.4 | L168: 93.25 | M168: 154.14423
A169: 160 | B169: RBLBANK | C169: 502.45 | D169: 504.68 | E169: 498.87 | F169: 495.28 | G169: 489.47 | H169: 508.27 | I169: 514.08 | J169: 517.67 | K169: 510.5 | L169: 501.1 | M169: 5.56274
A170: 161 | B170: RAJESHEXPO | C170: 698.5 | D170: 696.97 | E170: 694.33 | F170: 690.17 | G170: 687.53 | H170: 701.13 | I170: 703.77 | J170: 707.93 | K170: 699.6 | L170: 692.8 | M170: 2.23468
A171: 162 | B171: RELCAPITAL | C171: 429.45 | D171: 428.42 | E171: 422.13 | F171: 414.82 | G171: 408.53 | H171: 435.73 | I171: 442.02 | J171: 449.33 | K171: 434.7 | L171: 421.1 | M171: 29.61334
A172: 163 | B172: RCOM | C172: 19.95 | D172: 20.17 | E172: 19.58 | F172: 19.22 | G172: 18.63 | H172: 20.53 | I172: 21.12 | J172: 21.48 | K172: 20.75 | L172: 19.8 | M172: 325.93683
A173: 164 | B173: RELIANCE | C173: 936 | D173: 936.28 | E173: 928.22 | F173: 920.43 | G173: 912.37 | H173: 944.07 | I173: 952.13 | J173: 959.92 | K173: 944.35 | L173: 928.5 | M173: 35.08515
A174: 165 | B174: RELINFRA | C174: 449.75 | D174: 450.45 | E174: 446.60 | F174: 443.45 | G174: 439.60 | H174: 453.60 | I174: 457.45 | J174: 460.60 | K174: 454.3 | L174: 447.3 | M174: 14.03296
A175: 166 | B175: RPOWER | C175: 38.3 | D175: 38.22 | E175: 37.88 | F175: 37.47 | G175: 37.13 | H175: 38.63 | I175: 38.97 | J175: 39.38 | K175: 38.55 | L175: 37.8 | M175: 36.51237
A176: 167 | B176: RECLTD | C176: 128.1 | D176: 128.65 | E176: 127.00 | F176: 125.90 | G176: 124.25 | H176: 129.75 | I176: 131.40 | J176: 132.50 | K176: 130.3 | L176: 127.55 | M176: 16.12211
A177: 168 | B177: SRF | C177: 2213.3 | D177: 2215.02 | E177: 2198.33 | F177: 2183.37 | G177: 2166.68 | H177: 2229.98 | I177: 2246.67 | J177: 2261.63 | K177: 2231.7 | L177: 2200.05 | M177: 1.15447
A178: 169 | B178: SHREECEM | C178: 17117.25 | D178: 17079.07 | E178: 16948.23 | F178: 16779.22 | G178: 16648.38 | H178: 17248.08 | I178: 17378.92 | J178: 17547.93 | K178: 17209.9 | L178: 16910.05 | M178: 0.10349
A179: 170 | B179: SRTRANSFIN | C179: 1589.4 | D179: 1587.85 | E179: 1563.70 | F179: 1538.00 | G179: 1513.85 | H179: 1613.55 | I179: 1637.70 | J179: 1663.40 | K179: 1612 | L179: 1562.15 | M179: 3.77882
A180: 171 | B180: SIEMENS | C180: 1088.75 | D180: 1084.03 | E180: 1073.67 | F180: 1058.58 | G180: 1048.22 | H180: 1099.12 | I180: 1109.48 | J180: 1124.57 | K180: 1094.4 | L180: 1068.95 | M180: 2.67659
A181: 172 | B181: SBIN | C181: 242.45 | D181: 242.20 | E181: 239.55 | F181: 236.65 | G181: 234.00 | H181: 245.10 | I181: 247.75 | J181: 250.65 | K181: 244.85 | L181: 239.3 | M181: 121.11837
A182: 173 | B182: SAIL | C182: 79.55 | D182: 79.78 | E182: 78.97 | F182: 78.38 | G182: 77.57 | H182: 80.37 | I182: 81.18 | J182: 81.77 | K182: 80.6 | L182: 79.2 | M182: 92.98555
A183: 174 | B183: SPARC | C183: 423.3 | D183: 422.07 | E183: 412.53 | F183: 401.77 | G183: 392.23 | H183: 432.83 | I183: 442.37 | J183: 453.13 | K183: 431.6 | L183: 411.3 | M183: 4.10066
A184: 175 | B184: SUNPHARMA | C184: 514.25 | D184: 511.58 | E184: 507.67 | F184: 501.08 | G184: 497.17 | H184: 518.17 | I184: 522.08 | J184: 528.67 | K184: 515.5 | L184: 505 | M184: 24.24057
A185: 176 | B185: SUNTV | C185: 879.4 | D185: 881.90 | E185: 872.90 | F185: 866.40 | G185: 857.40 | H185: 888.40 | I185: 897.40 | J185: 903.90 | K185: 890.9 | L185: 875.4 | M185: 9.20163
A186: 177 | B186: SUZLON | C186: 11.4 | D186: 11.37 | E186: 11.23 | F186: 11.07 | G186: 10.93 | H186: 11.53 | I186: 11.67 | J186: 11.83 | K186: 11.5 | L186: 11.2 | M186: 177.19061
A187: 178 | B187: SYNDIBANK | C187: 55.2 | D187: 55.22 | E187: 54.73 | F187: 54.27 | G187: 53.78 | H187: 55.68 | I187: 56.17 | J187: 56.63 | K187: 55.7 | L187: 54.75 | M187: 32.79619
A188: 179 | B188: SYNGENE | C188: 642.55 | D188: 644.33 | E188: 637.87 | F188: 633.18 | G188: 626.72 | H188: 649.02 | I188: 655.48 | J188: 660.17 | K188: 650.8 | L188: 639.65 | M188: 0.34934
A189: 180 | B189: TV18BRDCST | C189: 67.15 | D189: 67.53 | E189: 66.42 | F189: 65.68 | G189: 64.57 | H189: 68.27 | I189: 69.38 | J189: 70.12 | K189: 68.65 | L189: 66.8 | M189: 82.88507
A190: 181 | B190: TVSMOTOR | C190: 663.45 | D190: 668.48 | E190: 655.97 | F190: 648.48 | G190: 635.97 | H190: 675.97 | I190: 688.48 | J190: 695.97 | K190: 681 | L190: 661 | M190: 8.34179
A191: 182 | B191: TATACHEM | C191: 731.75 | D191: 732.35 | E191: 728.75 | F191: 725.75 | G191: 722.15 | H191: 735.35 | I191: 738.95 | J191: 741.95 | K191: 735.95 | L191: 729.35 | M191: 2.50258
A192: 183 | B192: TATACOMM | C192: 633.6 | D192: 633.45 | E192: 627.00 | F192: 620.40 | G192: 613.95 | H192: 640.05 | I192: 646.50 | J192: 653.10 | K192: 639.9 | L192: 626.85 | M192: 1.76956
A193: 184 | B193: TCS | C193: 3408.65 | D193: 3452.03 | E193: 3346.17 | F193: 3283.68 | G193: 3177.82 | H193: 3514.52 | I193: 3620.38 | J193: 3682.87 | K193: 3557.9 | L193: 3389.55 | M193: 75.92955
A194: 185 | B194: TATAGLOBAL | C194: 283.6 | D194: 284.68 | E194: 281.57 | F194: 279.53 | G194: 276.42 | H194: 286.72 | I194: 289.83 | J194: 291.87 | K194: 287.8 | L194: 282.65 | M194: 16.87369
A195: 186 | B195: TATAMTRDVR | C195: 188.1 | D195: 189.27 | E195: 186.73 | F195: 185.37 | G195: 182.83 | H195: 190.63 | I195: 193.17 | J195: 194.53 | K195: 191.8 | L195: 187.9 | M195: 25.39162
A196: 187 | B196: TATAMOTORS | C196: 334.05 | D196: 335.52 | E196: 331.53 | F196: 329.02 | G196: 325.03 | H196: 338.03 | I196: 342.02 | J196: 344.53 | K196: 339.5 | L196: 333 | M196: 80.56732
A197: 188 | B197: TATAPOWER | C197: 85.4 | D197: 85.37 | E197: 84.63 | F197: 83.87 | G197: 83.13 | H197: 86.13 | I197: 86.87 | J197: 87.63 | K197: 86.1 | L197: 84.6 | M197: 48.63546
A198: 189 | B198: TATASTEEL | C198: 606.6 | D198: 605.90 | E198: 600.80 | F198: 595.00 | G198: 589.90 | H198: 611.70 | I198: 616.80 | J198: 622.60 | K198: 611 | L198: 600.1 | M198: 45.91161
A199: 190 | B199: TECHM | C199: 702 | D199: 707.37 | E199: 685.23 | F199: 668.47 | G199: 646.33 | H199: 724.13 | I199: 746.27 | J199: 763.03 | K199: 729.5 | L199: 690.6 | M199: 69.98046
A200: 191 | B200: RAMCOCEM | C200: 855.8 | D200: 860.87 | E200: 842.63 | F200: 829.47 | G200: 811.23 | H200: 874.03 | I200: 892.27 | J200: 905.43 | K200: 879.1 | L200: 847.7 | M200: 6.98457
A201: 192 | B201: TITAN | C201: 962.95 | D201: 961.58 | E201: 949.97 | F201: 936.98 | G201: 925.37 | H201: 974.57 | I201: 986.18 | J201: 999.17 | K201: 973.2 | L201: 948.6 | M201: 22.95872
A202: 193 | B202: TORNTPHARM | C202: 1401 | D202: 1402.77 | E202: 1391.08 | F202: 1381.17 | G202: 1369.48 | H202: 1412.68 | I202: 1424.37 | J202: 1434.28 | K202: 1414.45 | L202: 1392.85 | M202: 1.44998
A203: 194 | B203: TORNTPOWER | C203: 240.2 | D203: 238.00 | E203: 234.00 | F203: 227.80 | G203: 223.80 | H203: 244.20 | I203: 248.20 | J203: 254.40 | K203: 242 | L203: 231.8 | M203: 23.74664
A204: 195 | B204: UPL | C204: 753.8 | D204: 760.00 | E204: 745.60 | F204: 737.40 | G204: 723.00 | H204: 768.20 | I204: 782.60 | J204: 790.80 | K204: 774.4 | L204: 751.8 | M204: 10.65116
A205: 196 | B205: ULTRACEMCO | C205: 4143.7 | D205: 4126.15 | E205: 4089.65 | F205: 4035.60 | G205: 3999.10 | H205: 4180.20 | I205: 4216.70 | J205: 4270.75 | K205: 4162.65 | L205: 4072.1 | M205: 1.11251
... 30 more rows

Sheet MidCap Intra
L5: Back To Main Page
A6: FOR INTRA DAY TRADING | K6: =Main!B10 -> 2018-04-24
A9: Sr.no | B9: Scrip | C9: CLOSE RATE | D9: Pivot Point | E9: Supports | H9: Resistances
C10: Point | E10: S1 | F10: S2 | G10: S3 | H10: R1 | I10: R2 | J10: R3 | K10: HIGH | L10: LOW | M10: Total Trade Quanity in Lakhs
A11: 1 | B11: 3MINDIA | C11: 20471.15 | D11: 20508.97 | E11: 20367.93 | F11: 20264.72 | G11: 20123.68 | H11: 20612.18 | I11: 20753.22 | J11: 20856.43 | K11: 20650 | L11: 20405.75 | M11: 0.00498
A12: 2 | B12: 8KMILES | C12: 784 | D12: 787.68 | E12: 772.37 | F12: 760.73 | G12: 745.42 | H12: 799.32 | I12: 814.63 | J12: 826.27 | K12: 803 | L12: 776.05 | M12: 3.51521
A13: 3 | B13: ABB | C13: 1333.3 | D13: 1321.28 | E13: 1292.57 | F13: 1251.83 | G13: 1223.12 | H13: 1362.02 | I13: 1390.73 | J13: 1431.47 | K13: 1350 | L13: 1280.55 | M13: 2.52664
A14: 4 | B14: ACC | C14: 1565.3 | D14: 1566.37 | E14: 1550.93 | F14: 1536.57 | G14: 1521.13 | H14: 1580.73 | I14: 1596.17 | J14: 1610.53 | K14: 1581.8 | L14: 1552 | M14: 3.02886
A15: 5 | B15: AIAENG | C15: 1417.6 | D15: 1415.70 | E15: 1397.95 | F15: 1378.30 | G15: 1360.55 | H15: 1435.35 | I15: 1453.10 | J15: 1472.75 | K15: 1433.45 | L15: 1396.05 | M15: 0.20402
A16: 6 | B16: APLAPOLLO | C16: 2158 | D16: 2145.67 | E16: 2122.33 | F16: 2086.67 | G16: 2063.33 | H16: 2181.33 | I16: 2204.67 | J16: 2240.33 | K16: 2169 | L16: 2110 | M16: 0.07142
A17: 7 | B17: AUBANK | C17: 656.8 | D17: 655.52 | E17: 651.28 | F17: 645.77 | G17: 641.53 | H17: 661.03 | I17: 665.27 | J17: 670.78 | K17: 659.75 | L17: 650 | M17: 0.63508
A18: 8 | B18: AARTIIND | C18: 1325.45 | D18: 1330.32 | E18: 1300.63 | F18: 1275.82 | G18: 1246.13 | H18: 1355.13 | I18: 1384.82 | J18: 1409.63 | K18: 1360 | L18: 1305.5 | M18: 0.50603
A19: 9 | B19: ABAN | C19: 173.2 | D19: 173.85 | E19: 171.80 | F19: 170.40 | G19: 168.35 | H19: 175.25 | I19: 177.30 | J19: 178.70 | K19: 175.9 | L19: 172.45 | M19: 5.54923
A20: 10 | B20: ADANIENT | C20: 139.75 | D20: 139.78 | E20: 137.57 | F20: 135.38 | G20: 133.17 | H20: 141.97 | I20: 144.18 | J20: 146.37 | K20: 142 | L20: 137.6 | M20: 44.66205
A21: 11 | B21: ADANIPORTS | C21: 386.35 | D21: 383.82 | E21: 378.08 | F21: 369.82 | G21: 364.08 | H21: 392.08 | I21: 397.82 | J21: 406.08 | K21: 389.55 | L21: 375.55 | M21: 36.14484
A22: 12 | B22: ADANIPOWER | C22: 25.85 | D22: 25.87 | E22: 25.63 | F22: 25.42 | G22: 25.18 | H22: 26.08 | I22: 26.32 | J22: 26.53 | K22: 26.1 | L22: 25.65 | M22: 61.36777
A23: 13 | B23: ADANITRANS | C23: 170.7 | D23: 171.55 | E23: 167.75 | F23: 164.80 | G23: 161.00 | H23: 174.50 | I23: 178.30 | J23: 181.25 | K23: 175.35 | L23: 168.6 | M23: 37.95969
A24: 14 | B24: ABFRL | C24: 148 | D24: 147.37 | E24: 145.73 | F24: 143.47 | G24: 141.83 | H24: 149.63 | I24: 151.27 | J24: 153.53 | K24: 149 | L24: 145.1 | M24: 1.84263
A25: 15 | B25: ADVENZYMES | C25: 235.15 | D25: 235.40 | E25: 232.20 | F25: 229.25 | G25: 226.05 | H25: 238.35 | I25: 241.55 | J25: 244.50 | K25: 238.6 | L25: 232.45 | M25: 1.26407
A26: 16 | B26: AEGISCHEM | C26: 287.15 | D26: 284.37 | E26: 280.93 | F26: 274.72 | G26: 271.28 | H26: 290.58 | I26: 294.02 | J26: 300.23 | K26: 287.8 | L26: 278.15 | M26: 1.51353
A27: 17 | B27: AHLUCONT | C27: 421.35 | D27: 421.30 | E27: 418.15 | F27: 414.95 | G27: 411.80 | H27: 424.50 | I27: 427.65 | J27: 430.85 | K27: 424.45 | L27: 418.1 | M27: 0.13911
A28: 18 | B28: AJANTPHARM | C28: 1383.2 | D28: 1371.28 | E28: 1349.92 | F28: 1316.63 | G28: 1295.27 | H28: 1404.57 | I28: 1425.93 | J28: 1459.22 | K28: 1392.65 | L28: 1338 | M28: 1.7523
A29: 19 | B29: AKZOINDIA | C29: 1917.3 | D29: 1923.10 | E29: 1910.20 | F29: 1903.10 | G29: 1890.20 | H29: 1930.20 | I29: 1943.10 | J29: 1950.20 | K29: 1936 | L29: 1916 | M29: 0.04301
A30: 20 | B30: APLLTD | C30: 505.3 | D30: 505.13 | E30: 502.17 | F30: 499.03 | G30: 496.07 | H30: 508.27 | I30: 511.23 | J30: 514.37 | K30: 508.1 | L30: 502 | M30: 0.18727
A31: 21 | B31: ALKEM | C31: 1831.7 | D31: 1818.90 | E31: 1787.80 | F31: 1743.90 | G31: 1712.80 | H31: 1862.80 | I31: 1893.90 | J31: 1937.80 | K31: 1850 | L31: 1775 | M31: 0.39257
A32: 22 | B32: ALBK | C32: 49.25 | D32: 48.80 | E32: 47.80 | F32: 46.35 | G32: 45.35 | H32: 50.25 | I32: 51.25 | J32: 52.70 | K32: 49.8 | L32: 47.35 | M32: 41.32139
A33: 23 | B33: ALLCARGO | C33: 151.25 | D33: 152.05 | E33: 149.65 | F33: 148.05 | G33: 145.65 | H33: 153.65 | I33: 156.05 | J33: 157.65 | K33: 154.45 | L33: 150.45 | M33: 2.39245
A34: 24 | B34: AMARAJABAT | C34: 860.4 | D34: 857.67 | E34: 847.13 | F34: 833.87 | G34: 823.33 | H34: 870.93 | I34: 881.47 | J34: 894.73 | K34: 868.2 | L34: 844.4 | M34: 5.02976
A35: 25 | B35: AMBUJACEM | C35: 247.6 | D35: 247.28 | E35: 245.57 | F35: 243.53 | G35: 241.82 | H35: 249.32 | I35: 251.03 | J35: 253.07 | K35: 249 | L35: 245.25 | M35: 10.51719
A36: 26 | B36: ANDHRABANK | C36: 39.4 | D36: 38.98 | E36: 38.27 | F36: 37.13 | G36: 36.42 | H36: 40.12 | I36: 40.83 | J36: 41.97 | K36: 39.7 | L36: 37.85 | M36: 58.11838
A37: 27 | B37: APARINDS | C37: 785.05 | D37: 786.45 | E37: 774.90 | F37: 764.75 | G37: 753.20 | H37: 796.60 | I37: 808.15 | J37: 818.30 | K37: 798 | L37: 776.3 | M37: 0.15049
A38: 28 | B38: APOLLOHOSP | C38: 1132.2 | D38: 1133.95 | E38: 1119.90 | F38: 1107.60 | G38: 1093.55 | H38: 1146.25 | I38: 1160.30 | J38: 1172.60 | K38: 1148 | L38: 1121.65 | M38: 1.42729
A39: 29 | B39: APOLLOTYRE | C39: 289.1 | D39: 287.85 | E39: 285.20 | F39: 281.30 | G39: 278.65 | H39: 291.75 | I39: 294.40 | J39: 298.30 | K39: 290.5 | L39: 283.95 | M39: 23.74803
A40: 30 | B40: ARVIND | C40: 425.2 | D40: 424.42 | E40: 420.03 | F40: 414.87 | G40: 410.48 | H40: 429.58 | I40: 433.97 | J40: 439.13 | K40: 428.8 | L40: 419.25 | M40: 12.51242
A41: 31 | B41: ASHOKLEY | C41: 159.45 | D41: 158.35 | E41: 156.75 | F41: 154.05 | G41: 152.45 | H41: 161.05 | I41: 162.65 | J41: 165.35 | K41: 159.95 | L41: 155.65 | M41: 221.19097
A42: 32 | B42: ASHOKA | C42: 265.4 | D42: 265.78 | E42: 263.12 | F42: 260.83 | G42: 258.17 | H42: 268.07 | I42: 270.73 | J42: 273.02 | K42: 268.45 | L42: 263.5 | M42: 0.61816
A43: 33 | B43: ASIANPAINT | C43: 1178.7 | D43: 1168.50 | E43: 1155.60 | F43: 1132.50 | G43: 1119.60 | H43: 1191.60 | I43: 1204.50 | J43: 1227.60 | K43: 1181.4 | L43: 1145.4 | M43: 5.54353
A44: 34 | B44: ASTRAZEN | C44: 1014.1 | D44: 1004.70 | E44: 989.40 | F44: 964.70 | G44: 949.40 | H44: 1029.40 | I44: 1044.70 | J44: 1069.40 | K44: 1020 | L44: 980 | M44: 0.04066
A45: 35 | B45: ASTRAL | C45: 931.65 | D45: 928.72 | E45: 918.43 | F45: 905.22 | G45: 894.93 | H45: 941.93 | I45: 952.22 | J45: 965.43 | K45: 939 | L45: 915.5 | M45: 0.11877
A46: 36 | B46: ATUL | C46: 2765.8 | D46: 2753.95 | E46: 2732.95 | F46: 2700.10 | G46: 2679.10 | H46: 2786.80 | I46: 2807.80 | J46: 2840.65 | K46: 2774.95 | L46: 2721.1 | M46: 0.01988
A47: 37 | B47: AUROPHARMA | C47: 642.55 | D47: 633.12 | E47: 621.23 | F47: 599.92 | G47: 588.03 | H47: 654.43 | I47: 666.32 | J47: 687.63 | K47: 645 | L47: 611.8 | M47: 31.38957
A48: 38 | B48: AVANTIFEED | C48: 2364.8 | D48: 2404.77 | E48: 2311.53 | F48: 2258.27 | G48: 2165.03 | H48: 2458.03 | I48: 2551.27 | J48: 2604.53 | K48: 2498 | L48: 2351.5 | M48: 4.11162
A49: 39 | B49: DMART | C49: 1489.5 | D49: 1486.97 | E49: 1477.53 | F49: 1465.57 | G49: 1456.13 | H49: 1498.93 | I49: 1508.37 | J49: 1520.33 | K49: 1496.4 | L49: 1475 | M49: 3.74689
A50: 40 | B50: AXISBANK | C50: 506.2 | D50: 505.80 | E50: 500.40 | F50: 494.60 | G50: 489.20 | H50: 511.60 | I50: 517.00 | J50: 522.80 | K50: 511.2 | L50: 500 | M50: 47.66412
A51: 41 | B51: BASF | C51: 2067.55 | D51: 2088.00 | E51: 2033.00 | F51: 1998.45 | G51: 1943.45 | H51: 2122.55 | I51: 2177.55 | J51: 2212.10 | K51: 2143 | L51: 2053.45 | M51: 0.05386
A52: 42 | B52: BEML | C52: 1067.7 | D52: 1073.72 | E52: 1055.43 | F52: 1043.17 | G52: 1024.88 | H52: 1085.98 | I52: 1104.27 | J52: 1116.53 | K52: 1092 | L52: 1061.45 | M52: 3.0482
A53: 43 | B53: BFUTILITIE | C53: 409.3 | D53: 412.80 | E53: 403.90 | F53: 398.50 | G53: 389.60 | H53: 418.20 | I53: 427.10 | J53: 432.50 | K53: 421.7 | L53: 407.4 | M53: 4.49308
A54: 44 | B54: BGRENERGY | C54: 109.85 | D54: 110.72 | E54: 108.43 | F54: 107.02 | G54: 104.73 | H54: 112.13 | I54: 114.42 | J54: 115.83 | K54: 113 | L54: 109.3 | M54: 0.54382
A55: 45 | B55: BSE | C55: 813.1 | D55: 814.95 | E55: 806.10 | F55: 799.10 | G55: 790.25 | H55: 821.95 | I55: 830.80 | J55: 837.80 | K55: 823.8 | L55: 807.95 | M55: 0.59778
A56: 46 | B56: BAJAJ-AUTO | C56: 2852.15 | D56: 2850.72 | E56: 2821.43 | F56: 2790.72 | G56: 2761.43 | H56: 2881.43 | I56: 2910.72 | J56: 2941.43 | K56: 2880 | L56: 2820 | M56: 2.35602
A57: 47 | B57: BAJAJCORP | C57: 491.9 | D57: 489.88 | E57: 483.02 | F57: 474.13 | G57: 467.27 | H57: 498.77 | I57: 505.63 | J57: 514.52 | K57: 496.75 | L57: 481 | M57: 0.20726
A58: 48 | B58: BAJAJELEC | C58: 682 | D58: 671.57 | E58: 648.33 | F58: 614.67 | G58: 591.43 | H58: 705.23 | I58: 728.47 | J58: 762.13 | K58: 694.8 | L58: 637.9 | M58: 13.8959
A59: 49 | B59: BAJFINANCE | C59: 1899.35 | D59: 1893.30 | E59: 1866.85 | F59: 1834.35 | G59: 1807.90 | H59: 1925.80 | I59: 1952.25 | J59: 1984.75 | K59: 1919.75 | L59: 1860.8 | M59: 7.62125
A60: 50 | B60: BAJAJFINSV | C60: 5294 | D60: 5299.83 | E60: 5250.82 | F60: 5207.63 | G60: 5158.62 | H60: 5343.02 | I60: 5392.03 | J60: 5435.22 | K60: 5348.85 | L60: 5256.65 | M60: 0.87805
A61: 51 | B61: BAJAJHIND | C61: 8.95 | D61: 8.98 | E61: 8.82 | F61: 8.68 | G61: 8.52 | H61: 9.12 | I61: 9.28 | J61: 9.42 | K61: 9.15 | L61: 8.85 | M61: 17.3443
A62: 52 | B62: BAJAJHLDNG | C62: 2602.4 | D62: 2608.02 | E62: 2594.38 | F62: 2586.37 | G62: 2572.73 | H62: 2616.03 | I62: 2629.67 | J62: 2637.68 | K62: 2621.65 | L62: 2600 | M62: 0.06957
A63: 53 | B63: BALKRISIND | C63: 1281.7 | D63: 1287.82 | E63: 1271.88 | F63: 1262.07 | G63: 1246.13 | H63: 1297.63 | I63: 1313.57 | J63: 1323.38 | K63: 1303.75 | L63: 1278 | M63: 3.83275
A64: 54 | B64: BALLARPUR | C64: 13.7 | D64: 13.63 | E64: 13.37 | F64: 13.03 | G64: 12.77 | H64: 13.97 | I64: 14.23 | J64: 14.57 | K64: 13.9 | L64: 13.3 | M64: 8.09479
A65: 55 | B65: BALMLAWRIE | C65: 219.15 | D65: 220.07 | E65: 217.63 | F65: 216.12 | G65: 213.68 | H65: 221.58 | I65: 224.02 | J65: 225.53 | K65: 222.5 | L65: 218.55 | M65: 0.44608
A66: 56 | B66: BALRAMCHIN | C66: 68.65 | D66: 68.53 | E66: 67.37 | F66: 66.08 | G66: 64.92 | H66: 69.82 | I66: 70.98 | J66: 72.27 | K66: 69.7 | L66: 67.25 | M66: 80.51648
A67: 57 | B67: BANKBARODA | C67: 144.15 | D67: 143.82 | E67: 141.83 | F67: 139.52 | G67: 137.53 | H67: 146.13 | I67: 148.12 | J67: 150.43 | K67: 145.8 | L67: 141.5 | M67: 78.41803
A68: 58 | B68: BANKINDIA | C68: 102.5 | D68: 102.15 | E68: 100.30 | F68: 98.10 | G68: 96.25 | H68: 104.35 | I68: 106.20 | J68: 108.40 | K68: 104 | L68: 99.95 | M68: 90.95306
A69: 59 | B69: BATAINDIA | C69: 785.95 | D69: 790.05 | E69: 778.10 | F69: 770.25 | G69: 758.30 | H69: 797.90 | I69: 809.85 | J69: 817.70 | K69: 802 | L69: 782.2 | M69: 8.74732
A70: 60 | B70: BERGEPAINT | C70: 267.95 | D70: 267.83 | E70: 265.67 | F70: 263.38 | G70: 261.22 | H70: 270.12 | I70: 272.28 | J70: 274.57 | K70: 270 | L70: 265.55 | M70: 2.2745
A71: 61 | B71: BEL | C71: 137.25 | D71: 136.20 | E71: 133.50 | F71: 129.75 | G71: 127.05 | H71: 139.95 | I71: 142.65 | J71: 146.40 | K71: 138.9 | L71: 132.45 | M71: 87.25397
A72: 62 | B72: BHARATFIN | C72: 1159.55 | D72: 1146.85 | E72: 1127.70 | F72: 1095.85 | G72: 1076.70 | H72: 1178.70 | I72: 1197.85 | J72: 1229.70 | K72: 1166 | L72: 1115 | M72: 18.13562
A73: 63 | B73: BHARATFORG | C73: 759.9 | D73: 760.22 | E73: 755.43 | F73: 750.97 | G73: 746.18 | H73: 764.68 | I73: 769.47 | J73: 773.93 | K73: 765 | L73: 755.75 | M73: 5.49829
A74: 64 | B74: BHEL | C74: 89.3 | D74: 89.60 | E74: 88.75 | F74: 88.20 | G74: 87.35 | H74: 90.15 | I74: 91.00 | J74: 91.55 | K74: 90.45 | L74: 89.05 | M74: 35.18684
A75: 65 | B75: BPCL | C75: 381.35 | D75: 380.05 | E75: 374.90 | F75: 368.45 | G75: 363.30 | H75: 386.50 | I75: 391.65 | J75: 398.10 | K75: 385.2 | L75: 373.6 | M75: 86.84457
A76: 66 | B76: BHARTIARTL | C76: 402.85 | D76: 402.07 | E76: 397.63 | F76: 392.42 | G76: 387.98 | H76: 407.28 | I76: 411.72 | J76: 416.93 | K76: 406.5 | L76: 396.85 | M76: 37.80866
A77: 67 | B77: INFRATEL | C77: 328 | D77: 328.37 | E77: 324.13 | F77: 320.27 | G77: 316.03 | H77: 332.23 | I77: 336.47 | J77: 340.33 | K77: 332.6 | L77: 324.5 | M77: 24.75687
A78: 68 | B78: BHUSANSTL | C78: 32.65 | D78: 33.67 | E78: 31.48 | F78: 30.32 | G78: 28.13 | H78: 34.83 | I78: 37.02 | J78: 38.18 | K78: 35.85 | L78: 32.5 | M78: 66.52228
A79: 69 | B79: BIOCON | C79: 636 | D79: 634.52 | E79: 628.48 | F79: 620.97 | G79: 614.93 | H79: 642.03 | I79: 648.07 | J79: 655.58 | K79: 640.55 | L79: 627 | M79: 15.3005
A80: 70 | B80: BIRLACORPN | C80: 743.05 | D80: 741.92 | E80: 738.78 | F80: 734.52 | G80: 731.38 | H80: 746.18 | I80: 749.32 | J80: 753.58 | K80: 745.05 | L80: 737.65 | M80: 0.26704
A81: 71 | B81: BLISSGVS | C81: 204.25 | D81: 203.73 | E81: 201.02 | F81: 197.78 | G81: 195.07 | H81: 206.97 | I81: 209.68 | J81: 212.92 | K81: 206.45 | L81: 200.5 | M81: 2.48502
A82: 72 | B82: BLUEDART | C82: 3847.9 | D82: 3853.07 | E82: 3822.88 | F82: 3797.87 | G82: 3767.68 | H82: 3878.08 | I82: 3908.27 | J82: 3933.28 | K82: 3883.25 | L82: 3828.05 | M82: 0.11711
A83: 73 | B83: BLUESTARCO | C83: 794.8 | D83: 796.57 | E83: 788.23 | F83: 781.67 | G83: 773.33 | H83: 803.13 | I83: 811.47 | J83: 818.03 | K83: 804.9 | L83: 790 | M83: 0.43733
A84: 74 | B84: BBTC | C84: 1554.3 | D84: 1560.97 | E84: 1496.93 | F84: 1439.57 | G84: 1375.53 | H84: 1618.33 | I84: 1682.37 | J84: 1739.73 | K84: 1625 | L84: 1503.6 | M84: 9.08959
A85: 75 | B85: BOMDYEING | C85: 282.95 | D85: 282.62 | E85: 276.83 | F85: 270.72 | G85: 264.93 | H85: 288.73 | I85: 294.52 | J85: 300.63 | K85: 288.4 | L85: 276.5 | M85: 42.96581
A86: 76 | B86: BRFL | C86: 29.9 | D86: 30.47 | E86: 29.33 | F86: 28.77 | G86: 27.63 | H86: 31.03 | I86: 32.17 | J86: 32.73 | K86: 31.6 | L86: 29.9 | M86: 1.62406
A87: 77 | B87: BOSCHLTD | C87: 19693.1 | D87: 19642.08 | E87: 19464.22 | F87: 19235.33 | G87: 19057.47 | H87: 19870.97 | I87: 20048.83 | J87: 20277.72 | K87: 19819.95 | L87: 19413.2 | M87: 0.21505
A88: 78 | B88: BRIGADE | C88: 249.9 | D88: 253.02 | E88: 244.98 | F88: 240.07 | G88: 232.03 | H88: 257.93 | I88: 265.97 | J88: 270.88 | K88: 261.05 | L88: 248.1 | M88: 0.54629
A89: 79 | B89: BRITANNIA | C89: 5313.05 | D89: 5327.43 | E89: 5290.07 | F89: 5267.08 | G89: 5229.72 | H89: 5350.42 | I89: 5387.78 | J89: 5410.77 | K89: 5364.8 | L89: 5304.45 | M89: 0.90845
A90: 80 | B90: CARERATING | C90: 1280.55 | D90: 1279.88 | E90: 1269.77 | F90: 1258.98 | G90: 1248.87 | H90: 1290.67 | I90: 1300.78 | J90: 1311.57 | K90: 1290 | L90: 1269.1 | M90: 0.18661
A91: 81 | B91: CCL | C91: 291.55 | D91: 291.35 | E91: 290.00 | F91: 288.45 | G91: 287.10 | H91: 292.90 | I91: 294.25 | J91: 295.80 | K91: 292.7 | L91: 289.8 | M91: 0.4787
A92: 82 | B92: CGPOWER | C92: 82.55 | D92: 82.92 | E92: 81.73 | F92: 80.92 | G92: 79.73 | H92: 83.73 | I92: 84.92 | J92: 85.73 | K92: 84.1 | L92: 82.1 | M92: 7.19577
A93: 83 | B93: CRISIL | C93: 1958.8 | D93: 1947.05 | E93: 1931.75 | F93: 1904.70 | G93: 1889.40 | H93: 1974.10 | I93: 1989.40 | J93: 2016.45 | K93: 1962.35 | L93: 1920 | M93: 0.22691
A94: 84 | B94: CADILAHC | C94: 398.95 | D94: 395.67 | E94: 389.38 | F94: 379.82 | G94: 373.53 | H94: 405.23 | I94: 411.52 | J94: 421.08 | K94: 401.95 | L94: 386.1 | M94: 20.19759
A95: 85 | B95: CANFINHOME | C95: 435.4 | D95: 435.17 | E95: 431.33 | F95: 427.27 | G95: 423.43 | H95: 439.23 | I95: 443.07 | J95: 447.13 | K95: 439 | L95: 431.1 | M95: 4.85132
A96: 86 | B96: CANBK | C96: 263.15 | D96: 259.73 | E96: 254.47 | F96: 245.78 | G96: 240.52 | H96: 268.42 | I96: 273.68 | J96: 282.37 | K96: 265 | L96: 251.05 | M96: 141.8277
A97: 87 | B97: CAPF | C97: 638.8 | D97: 640.45 | E97: 635.35 | F97: 631.90 | G97: 626.80 | H97: 643.90 | I97: 649.00 | J97: 652.45 | K97: 645.55 | L97: 637 | M97: 1.77441
A98: 88 | B98: CAPLIPOINT | C98: 600.05 | D98: 601.37 | E98: 595.73 | F98: 591.42 | G98: 585.78 | H98: 605.68 | I98: 611.32 | J98: 615.63 | K98: 607 | L98: 597.05 | M98: 0.1203
A99: 89 | B99: CARBORUNIV | C99: 366.1 | D99: 365.47 | E99: 360.93 | F99: 355.77 | G99: 351.23 | H99: 370.63 | I99: 375.17 | J99: 380.33 | K99: 370 | L99: 360.3 | M99: 0.52429
A100: 90 | B100: CASTROLIND | C100: 200.75 | D100: 201.33 | E100: 199.42 | F100: 198.08 | G100: 196.17 | H100: 202.67 | I100: 204.58 | J100: 205.92 | K100: 203.25 | L100: 200 | M100: 10.00263
A101: 91 | B101: CEATLTD | C101: 1557.75 | D101: 1561.42 | E101: 1544.43 | F101: 1531.12 | G101: 1514.13 | H101: 1574.73 | I101: 1591.72 | J101: 1605.03 | K101: 1578.4 | L101: 1548.1 | M101: 6.46337
A102: 92 | B102: CENTRALBK | C102: 70.9 | D102: 70.47 | E102: 69.93 | F102: 68.97 | G102: 68.43 | H102: 71.43 | I102: 71.97 | J102: 72.93 | K102: 71 | L102: 69.5 | M102: 15.67444
A103: 93 | B103: CENTURYPLY | C103: 353.45 | D103: 351.98 | E103: 346.97 | F103: 340.48 | G103: 335.47 | H103: 358.47 | I103: 363.48 | J103: 369.97 | K103: 357 | L103: 345.5 | M103: 1.84614
A104: 94 | B104: CENTURYTEX | C104: 1239.95 | D104: 1232.65 | E104: 1220.30 | F104: 1200.65 | G104: 1188.30 | H104: 1252.30 | I104: 1264.65 | J104: 1284.30 | K104: 1245 | L104: 1213 | M104: 4.57842
A105: 95 | B105: CERA | C105: 3142 | D105: 3159.00 | E105: 3118.00 | F105: 3094.00 | G105: 3053.00 | H105: 3183.00 | I105: 3224.00 | J105: 3248.00 | K105: 3200 | L105: 3135 | M105: 0.04415
A106: 96 | B106: CHAMBLFERT | C106: 196.85 | D106: 198.30 | E106: 192.75 | F106: 188.65 | G106: 183.10 | H106: 202.40 | I106: 207.95 | J106: 212.05 | K106: 203.85 | L106: 194.2 | M106: 8.51267
A107: 97 | B107: CHENNPETRO | C107: 330.75 | D107: 329.85 | E107: 326.70 | F107: 322.65 | G107: 319.50 | H107: 333.90 | I107: 337.05 | J107: 341.10 | K107: 333 | L107: 325.8 | M107: 3.87143
A108: 98 | B108: CHOLAFIN | C108: 1666.75 | D108: 1642.72 | E108: 1574.78 | F108: 1482.82 | G108: 1414.88 | H108: 1734.68 | I108: 1802.62 | J108: 1894.58 | K108: 1710.65 | L108: 1550.75 | M108: 13.68519
A109: 99 | B109: CIPLA | C109: 600.15 | D109: 592.63 | E109: 583.52 | F109: 566.88 | G109: 557.77 | H109: 609.27 | I109: 618.38 | J109: 635.02 | K109: 601.75 | L109: 576 | M109: 30.165
A110: 100 | B110: CUB | C110: 180.65 | D110: 180.28 | E110: 179.37 | F110: 178.08 | G110: 177.17 | H110: 181.57 | I110: 182.48 | J110: 183.77 | K110: 181.2 | L110: 179 | M110: 2.50605
A111: 101 | B111: COALINDIA | C111: 289.8 | D111: 290.13 | E111: 288.27 | F111: 286.73 | G111: 284.87 | H111: 291.67 | I111: 293.53 | J111: 295.07 | K111: 292 | L111: 288.6 | M111: 11.81306
A112: 102 | B112: COCHINSHIP | C112: 539.9 | D112: 534.65 | E112: 527.30 | F112: 514.70 | G112: 507.35 | H112: 547.25 | I112: 554.60 | J112: 567.20 | K112: 542 | L112: 522.05 | M112: 1.28882
A113: 103 | B113: COFFEEDAY | C113: 325.75 | D113: 322.22 | E113: 312.53 | F113: 299.32 | G113: 289.63 | H113: 335.43 | I113: 345.12 | J113: 358.33 | K113: 331.9 | L113: 309 | M113: 10.16178
A114: 104 | B114: COLPAL | C114: 1105.2 | D114: 1105.08 | E114: 1100.42 | F114: 1095.63 | G114: 1090.97 | H114: 1109.87 | I114: 1114.53 | J114: 1119.32 | K114: 1109.75 | L114: 1100.3 | M114: 3.26504
A115: 105 | B115: CONCOR | C115: 1330.25 | D115: 1329.20 | E115: 1307.40 | F115: 1284.55 | G115: 1262.75 | H115: 1352.05 | I115: 1373.85 | J115: 1396.70 | K115: 1351 | L115: 1306.35 | M115: 4.77015
A116: 106 | B116: COROMANDEL | C116: 528.95 | D116: 532.60 | E116: 523.35 | F116: 517.75 | G116: 508.50 | H116: 538.20 | I116: 547.45 | J116: 553.05 | K116: 541.85 | L116: 527 | M116: 0.75643
A117: 107 | B117: CORPBANK | C117: 30 | D117: 30.08 | E117: 29.72 | F117: 29.43 | G117: 29.07 | H117: 30.37 | I117: 30.73 | J117: 31.02 | K117: 30.45 | L117: 29.8 | M117: 1.11058
A118: 108 | B118: COX&KINGS | C118: 235.95 | D118: 236.08 | E118: 233.72 | F118: 231.48 | G118: 229.12 | H118: 238.32 | I118: 240.68 | J118: 242.92 | K118: 238.45 | L118: 233.85 | M118: 0.54938
A119: 109 | B119: CROMPTON | C119: 230.75 | D119: 230.18 | E119: 227.42 | F119: 224.08 | G119: 221.32 | H119: 233.52 | I119: 236.28 | J119: 239.62 | K119: 232.95 | L119: 226.85 | M119: 6.71342
A120: 110 | B120: CUMMINSIND | C120: 735.55 | D120: 740.18 | E120: 727.37 | F120: 719.18 | G120: 706.37 | H120: 748.37 | I120: 761.18 | J120: 769.37 | K120: 753 | L120: 732 | M120: 7.96666
A121: 111 | B121: CYIENT | C121: 717.25 | D121: 716.00 | E121: 703.00 | F121: 688.75 | G121: 675.75 | H121: 730.25 | I121: 743.25 | J121: 757.50 | K121: 729 | L121: 701.75 | M121: 11.73321
A122: 112 | B122: DBREALTY | C122: 58.55 | D122: 58.62 | E122: 56.83 | F122: 55.12 | G122: 53.33 | H122: 60.33 | I122: 62.12 | J122: 63.83 | K122: 60.4 | L122: 56.9 | M122: 7.10501
A123: 113 | B123: DBCORP | C123: 316.25 | D123: 314.08 | E123: 310.37 | F123: 304.48 | G123: 300.77 | H123: 319.97 | I123: 323.68 | J123: 329.57 | K123: 317.8 | L123: 308.2 | M123: 0.21582
A124: 114 | B124: DCBBANK | C124: 196.45 | D124: 196.42 | E124: 192.58 | F124: 188.72 | G124: 184.88 | H124: 200.28 | I124: 204.12 | J124: 207.98 | K124: 200.25 | L124: 192.55 | M124: 28.70957
A125: 115 | B125: DCMSHRIRAM | C125: 435.85 | D125: 440.28 | E125: 430.57 | F125: 425.28 | G125: 415.57 | H125: 445.57 | I125: 455.28 | J125: 460.57 | K125: 450 | L125: 435 | M125: 1.57268
A126: 116 | B126: DLF | C126: 212.05 | D126: 211.87 | E126: 209.18 | F126: 206.32 | G126: 203.63 | H126: 214.73 | I126: 217.42 | J126: 220.28 | K126: 214.55 | L126: 209 | M126: 48.55224
A127: 117 | B127: DABUR | C127: 357.6 | D127: 358.23 | E127: 353.12 | F127: 348.63 | G127: 343.52 | H127: 362.72 | I127: 367.83 | J127: 372.32 | K127: 363.35 | L127: 353.75 | M127: 9.93987
A128: 118 | B128: DALMIABHA | C128: 3002.3 | D128: 2982.60 | E128: 2930.70 | F128: 2859.10 | G128: 2807.20 | H128: 3054.20 | I128: 3106.10 | J128: 3177.70 | K128: 3034.5 | L128: 2911 | M128: 2.03084
A129: 119 | B129: DEEPAKFERT | C129: 383.25 | D129: 384.88 | E129: 378.97 | F129: 374.68 | G129: 368.77 | H129: 389.17 | I129: 395.08 | J129: 399.37 | K129: 390.8 | L129: 380.6 | M129: 1.58645
A130: 120 | B130: DELTACORP | C130: 284.65 | D130: 285.55 | E130: 279.20 | F130: 273.75 | G130: 267.40 | H130: 291.00 | I130: 297.35 | J130: 302.80 | K130: 291.9 | L130: 280.1 | M130: 25.72446
A131: 121 | B131: DEN | C131: 99.7 | D131: 100.25 | E131: 98.65 | F131: 97.60 | G131: 96.00 | H131: 101.30 | I131: 102.90 | J131: 103.95 | K131: 101.85 | L131: 99.2 | M131: 1.3015
A132: 122 | B132: DENABANK | C132: 18.35 | D132: 18.45 | E132: 18.20 | F132: 18.05 | G132: 17.80 | H132: 18.60 | I132: 18.85 | J132: 19.00 | K132: 18.7 | L132: 18.3 | M132: 9.62972
A133: 123 | B133: DHFL | C133: 581.35 | D133: 586.23 | E133: 572.47 | F133: 563.58 | G133: 549.82 | H133: 595.12 | I133: 608.88 | J133: 617.77 | K133: 600 | L133: 577.35 | M133: 49.53546
A134: 124 | B134: DHANUKA | C134: 597.5 | D134: 595.27 | E134: 588.53 | F134: 579.57 | G134: 572.83 | H134: 604.23 | I134: 610.97 | J134: 619.93 | K134: 602 | L134: 586.3 | M134: 0.09201
A135: 125 | B135: DBL | C135: 1134.4 | D135: 1142.80 | E135: 1123.60 | F135: 1112.80 | G135: 1093.60 | H135: 1153.60 | I135: 1172.80 | J135: 1183.60 | K135: 1162 | L135: 1132 | M135: 1.57833
A136: 126 | B136: DISHTV | C136: 77.75 | D136: 78.28 | E136: 76.57 | F136: 75.38 | G136: 73.67 | H136: 79.47 | I136: 81.18 | J136: 82.37 | K136: 80 | L136: 77.1 | M136: 50.95979
A137: 127 | B137: DIVISLAB | C137: 1178.45 | D137: 1184.48 | E137: 1169.02 | F137: 1159.58 | G137: 1144.12 | H137: 1193.92 | I137: 1209.38 | J137: 1218.82 | K137: 1199.95 | L137: 1175.05 | M137: 3.3533
A138: 128 | B138: LALPATHLAB | C138: 846.9 | D138: 846.02 | E138: 840.88 | F138: 834.87 | G138: 829.73 | H138: 852.03 | I138: 857.17 | J138: 863.18 | K138: 851.15 | L138: 840 | M138: 0.20302
A139: 129 | B139: DRREDDY | C139: 2135.55 | D139: 2124.18 | E139: 2106.37 | F139: 2077.18 | G139: 2059.37 | H139: 2153.37 | I139: 2171.18 | J139: 2200.37 | K139: 2142 | L139: 2095 | M139: 5.45145
A140: 130 | B140: DREDGECORP | C140: 623.9 | D140: 623.97 | E140: 618.93 | F140: 613.97 | G140: 608.93 | H140: 628.93 | I140: 633.97 | J140: 638.93 | K140: 629 | L140: 619 | M140: 0.97292
A141: 131 | B141: EIDPARRY | C141: 273 | D141: 272.55 | E141: 268.25 | F141: 263.50 | G141: 259.20 | H141: 277.30 | I141: 281.60 | J141: 286.35 | K141: 276.85 | L141: 267.8 | M141: 0.5251
A142: 132 | B142: EIHOTEL | C142: 191.65 | D142: 193.02 | E142: 189.53 | F142: 187.42 | G142: 183.93 | H142: 195.13 | I142: 198.62 | J142: 200.73 | K142: 196.5 | L142: 190.9 | M142: 5.63078
A143: 133 | B143: EDELWEISS | C143: 268 | D143: 268.90 | E143: 264.35 | F143: 260.70 | G143: 256.15 | H143: 272.55 | I143: 277.10 | J143: 280.75 | K143: 273.45 | L143: 265.25 | M143: 23.79478
A144: 134 | B144: EICHERMOT | C144: 31065.2 | D144: 31155.05 | E144: 30910.15 | F144: 30755.10 | G144: 30510.20 | H144: 31310.10 | I144: 31555.00 | J144: 31710.05 | K144: 31399.95 | L144: 31000 | M144: 0.25698
A145: 135 | B145: EMAMILTD | C145: 1141.55 | D145: 1134.68 | E145: 1118.37 | F145: 1095.18 | G145: 1078.87 | H145: 1157.87 | I145: 1174.18 | J145: 1197.37 | K145: 1151 | L145: 1111.5 | M145: 1.2279
A146: 136 | B146: ENDURANCE | C146: 1326.3 | D146: 1325.77 | E146: 1306.53 | F146: 1286.77 | G146: 1267.53 | H146: 1345.53 | I146: 1364.77 | J146: 1384.53 | K146: 1345 | L146: 1306 | M146: 0.5768
A147: 137 | B147: ENGINERSIN | C147: 153.65 | D147: 152.88 | E147: 151.52 | F147: 149.38 | G147: 148.02 | H147: 155.02 | I147: 156.38 | J147: 158.52 | K147: 154.25 | L147: 150.75 | M147: 19.94177
A148: 138 | B148: EQUITAS | C148: 149.45 | D148: 149.87 | E148: 148.23 | F148: 147.02 | G148: 145.38 | H148: 151.08 | I148: 152.72 | J148: 153.93 | K148: 151.5 | L148: 148.65 | M148: 10.84592
A149: 139 | B149: EROSMEDIA | C149: 174.75 | D149: 174.88 | E149: 172.37 | F149: 169.98 | G149: 167.47 | H149: 177.27 | I149: 179.78 | J149: 182.17 | K149: 177.4 | L149: 172.5 | M149: 2.84693
A150: 140 | B150: ESCORTS | C150: 957.7 | D150: 961.27 | E150: 950.03 | F150: 942.37 | G150: 931.13 | H150: 968.93 | I150: 980.17 | J150: 987.83 | K150: 972.5 | L150: 953.6 | M150: 8.02061
A151: 141 | B151: ESSELPACK | C151: 270.1 | D151: 267.03 | E151: 263.07 | F151: 256.03 | G151: 252.07 | H151: 274.07 | I151: 278.03 | J151: 285.07 | K151: 271 | L151: 260 | M151: 0.24524
A152: 142 | B152: EVEREADY | C152: 323.05 | D152: 327.03 | E152: 317.07 | F152: 311.08 | G152: 301.12 | H152: 333.02 | I152: 342.98 | J152: 348.97 | K152: 337 | L152: 321.05 | M152: 2.5735
A153: 143 | B153: EXIDEIND | C153: 244.85 | D153: 244.57 | E153: 242.28 | F153: 239.72 | G153: 237.43 | H153: 247.13 | I153: 249.42 | J153: 251.98 | K153: 246.85 | L153: 242 | M153: 19.48091
A154: 144 | B154: FEDERALBNK | C154: 97.15 | D154: 97.08 | E154: 95.87 | F154: 94.58 | G154: 93.37 | H154: 98.37 | I154: 99.58 | J154: 100.87 | K154: 98.3 | L154: 95.8 | M154: 73.81564
A155: 145 | B155: FINCABLES | C155: 688 | D155: 689.50 | E155: 684.50 | F155: 681.00 | G155: 676.00 | H155: 693.00 | I155: 698.00 | J155: 701.50 | K155: 694.5 | L155: 686 | M155: 0.12898
A156: 146 | B156: FINPIPE | C156: 659.3 | D156: 660.73 | E156: 656.47 | F156: 653.63 | G156: 649.37 | H156: 663.57 | I156: 667.83 | J156: 670.67 | K156: 665 | L156: 657.9 | M156: 0.142
A157: 147 | B157: FSL | C157: 60.8 | D157: 60.50 | E157: 59.80 | F157: 58.80 | G157: 58.10 | H157: 61.50 | I157: 62.20 | J157: 63.20 | K157: 61.2 | L157: 59.5 | M157: 71.98733
A158: 148 | B158: FCONSUMER | C158: 58.9 | D158: 58.90 | E158: 58.20 | F158: 57.50 | G158: 56.80 | H158: 59.60 | I158: 60.30 | J158: 61.00 | K158: 59.6 | L158: 58.2 | M158: 23.48865
A159: 149 | B159: FLFL | C159: 453.75 | D159: 446.98 | E159: 438.97 | F159: 424.18 | G159: 416.17 | H159: 461.77 | I159: 469.78 | J159: 484.57 | K159: 455 | L159: 432.2 | M159: 1.25541
A160: 150 | B160: GAIL | C160: 332.55 | D160: 331.85 | E160: 328.30 | F160: 324.05 | G160: 320.50 | H160: 336.10 | I160: 339.65 | J160: 343.90 | K160: 335.4 | L160: 327.6 | M160: 25.5059
A161: 151 | B161: GEPIL | C161: 881.45 | D161: 873.48 | E161: 861.97 | F161: 842.48 | G161: 830.97 | H161: 892.97 | I161: 904.48 | J161: 923.97 | K161: 885 | L161: 854 | M161: 0.12025
A162: 152 | B162: GET&D | C162: 383.2 | D162: 382.58 | E162: 376.42 | F162: 369.63 | G162: 363.47 | H162: 389.37 | I162: 395.53 | J162: 402.32 | K162: 388.75 | L162: 375.8 | M162: 0.23555
A163: 153 | B163: GHCL | C163: 288.05 | D163: 289.95 | E163: 284.95 | F163: 281.85 | G163: 276.85 | H163: 293.05 | I163: 298.05 | J163: 301.15 | K163: 294.95 | L163: 286.85 | M163: 1.43405
A164: 154 | B164: GMRINFRA | C164: 19.65 | D164: 19.68 | E164: 19.32 | F164: 18.98 | G164: 18.62 | H164: 20.02 | I164: 20.38 | J164: 20.72 | K164: 20.05 | L164: 19.35 | M164: 234.90369
A165: 155 | B165: GVKPIL | C165: 15.1 | D165: 15.22 | E165: 14.88 | F165: 14.67 | G165: 14.33 | H165: 15.43 | I165: 15.77 | J165: 15.98 | K165: 15.55 | L165: 15 | M165: 22.03619
A166: 156 | B166: GDL | C166: 179.8 | D166: 179.50 | E166: 178.10 | F166: 176.40 | G166: 175.00 | H166: 181.20 | I166: 182.60 | J166: 184.30 | K166: 180.9 | L166: 177.8 | M166: 0.23538
A167: 157 | B167: GATI | C167: 100.75 | D167: 100.42 | E167: 99.83 | F167: 98.92 | G167: 98.33 | H167: 101.33 | I167: 101.92 | J167: 102.83 | K167: 101 | L167: 99.5 | M167: 2.33449
A168: 158 | B168: GILLETTE | C168: 6547.6 | D168: 6543.87 | E168: 6533.73 | F168: 6519.87 | G168: 6509.73 | H168: 6557.73 | I168: 6567.87 | J168: 6581.73 | K168: 6554 | L168: 6530 | M168: 0.02765
A169: 159 | B169: GSKCONS | C169: 5936.45 | D169: 5943.37 | E169: 5910.08 | F169: 5883.72 | G169: 5850.43 | H169: 5969.73 | I169: 6003.02 | J169: 6029.38 | K169: 5976.65 | L169: 5917 | M169: 0.19318
A170: 160 | B170: GLAXO | C170: 2418.55 | D170: 2421.20 | E170: 2402.35 | F170: 2386.15 | G170: 2367.30 | H170: 2437.40 | I170: 2456.25 | J170: 2472.45 | K170: 2440.05 | L170: 2405 | M170: 0.07848
A171: 161 | B171: GLENMARK | C171: 579.65 | D171: 577.30 | E171: 571.20 | F171: 562.75 | G171: 556.65 | H171: 585.75 | I171: 591.85 | J171: 600.30 | K171: 583.4 | L171: 568.85 | M171: 5.51306
A172: 162 | B172: GODFRYPHLP | C172: 892.15 | D172: 892.62 | E172: 885.28 | F172: 878.42 | G172: 871.08 | H172: 899.48 | I172: 906.82 | J172: 913.68 | K172: 899.95 | L172: 885.75 | M172: 0.40006
A173: 163 | B173: GODREJCP | C173: 1114.85 | D173: 1120.72 | E173: 1101.63 | F173: 1088.42 | G173: 1069.33 | H173: 1133.93 | I173: 1153.02 | J173: 1166.23 | K173: 1139.8 | L173: 1107.5 | M173: 3.75785
A174: 164 | B174: GODREJIND | C174: 597.25 | D174: 598.83 | E174: 593.52 | F174: 589.78 | G174: 584.47 | H174: 602.57 | I174: 607.88 | J174: 611.62 | K174: 604.15 | L174: 595.1 | M174: 1.46781
A175: 165 | B175: GODREJPROP | C175: 812 | D175: 806.35 | E175: 784.65 | F175: 757.30 | G175: 735.60 | H175: 833.70 | I175: 855.40 | J175: 882.75 | K175: 828.05 | L175: 779 | M175: 5.12881
A176: 166 | B176: GRANULES | C176: 110.6 | D176: 109.47 | E176: 107.68 | F176: 104.77 | G176: 102.98 | H176: 112.38 | I176: 114.17 | J176: 117.08 | K176: 111.25 | L176: 106.55 | M176: 24.14937
A177: 167 | B177: GESHIP | C177: 377.55 | D177: 373.00 | E177: 354.75 | F177: 331.95 | G177: 313.70 | H177: 395.80 | I177: 414.05 | J177: 436.85 | K177: 391.25 | L177: 350.2 | M177: 2.49257
A178: 168 | B178: GREAVESCOT | C178: 127.55 | D178: 127.38 | E178: 125.82 | F178: 124.08 | G178: 122.52 | H178: 129.12 | I178: 130.68 | J178: 132.42 | K178: 128.95 | L178: 125.65 | M178: 3.75607
A179: 169 | B179: GREENPLY | C179: 309.45 | D179: 310.83 | E179: 306.62 | F179: 303.78 | G179: 299.57 | H179: 313.67 | I179: 317.88 | J179: 320.72 | K179: 315.05 | L179: 308 | M179: 0.61188
A180: 170 | B180: GRUH | C180: 669.4 | D180: 665.45 | E180: 653.95 | F180: 638.50 | G180: 627.00 | H180: 680.90 | I180: 692.40 | J180: 707.85 | K180: 676.95 | L180: 650 | M180: 3.06225
A181: 171 | B181: GUJALKALI | C181: 752.9 | D181: 756.90 | E181: 746.00 | F181: 739.10 | G181: 728.20 | H181: 763.80 | I181: 774.70 | J181: 781.60 | K181: 767.8 | L181: 750 | M181: 0.22071
A182: 172 | B182: GUJFLUORO | C182: 855.85 | D182: 855.87 | E182: 847.73 | F182: 839.62 | G182: 831.48 | H182: 863.98 | I182: 872.12 | J182: 880.23 | K182: 864 | L182: 847.75 | M182: 0.19474
A183: 173 | B183: GUJGASLTD | C183: 863.8 | D183: 860.80 | E183: 854.60 | F183: 845.40 | G183: 839.20 | H183: 870.00 | I183: 876.20 | J183: 885.40 | K183: 867 | L183: 851.6 | M183: 0.06839
A184: 174 | B184: GMDCLTD | C184: 142.35 | D184: 143.60 | E184: 140.35 | F184: 138.35 | G184: 135.10 | H184: 145.60 | I184: 148.85 | J184: 150.85 | K184: 146.85 | L184: 141.6 | M184: 0.72454
A185: 175 | B185: GNFC | C185: 429.8 | D185: 432.53 | E185: 413.77 | F185: 397.73 | G185: 378.97 | H185: 448.57 | I185: 467.33 | J185: 483.37 | K185: 451.3 | L185: 416.5 | M185: 22.46535
A186: 176 | B186: GPPL | C186: 140.65 | D186: 141.05 | E186: 139.75 | F186: 138.85 | G186: 137.55 | H186: 141.95 | I186: 143.25 | J186: 144.15 | K186: 142.35 | L186: 140.15 | M186: 0.67162
A187: 177 | B187: GSFC | C187: 130.35 | D187: 131.27 | E187: 128.83 | F187: 127.32 | G187: 124.88 | H187: 132.78 | I187: 135.22 | J187: 136.73 | K187: 133.7 | L187: 129.75 | M187: 11.09833
A188: 178 | B188: GSPL | C188: 188.25 | D188: 188.80 | E188: 185.60 | F188: 182.95 | G188: 179.75 | H188: 191.45 | I188: 194.65 | J188: 197.30 | K188: 192 | L188: 186.15 | M188: 6.07044
A189: 179 | B189: GULFOILLUB | C189: 892.05 | D189: 885.15 | E189: 873.05 | F189: 854.05 | G189: 841.95 | H189: 904.15 | I189: 916.25 | J189: 935.25 | K189: 897.25 | L189: 866.15 | M189: 0.38356
A190: 180 | B190: HCL-INSYS | C190: 55.6 | D190: 56.03 | E190: 54.82 | F190: 54.03 | G190: 52.82 | H190: 56.82 | I190: 58.03 | J190: 58.82 | K190: 57.25 | L190: 55.25 | M190: 31.02663
A191: 181 | B191: HCLTECH | C191: 1088 | D191: 1083.67 | E191: 1059.33 | F191: 1030.67 | G191: 1006.33 | H191: 1112.33 | I191: 1136.67 | J191: 1165.33 | K191: 1108 | L191: 1055 | M191: 45.43462
A192: 182 | B192: HDFCBANK | C192: 1935.75 | D192: 1925.02 | E192: 1871.03 | F192: 1806.32 | G192: 1752.33 | H192: 1989.73 | I192: 2043.72 | J192: 2108.43 | K192: 1979 | L192: 1860.3 | M192: 38.26155
A193: 183 | B193: HSIL | C193: 393.15 | D193: 394.43 | E193: 389.92 | F193: 386.68 | G193: 382.17 | H193: 397.67 | I193: 402.18 | J193: 405.42 | K193: 398.95 | L193: 391.2 | M193: 0.33539
A194: 184 | B194: HTMEDIA | C194: 88.65 | D194: 88.87 | E194: 87.03 | F194: 85.42 | G194: 83.58 | H194: 90.48 | I194: 92.32 | J194: 93.93 | K194: 90.7 | L194: 87.25 | M194: 2.14636
A195: 185 | B195: HATHWAY | C195: 38.35 | D195: 38.62 | E195: 37.83 | F195: 37.32 | G195: 36.53 | H195: 39.13 | I195: 39.92 | J195: 40.43 | K195: 39.4 | L195: 38.1 | M195: 9.80791
A196: 186 | B196: HATSUN | C196: 751.85 | D196: 755.90 | E196: 742.85 | F196: 733.85 | G196: 720.80 | H196: 764.90 | I196: 777.95 | J196: 786.95 | K196: 768.95 | L196: 746.9 | M196: 0.07629
A197: 187 | B197: HAVELLS | C197: 546.1 | D197: 547.32 | E197: 542.73 | F197: 539.37 | G197: 534.78 | H197: 550.68 | I197: 555.27 | J197: 558.63 | K197: 551.9 | L197: 543.95 | M197: 8.99035
A198: 188 | B198: HEIDELBERG | C198: 155.95 | D198: 156.60 | E198: 153.65 | F198: 151.35 | G198: 148.40 | H198: 158.90 | I198: 161.85 | J198: 164.15 | K198: 159.55 | L198: 154.3 | M198: 1.7422
A199: 189 | B199: HERITGFOOD | C199: 710.15 | D199: 715.38 | E199: 700.77 | F199: 691.38 | G199: 676.77 | H199: 724.77 | I199: 739.38 | J199: 748.77 | K199: 730 | L199: 706 | M199: 0.24212
A200: 190 | B200: HEROMOTOCO | C200: 3718.2 | D200: 3715.32 | E200: 3694.23 | F200: 3670.27 | G200: 3649.18 | H200: 3739.28 | I200: 3760.37 | J200: 3784.33 | K200: 3736.4 | L200: 3691.35 | M200: 2.36404
A201: 191 | B201: HEXAWARE | C201: 434.95 | D201: 437.20 | E201: 430.10 | F201: 425.25 | G201: 418.15 | H201: 442.05 | I201: 449.15 | J201: 454.00 | K201: 444.3 | L201: 432.35 | M201: 22.24608
A202: 192 | B202: HFCL | C202: 26.85 | D202: 26.80 | E202: 26.40 | F202: 25.95 | G202: 25.55 | H202: 27.25 | I202: 27.65 | J202: 28.10 | K202: 27.2 | L202: 26.35 | M202: 30.38446
A203: 193 | B203: HIMATSEIDE | C203: 395.05 | D203: 394.23 | E203: 390.82 | F203: 386.58 | G203: 383.17 | H203: 398.47 | I203: 401.88 | J203: 406.12 | K203: 397.65 | L203: 390 | M203: 0.42485
A204: 194 | B204: HINDALCO | C204: 255.6 | D204: 258.28 | E204: 251.62 | F204: 247.63 | G204: 240.97 | H204: 262.27 | I204: 268.93 | J204: 272.92 | K204: 264.95 | L204: 254.3 | M204: 95.59885
A205: 195 | B205: HCC | C205: 24.45 | D205: 24.47 | E205: 24.03 | F205: 23.62 | G205: 23.18 | H205: 24.88 | I205: 25.32 | J205: 25.73 | K205: 24.9 | L205: 24.05 | M205: 31.22222
A206: 196 | B206: HINDCOPPER | C206: 76.65 | D206: 77.12 | E206: 75.73 | F206: 74.82 | G206: 73.43 | H206: 78.03 | I206: 79.42 | J206: 80.33 | K206: 78.5 | L206: 76.2 | M206: 30.94016
... 306 more rows

Sheet Bulk Deals
E6: Back To Main Page
A7: Subject : | B7: BULK DEAL | D7: =Main!B10 -> 2018-04-24
A9: Date | B9: Scrip code | C9: Scrip Name | D9: Client Name | E9: Buy / Sell | F9: Quantity Traded | G9: Trade Price / Wt.Avg.trade price | H9: Exchange
A10: 2018-04-23 | B10: 541144 | C10: ACTIVE | D10: JOHNSON AND ANDREW PROPERTIES PVT LTD | E10: SELL | F10: 2,000 | G10: 59.8 | H10: BSE
A11: 2018-04-23 | B11: 541144 | C11: ACTIVE | D11: JOHNSON AND ANDREW PROPERTIES PVT LTD | E11: BUY | F11: 92,000 | G11: 62.62 | H11: BSE
A12: 2018-04-23 | B12: 540024 | C12: ASHARI | D12: KAMAL KUMAR JALAN SEC. PVT. LTD | E12: SELL | F12: 93,156 | G12: 70.52 | H12: BSE
A13: 2018-04-23 | B13: 540024 | C13: ASHARI | D13: KAMAL KUMAR JALAN SEC. PVT. LTD | E13: BUY | F13: 93,557 | G13: 70.15 | H13: BSE
A14: 2018-04-23 | B14: 540024 | C14: ASHARI | D14: PREYASHBHAI SATHVARA | E14: SELL | F14: 231,017 | G14: 70.13 | H14: BSE
A15: 2018-04-23 | B15: 540024 | C15: ASHARI | D15: PREYASHBHAI SATHVARA | E15: BUY | F15: 231,017 | G15: 70.99 | H15: BSE
A16: 2018-04-23 | B16: 540024 | C16: ASHARI | D16: HARISHKUMAR SAKARIYA | E16: SELL | F16: 159,781 | G16: 70.84 | H16: BSE
A17: 2018-04-23 | B17: 540024 | C17: ASHARI | D17: HARISHKUMAR SAKARIYA | E17: BUY | F17: 159,781 | G17: 71.08 | H17: BSE
A18: 2018-04-23 | B18: 540024 | C18: ASHARI | D18: NAVEEN GUPTA | E18: SELL | F18: 74,061 | G18: 70.67 | H18: BSE
A19: 2018-04-23 | B19: 540024 | C19: ASHARI | D19: NAVEEN GUPTA | E19: BUY | F19: 75,061 | G19: 70.47 | H19: BSE
A20: 2018-04-23 | B20: 531900 | C20: CCLINTER | D20: SANGINI MARKETING PRIVATE LIMITED | E20: SELL | F20: 450,500 | G20: 12.76 | H20: BSE
A21: 2018-04-23 | B21: 531900 | C21: CCLINTER | D21: AISHVARYA GUPTA | E21: BUY | F21: 450,000 | G21: 12.76 | H21: BSE
A22: 2018-04-23 | B22: 524818 | C22: DYNAMIND | D22: GOURAV KHANDELWAL | E22: SELL | F22: 18,156 | G22: 105.12 | H22: BSE
A23: 2018-04-23 | B23: 524818 | C23: DYNAMIND | D23: GOURAV KHANDELWAL | E23: BUY | F23: 18,156 | G23: 100.19 | H23: BSE
A24: 2018-04-23 | B24: 524818 | C24: DYNAMIND | D24: ANILKUMAR RAVAL PARTH | E24: BUY | F24: 25,000 | G24: 105.73 | H24: BSE
A25: 2018-04-23 | B25: 540266 | C25: GLCL | D25: AKASHKUMAR DIPAKBHAI KACHHIYA | E25: SELL | F25: 20,000 | G25: 34.78 | H25: BSE
A26: 2018-04-23 | B26: 539938 | C26: ICLF | D26: MUKTI MEHULKUMAR SANCHETI | E26: BUY | F26: 21,500 | G26: 20.2 | H26: BSE
A27: 2018-04-23 | B27: 539938 | C27: ICLF | D27: NAKUL PARESH BHALAKIA | E27: SELL | F27: 32,500 | G27: 20.2 | H27: BSE
A28: 2018-04-23 | B28: 538422 | C28: JACKSON | D28: AJAY DHIRAJLAL NATHWANI | E28: BUY | F28: 2,006,648 | G28: 1.94 | H28: BSE
A29: 2018-04-23 | B29: 538422 | C29: JACKSON | D29: RAJA RAMCHANDRA DALVI | E29: SELL | F29: 2,000,000 | G29: 1.94 | H29: BSE
A30: 2018-04-23 | B30: 540222 | C30: LAURUSLABS | D30: NORGES BANK ON ACCOUNT OF GOVERNMENT PENSION FUND | E30: BUY | F30: 1,750,000 | G30: 508 | H30: BSE
A31: 2018-04-23 | B31: 540222 | C31: LAURUSLABS | D31: NOMURA INDIA INVESTMENT FUND MOTHER FUND | E31: SELL | F31: 1,754,008 | G31: 508 | H31: BSE
A32: 2018-04-23 | B32: 540150 | C32: MHEL | D32: RIKHAV SECURITIES LIMITED | E32: SELL | F32: 24,000 | G32: 47.29 | H32: BSE
A33: 2018-04-23 | B33: 540150 | C33: MHEL | D33: RIKHAV SECURITIES LIMITED | E33: BUY | F33: 18,000 | G33: 48.95 | H33: BSE
A34: 2018-04-23 | B34: 540150 | C34: MHEL | D34: DHANSUKHBHAI CHAMPAKLAL JADAV | E34: SELL | F34: 24,000 | G34: 48.73 | H34: BSE
A35: 2018-04-23 | B35: 538962 | C35: MINDACORP | D35: ASHISH KACHOLIA | E35: BUY | F35: 1,080,000 | G35: 182 | H35: BSE
A36: 2018-04-23 | B36: 539595 | C36: NATECO | D36: SARALABEN VASANTBHAI SAINDANE | E36: SELL | F36: 2,500 | G36: 90.97 | H36: BSE
A37: 2018-04-23 | B37: 539595 | C37: NATECO | D37: SARALABEN VASANTBHAI SAINDANE | E37: BUY | F37: 16,573 | G37: 90.96 | H37: BSE
A38: 2018-04-23 | B38: 540125 | C38: RADHIKAJWE | D38: KEYNOTE COMMERCIAL PRIVATE LIMITED | E38: BUY | F38: 163,200 | G38: 29.88 | H38: BSE
A39: 2018-04-23 | B39: 540125 | C39: RADHIKAJWE | D39: AARAV FINANCIAL SERVICES PRIVATE LIMITED | E39: SELL | F39: 169,600 | G39: 29.84 | H39: BSE
A40: 2018-04-23 | B40: 540108 | C40: TAHL | D40: RESHMA B DEMBLA | E40: SELL | F40: 20,554 | G40: 11.8 | H40: BSE
A41: 2018-04-23 | B41: 537582 | C41: UNISHIRE | D41: MALAV MAHESHKUMAR SHAH | E41: BUY | F41: 160,000 | G41: 9.26 | H41: BSE
A42: 2018-04-23 | B42: 539402 | C42: VAL | D42: ARYAMAN BROKING LIMITED | E42: BUY | F42: 136,000 | G42: 19.78 | H42: BSE
A43: 2018-04-23 | B43: 539402 | C43: VAL | D43: PARESH B SHAH | E43: SELL | F43: 136,000 | G43: 19.78 | H43: BSE
A44: 2018-04-23 | B44: 540097 | C44: VISCO | D44: GOLDEN GOENKA CREDIT PVT. LTD. | E44: BUY | F44: 50,000 | G44: 14.55 | H44: BSE
A45: 2018-04-23 | B45: 540097 | C45: VISCO | D45: ROSY DEAL COMM PVT LTD | E45: SELL | F45: 50,000 | G45: 14.55 | H45: BSE
A46: 2018-04-23 | B46: ASTRAMICRO | C46: Astra Microwave Products | D46: MOUNT INTRA FINANCE (P) LTD | E46: BUY | F46: 550,917 | G46: 83.86 | H46: NSE
A47: 2018-04-23 | B47: ASTRAMICRO | C47: Astra Microwave Products | D47: RAJASTHAN GLOBAL SECURITIES PVT LTD | E47: BUY | F47: 625,696 | G47: 85.54 | H47: NSE
A48: 2018-04-23 | B48: ASTRAMICRO | C48: Astra Microwave Products | D48: RATNABALI INVESTMENT PRIVATE LIMITED | E48: BUY | F48: 4,300,000 | G48: 83.58 | H48: NSE
A49: 2018-04-23 | B49: AUSOMENT | C49: Ausom Enterprise Limited | D49: GOURAV KHANDELWAL | E49: BUY | F49: 196,345 | G49: 104.55 | H49: NSE
A50: 2018-04-23 | B50: BALRAMCHIN | C50: Balrampur Chini Mills | D50: DIVYA PORTFOLIO PRIVATE LIMITED | E50: BUY | F50: 1,398,077 | G50: 67.82 | H50: NSE
A51: 2018-04-23 | B51: CKPLEISURE | C51: CKP Leisure Limited | D51: ARYAMAN CAPITAL MARKETS LIMITED | E51: BUY | F51: 180,000 | G51: 27 | H51: NSE
A52: 2018-04-23 | B52: GSS | C52: GSS Infotech Limited | D52: GOEL NIKHIL | E52: BUY | F52: 635,273 | G52: 71.11 | H52: NSE
A53: 2018-04-23 | B53: GSS | C53: GSS Infotech Limited | D53: MAHENDRA G MASRANI | E53: BUY | F53: 123,000 | G53: 71.9 | H53: NSE
A54: 2018-04-23 | B54: KWALITY | C54: Kwality Limited | D54: U A ENTERPRISES PRIVATE LIMITED | E54: BUY | F54: 500,000 | G54: 54.57 | H54: NSE
A55: 2018-04-23 | B55: LAMBODHARA | C55: Lambodhara Textiles Ltd. | D55: KAMLESHBHAI DULARBHAJIBHAI BHALODI | E55: BUY | F55: 48,074 | G55: 82.87 | H55: NSE
A56: 2018-04-23 | B56: LAMBODHARA | C56: Lambodhara Textiles Ltd. | D56: NAVY STOCK CONSULTANT PRIVATE LIMITED | E56: BUY | F56: 54,000 | G56: 87.99 | H56: NSE
A57: 2018-04-23 | B57: LOVABLE | C57: Lovable Lingerie Ltd | D57: PARTH INFIN BROKERS PVT LTD | E57: BUY | F57: 151,040 | G57: 183.62 | H57: NSE
A58: 2018-04-23 | B58: NIITTECH | C58: NIIT Technologies Limited | D58: CROSSLAND TRADING CO | E58: BUY | F58: 480,094 | G58: 1055.99 | H58: NSE
A59: 2018-04-23 | B59: PIGL | C59: Power Instrument (G) Ltd | D59: AGARWAL MANOJ | E59: BUY | F59: 100,000 | G59: 35 | H59: NSE
A60: 2018-04-23 | B60: PIGL | C60: Power Instrument (G) Ltd | D60: AS FINALYSIS VENTURES LLP | E60: BUY | F60: 52,000 | G60: 35 | H60: NSE
A61: 2018-04-23 | B61: PIGL | C61: Power Instrument (G) Ltd | D61: JAIN SANJAY POPATLAL | E61: BUY | F61: 40,000 | G61: 35 | H61: NSE
A62: 2018-04-23 | B62: PIGL | C62: Power Instrument (G) Ltd | D62: SADHU RAM AGGARWAL | E62: BUY | F62: 36,000 | G62: 34.92 | H62: NSE
A63: 2018-04-23 | B63: SHRADHA | C63: Shradha Infraproj (N) Ltd | D63: AJIT RAMKARAN SARDA | E63: BUY | F63: 90,000 | G63: 54 | H63: NSE
A64: 2018-04-23 | B64: SKMEGGPROD | C64: SKM Egg Products Export | D64: DIVYA RAMAVAT | E64: BUY | F64: 266,081 | G64: 127.68 | H64: NSE
A65: 2018-04-23 | B65: SKMEGGPROD | C65: SKM Egg Products Export | D65: SWAPNIL MEHTA | E65: BUY | F65: 135,000 | G65: 127.78 | H65: NSE
A66: 2018-04-23 | B66: TATAELXSI | C66: Tata Elxsi Limited | D66: CROSSLAND TRADING CO | E66: BUY | F66: 367,603 | G66: 1202.85 | H66: NSE
A67: 2018-04-23 | B67: TRF | C67: TRF Limited | D67: RAHUL DOSHI | E67: BUY | F67: 87,217 | G67: 272.06 | H67: NSE
A68: 2018-04-23 | B68: TVSELECT | C68: TVS Electronics Limited | D68: WAY2WEALTH SECURITIES P LTD | E68: BUY | F68: 149,602 | G68: 524.81 | H68: NSE
A69: 2018-04-23 | B69: ASTRAMICRO | C69: Astra Microwave Products | D69: TARISH INVESTMENT AND TRADING COMPANY PRIVATE LIMITED | E69: SELL | F69: 3,100,000 | G69: 83 | H69: NSE
A70: 2018-04-23 | B70: ASTRAMICRO | C70: Astra Microwave Products | D70: UAL INDUSTRIES LIMITED | E70: SELL | F70: 1,100,000 | G70: 84.9 | H70: NSE
A71: 2018-04-23 | B71: AUSOMENT | C71: Ausom Enterprise Limited | D71: GOURAV KHANDELWAL | E71: SELL | F71: 196,345 | G71: 107.36 | H71: NSE
A72: 2018-04-23 | B72: BALRAMCHIN | C72: Balrampur Chini Mills | D72: DIVYA PORTFOLIO PRIVATE LIMITED | E72: SELL | F72: 1,401,627 | G72: 67.97 | H72: NSE
A73: 2018-04-23 | B73: CIMMCO | C73: Cimmco Limited | D73: EQUITY INTELLIGENCE INDIA PRIVATE LIMITED | E73: SELL | F73: 111,511 | G73: 94.8 | H73: NSE
A74: 2018-04-23 | B74: CKPLEISURE | C74: CKP Leisure Limited | D74: OVERSKUD MULTI ASSET MANAGEMENT PRIVATE LIMITED | E74: SELL | F74: 180,000 | G74: 27 | H74: NSE
A75: 2018-04-23 | B75: GSS | C75: GSS Infotech Limited | D75: GOEL NIKHIL | E75: SELL | F75: 635,273 | G75: 71.77 | H75: NSE
A76: 2018-04-23 | B76: GSS | C76: GSS Infotech Limited | D76: MAHENDRA G MASRANI | E76: SELL | F76: 123,000 | G76: 71.72 | H76: NSE
A77: 2018-04-23 | B77: KWALITY | C77: Kwality Limited | D77: U A ENTERPRISES PRIVATE LIMITED | E77: SELL | F77: 1,540,000 | G77: 53.74 | H77: NSE
A78: 2018-04-23 | B78: LAMBODHARA | C78: Lambodhara Textiles Ltd. | D78: KAMLESHBHAI DULARBHAJIBHAI BHALODI | E78: SELL | F78: 48,074 | G78: 84.05 | H78: NSE
A79: 2018-04-23 | B79: LAMBODHARA | C79: Lambodhara Textiles Ltd. | D79: NAVY STOCK CONSULTANT PRIVATE LIMITED | E79: SELL | F79: 54000 | G79: 88.2 | H79: NSE
A80: 2018-04-23 | B80: LOVABLE | C80: Lovable Lingerie Ltd | D80: PARTH INFIN BROKERS PVT LTD | E80: SELL | F80: 144040 | G80: 183.43 | H80: NSE
A81: 2018-04-23 | B81: NIITTECH | C81: NIIT Technologies Limited | D81: CROSSLAND TRADING CO | E81: SELL | F81: 480094 | G81: 1056.44 | H81: NSE
A82: 2018-04-23 | B82: PIGL | C82: Power Instrument (G) Ltd | D82: KHAMBATTA SECURITIES LTD. | E82: SELL | F82: 96000 | G82: 34.98 | H82: NSE
A83: 2018-04-23 | B83: PIGL | C83: Power Instrument (G) Ltd | D83: RIAZ AHMED KHATRI | E83: SELL | F83: 44000 | G83: 35 | H83: NSE
A84: 2018-04-23 | B84: SHRADHA | C84: Shradha Infraproj (N) Ltd | D84: ARYAMAN CAPITAL MARKETS LIMITED | E84: SELL | F84: 90000 | G84: 54 | H84: NSE
A85: 2018-04-23 | B85: SKMEGGPROD | C85: SKM Egg Products Export | D85: DIVYA RAMAVAT | E85: SELL | F85: 221842 | G85: 127.56 | H85: NSE
A86: 2018-04-23 | B86: SKMEGGPROD | C86: SKM Egg Products Export | D86: SWAPNIL MEHTA | E86: SELL | F86: 135000 | G86: 127.7 | H86: NSE
A87: 2018-04-23 | B87: TATAELXSI | C87: Tata Elxsi Limited | D87: CROSSLAND TRADING CO | E87: SELL | F87: 367603 | G87: 1203.58 | H87: NSE
A88: 2018-04-23 | B88: TRF | C88: TRF Limited | D88: RAHUL DOSHI | E88: SELL | F88: 88000 | G88: 273.9 | H88: NSE
A89: 2018-04-23 | B89: TVSELECT | C89: TVS Electronics Limited | D89: WAY2WEALTH SECURITIES P LTD | E89: SELL | F89: 149602 | G89: 524.92 | H89: NSE

Sheet Call Tracker (Equity & F&O)
N5: Back To Main Page
A6: Retail Research Technical Calls & Fundamental Performance Report for the month of April -2018
N7: =Main!B10 -> 2018-04-24
B8: Positional Call
A9: Sr.no | B9: Date | D9: Company | E9: Rec | F9: Rec Price | G9: Stop Loss*** | H9: Call Closed At | I9: Target | J9: Remark | L9: Profit / Loss per Share | M9: Gain / Loss % | N9: Status | O9: Closed Date | P9: NSE Closed Price
A10: 1 | B10: 2018-02-09 | D10: HINDUNILVR | E10: Buy | F10: 1332 | G10: 1275 | H10: 1375 | I10: 1450 | J10: Profit of Rs.43/- | L10: =H10-F10-K10 -> 43 | M10: =L10/F10 -> 3.23% | N10: Successful | O10: 2018-04-05 | S10: A
A11: 2 | B11: 2018-02-12 | D11: ITC | E11: Buy | F11: 271-272 | G11: 250 | I11: 310 | J11: Open | P11: =VLOOKUP(D11,Sheet2!$A$1:M2109,6,0) -> 275.5 | S11: P
A12: 3 | B12: 2018-03-08 | D12: CADILAHC | E12: Buy | F12: 385 | G12: 367 | H12: 397.5 | I12: 420 | J12: Profit of Rs.12.5/- | L12: =H12-F12-K12 -> 12.5 | M12: =L12/F12 -> 3.25% | N12: Successful | O12: 2018-04-04 | S12: R
A13: 4 | B13: 2018-03-13 | D13: LUPIN | E13: Buy | F13: 772 | G13: 732 | H13: 802.75 | I13: 850 | J13: Profit of Rs.30.75/- | L13: 30.75 | M13: =L13/F13 -> 3.98% | N13: Successful | O13: 2018-04-06 | S13: R
A14: 5 | B14: 2018-03-16 | D14: TATACHEM | E14: Buy | F14: 686.5 | G14: 658 | H14: 714.5 | I14: 730-750 | J14: Profit of Rs.28/- | L14: 28 | M14: =L14/F14 -> 4.08% | N14: Successful | O14: 2018-04-03 | S14: H
A15: 6 | B15: 2018-03-19 | D15: TCS | E15: Buy | F15: 2842.5 | G15: 2720 | H15: 2937.5 | I15: 3050 | J15: Profit of Rs.95/- | L15: 95 | M15: 3.34% | N15: Successful | O15: 2018-04-05 | S15: A
A16: 7 | B16: 2018-03-27 | D16: KPIT | E16: Buy | F16: 219.5 | G16: 210 | H16: 226.4 | I16: 240 | J16: Profit of Rs.6.9/- | L16: 6.9 | M16: =L16/F16 -> 3.14% | N16: Successful | O16: 2018-04-06 | S16: R
A17: 8 | B17: 2018-03-27 | D17: ICICIBANK | E17: Buy | F17: 283 | G17: 268 | H17: 262.5 | I17: 310 | J17: Loss of Rs.20.5/- | L17: -20.5 | M17: -7.24% | N17: Unsuccessful | O17: 2018-04-02 | S17: R
A18: 9 | B18: 2018-03-28 | D18: LT | E18: Buy | F18: 1292.5 | G18: 1245 | H18: 1334.5 | I18: 1375-1395 | J18: Profit of Rs.42/- | L18: 42 | M18: =L18/F18 -> 3.25% | N18: Successful | O18: 2018-04-03 | S18: H
A19: 10 | B19: 2018-04-02 | D19: AMBUJACEM | E19: Buy | F19: 232 | G19: 219 | H19: 239.75 | I19: 250-255 | J19: Profit of Rs.7.75/- | L19: 7.75 | M19: =L19/F19 -> 3.34% | N19: Successful | O19: 2018-04-03 | S19: H
A20: 11 | B20: 2018-04-02 | D20: COLPAL | E20: Buy | F20: 1050 | G20: 998 | H20: 1087 | I20: 1140-1160 | J20: Profit of Rs.37/- | L20: 37 | M20: 3.52% | N20: Successful | O20: 2018-04-04 | S20: H
A21: 12 | B21: 2018-04-02 | D21: ITC | E21: Buy | F21: 257.5 | G21: 248 | H21: =(275.75+280)/2 -> 277.875 | I21: 280-285 | J21: Profit of Rs.20.37/- | L21: =H21-F21-K21 -> 20.375 | M21: =L21/F21 -> 7.91% | N21: Successful | O21: 2018-04-19 | S21: A
A22: 13 | B22: 2018-04-03 | D22: UJJIVAN | E22: Buy | F22: 351.5 | G22: 334 | H22: 364.5 | I22: 380-385 | J22: Profit of Rs.13/- | L22: =H22-F22-K22 -> 13 | M22: =L22/F22 -> 3.70% | N22: Successful | O22: 2018-04-04 | S22: R
A23: 14 | B23: 2018-04-03 | D23: IGL | E23: Buy | F23: 278 | G23: 267 | H23: 290.25 | I23: 295-300 | J23: Profit of Rs.12.25/- | L23: =H23-F23-K23 -> 12.25 | M23: 4.41% | N23: Successful | O23: 2018-04-06 | S23: H
A24: 15 | B24: 2018-04-03 | D24: JUBLFOOD | E24: Sell | F24: 2340 | G24: 2450 | H24: 2470 | I24: 2150 | J24: Loss of Rs.130/- | L24: =F24-H24 -> -130 | M24: -5.56% | N24: Unsuccessful | O24: 2018-04-09 | S24: R
A25: 16 | B25: 2018-04-05 | D25: AMBUJACEM | E25: Buy | F25: 237 | G25: 227 | H25: 247 | I25: 255-260 | J25: Profit of Rs.10/- | L25: =H25-F25-K25 -> 10 | M25: =L25/F25 -> 4.22% | N25: Successful | O25: 2018-04-19 | S25: H
A26: 17 | B26: 2018-04-05 | D26: PEL | E26: Buy | F26: 2500 | G26: 2420 | H26: 2583 | I26: 2650 | J26: Profit of Rs.83/- | L26: =H26-F26-K26 -> 83 | M26: =L26/F26 -> 3.32% | N26: Successful | O26: 2018-04-06 | S26: R
A27: 18 | B27: 2018-04-05 | D27: RECLTD | E27: Buy | F27: 128-130 | G27: 122 | I27: 140 | J27: Open | P27: =VLOOKUP(D27,Sheet2!$A$1:M2148,6,0) -> 128.1 | S27: R
A28: 19 | B28: 2018-04-06 | D28: INDIGO | E28: Sell | F28: 1421.5 | G28: 1490 | H28: 1490 | I28: 1280 | J28: Loss of Rs.68.5/- | L28: =F28-H28 -> -68.5 | M28: =L28/F28 -> -4.82% | N28: Unsuccessful | O28: 2018-04-09 | S28: R
A29: 20 | B29: 2018-04-11 | D29: GODREJCP | E29: Buy | F29: 1072.5 | G29: 1040 | H29: 1116.5 | I29: 1125-1140 | J29: Profit of Rs.44/- | L29: =H29-F29-K29 -> 44 | M29: 4.10% | N29: Successful | O29: 2018-04-18 | S29: R
A30: 21 | B30: 2018-04-11 | D30: FEDERALBNK | E30: Buy | F30: 98-50-99.00 | G30: 94 | I30: 106-109 | J30: Open | P30: =VLOOKUP(D30,Sheet2!$A$1:M2151,6,0) -> 97.15 | S30: R
A31: 22 | B31: 2018-04-18 | D31: BHEL | E31: Buy | F31: 88-89 | G31: 83 | I31: 100 | J31: Open | P31: =VLOOKUP(D31,Sheet2!$A$1:M2152,6,0) -> 89.3 | S31: A
A32: 23 | B32: 2018-04-20 | D32: HINDZINC | E32: Sell | F32: 324-327 | G32: 340 | I32: 310-305 | J32: Open | P32: =VLOOKUP(D32,Sheet2!$A$1:M2153,6,0) -> 323.2 | S32: H
A33: 24 | B33: 2018-04-20 | D33: BPCL | E33: Buy | F33: 378-381 | G33: 368 | I33: 400-405 | J33: Open | P33: =VLOOKUP(D33,Sheet2!$A$1:M2154,6,0) -> 381.35 | S33: H
A34: 25 | B34: 2018-04-20 | D34: COROMANDEL | E34: Buy | F34: 534-536 | G34: 514 | I34: 570-580 | J34: Open | P34: =VLOOKUP(D34,Sheet2!$A$1:M2155,6,0) -> 528.95 | S34: H
A41: CLBS = Closing Basis *** | F41: Reinitiated $
A42: Dividend adjusted <> | F42: Revised stoploss #
A44: Master Trade High Risk
A45: Sr.no | B45: Date | D45: Company | E45: Rec | F45: Rec Price | G45: Stop Loss | H45: Call Closed At | I45: Target | J45: Remark | L45: Profit / Loss per share | M45: Gain / Loss per Lot | N45: Lot | O45: Status | P45: Closed Date
A46: 1 | B46: 2018-03-27 | D46: HDFCBANK APR FUT | E46: Buy | F46: 1887.5 | G46: 1858 | H46: 1910 | I46: 1930-1940 | J46: Profit of Rs.22.5/- | L46: =H46-F46 -> 22.5 | M46: =L46*N46 -> 11250 | N46: 500 | O46: Successful | P46: 2018-04-02 | S46: H
A47: 2 | B47: 2018-03-28 | D47: NIFTY APR FUT | E47: Buy | F47: 10156 | G47: 10050 | H47: 10235 | I47: 10350 | J47: Profit of Rs.50/- | L47: =H47-F47 -> 79 | M47: =L47*N47 -> 5925 | N47: 75 | O47: Successful | P47: 2018-04-02 | S47: A
D48: NIFTY APR 10200 CE | E48: Sell | F48: 140 | H48: 169 | L48: =F48-H48 -> -29 | M48: =L48*N47 -> -2175
A49: 3 | B49: 2018-04-09 | D49: NIFTY APR FUT | E49: Sell | F49: 10400 | G49: 10470 | H49: 10470 | I49: 10300-10280 | J49: Loss of Rs.70/- | L49: =H49-F49 -> 70 | M49: =L49*N49 -> 5250 | N49: 75 | O49: Unsuccessful | P49: 2018-04-12 | S49: H
A50: 4 | B50: 2018-04-18 | D50: NIFTY APR FUT | E50: Sell | F50: 10555 | G50: 10620 | H50: 10620 | I50: 10400 | J50: Loss of Rs.65/- | L50: =H50-F50 -> 65 | M50: =L50*N50 -> 4875 | N50: 75 | O50: Unsuccessful | P50: 2018-04-23 | S50: A
A56: Master Trade Medium Risk
A57: Sr.no | B57: Date | D57: Company | E57: Rec | F57: Rec Price | G57: Stop Loss | H57: Call Closed At | I57: Target | J57: Remark | L57: Profit/Loss per lot | M57: Gain / Loss per Lot | N57: Lot | O57: Status | P57: Closed Date
A58: 1 | B58: 2018-04-05 | D58: BankNifty 05-April 24600 CE | E58: Buy | F58: 17.5 | H58: 52.5 | I58: 100 | J58: Profit of Rs.13/- | L58: =H58-F58 -> 35 | M58: =L58*N58 -> 1400 | N58: 40 | O58: Successful | P58: 2018-04-05 | S58: A
D59: BankNifty 05-April 24300 PE | E59: Sell | F59: 22 | H59: 0 | L59: =H59-F59 -> -22 | M59: =L59*N58 -> -880
A60: 2 | B60: 2018-04-09 | D60: NIFTY APR 10200 PE | E60: Buy | F60: 63 | G60: 45 | H60: 45 | I60: 90-100 | J60: Loss of Rs.18/- | L60: =H60-F60 -> -18 | M60: =L60*N60 -> -1350 | N60: 75 | O60: Unsuccessful | P60: 2018-04-11 | S60: H
A61: 3 | B61: 2018-04-12 | D61: BANKNIFTY 12-APR 24900 PE | E61: Buy | F61: 26 | G61: 0 | H61: 0 | I61: 75 | J61: Loss of Rs.26/- | L61: =H61-F61 -> -26 | M61: =L61*N61 -> -1040 | N61: 40 | O61: Unsuccessful | P61: 2018-04-12 | S61: A
A62: 4 | B62: 2018-04-13 | D62: NIFTY APR 10300 PE | E62: Buy | F62: 45-47 | I62: 100 | J62: Open | S62: H
A63: 5 | B63: 2018-04-19 | D63: BANKNIFTY 19-APR 25000 PE | E63: Buy | F63: 19 | H63: 0 | I63: 50 | J63: Loss of Rs.19/- | L63: =H63-F63 -> -19 | M63: =L63*N63 -> -760 | N63: 40 | O63: Unsuccessful | P63: 2018-04-19 | S63: A
B68: Smart Delivery Trade
A69: Sr.no | B69: Date | D69: Company | E69: Rec | F69: Rec Price | G69: Stop Loss*** | H69: Call Closed At | I69: Target | J69: Remark | L69: Profit / Loss per Share | M69: Gain / Loss % | N69: Status | O69: Closed Date | P69: NSE Closed Price
A70: 1 | B70: 2018-02-15 | D70: ACC | E70: Buy$ | F70: 1585 | G70: 1520 | I70: 1750 | J70: Open | P70: =VLOOKUP(D70,Sheet2!$A$1:M2140,6,0) -> 1565.3 | S70: R
A71: 2 | B71: 2018-03-12 | D71: MOTHERSUMI | E71: Buy | F71: 317.5 | G71: 307 | H71: 327 | I71: 335 | J71: Profit of Rs.9.5/- | L71: =H71-F71-K71 -> 9.5 | M71: =L71/F71 -> 2.99% | N71: Successful | O71: 2018-04-02 | S71: R
A72: 3 | B72: 2018-03-13 | D72: PETRONET | E72: Buy | F72: 235.5 | G72: 228 | H72: 243 | I72: 245-250 | J72: Profit of Rs.7.5/- | L72: =H72-F72-K72 -> 7.5 | M72: 3.18% | N72: Successful | O72: 2018-04-17 | S72: H
A73: 4 | B73: 2018-03-21 | D73: GREAVESCOT | E73: Buy | F73: 117 | G73: 113 | H73: 120.5 | I73: 125 | J73: Profit of Rs.3.5/- | L73: =H73-F73-K73 -> 3.5 | M73: =L73/F73 -> 2.99% | N73: Successful | O73: 2018-04-02 | S73: R
A74: 5 | B74: 2018-03-26 | D74: VIPIND | E74: Buy | F74: 318 | G74: 310 | H74: 331.5 | I74: 335 | J74: Profit of Rs.13.5/- | L74: 13.5 | M74: 4.25% | N74: Successful | O74: 2018-04-05 | S74: R
A75: 6 | B75: 2018-04-02 | D75: DLF | E75: Buy | F75: 202 | G75: 194 | H75: 208 | I75: 212-215 | J75: Profit of Rs.6/- | L75: 6 | M75: =L75/F75 -> 2.97% | N75: Successful | O75: 2018-04-04 | S75: H
A76: 7 | B76: 2018-04-02 | D76: RADICO | E76: Buy | F76: 339.5 | G76: 330 | H76: 350 | I76: 360 | J76: Profit of Rs.10.5/- | L76: 10.5 | M76: =L76/F76 -> 3.09% | N76: Successful | O76: 2018-04-02 | S76: R
A77: 8 | B77: 2018-04-03 | D77: DHFL | E77: Buy | F77: 526.5 | G77: 510 | H77: 541.5 | I77: 550 | J77: Profit of Rs.15/- | L77: 15 | M77: =L77/F77 -> 2.85% | N77: Successful | O77: 2018-04-04 | S77: R
A78: 9 | B78: 2018-04-03 | D78: JINDALSTEL | E78: Buy | F78: 226.5 | G78: 219 | H78: 233.5 | I78: 237 | J78: Profit of Rs.7/- | L78: 7 | M78: 3.09% | N78: Successful | O78: 2018-04-04 | S78: R
A79: 10 | B79: 2018-04-04 | D79: ULTRACEMCO | E79: Buy | F79: 3965 | G79: 3850 | H79: 4050 | I79: 4200 | J79: Profit of Rs.85/- | L79: =H79-F79-K79 -> 85 | M79: =L79/F79 -> 2.14% | N79: Successful | O79: 2018-04-19 | S79: R
A80: 11 | B80: 2018-04-04 | D80: ADANIPORTS | E80: Buy | F80: 370.5 | G80: 358 | H80: 382.5 | I80: 395 | J80: Profit of Rs.12/- | L80: =H80-F80-K80 -> 12 | M80: =L80/F80 -> 3.24% | N80: Successful | O80: 2018-04-06 | S80: R
A81: 12 | B81: 2018-04-05 | D81: DLF | E81: Buy | F81: 202 | G81: 194 | H81: 209 | I81: 212-215 | J81: Profit of Rs.7/- | L81: =H81-F81-K81 -> 7 | M81: =L81/F81 -> 3.47% | N81: Successful | O81: 2018-04-10 | S81: H
A82: 13 | B82: 2018-04-05 | D82: HINDALCO | E82: Buy | F82: 209 | G82: 199 | H82: 215 | I82: 225-230 | J82: Profit of Rs.6/- | L82: =H82-F82-K82 -> 6 | M82: =L82/F82 -> 2.87% | N82: Successful | O82: 2018-04-06 | S82: H
A83: 14 | B83: 2018-04-09 | D83: BAJAJ-AUTO | E83: Buy | F83: 2800 | G83: 2730 | H83: 2873.5 | I83: 2920-2940 | J83: Profit of Rs.73.5/- | L83: =H83-F83-K83 -> 73.5 | M83: =L83/F83 -> 2.63% | N83: Successful | O83: 2018-04-17 | S83: R
A84: 15 | B84: 2018-04-09 | D84: SUNPHARMA | E84: Buy | F84: 514-517 | G84: 500 | I84: 540-545 | J84: Open | P84: =VLOOKUP(D84,Sheet2!$A$1:M2193,6,0) -> 514.25 | S84: R
A85: 16 | B85: 2018-04-11 | D85: HERITGFOOD | E85: Buy | F85: 737.5 | G85: 715 | H85: 777.5 | I85: 780 | J85: Profit of Rs.40/- | L85: =H85-F85-K85 -> 40 | M85: =L85/F85 -> 5.42% | N85: Successful | O85: 2018-04-11 | S85: R
A86: 17 | B86: 2018-04-11 | D86: EXIDEIND | E86: Buy | F86: 237 | G86: 228 | H86: 245.75 | I86: 250-255 | J86: Profit of Rs.8.75/- | L86: =H86-F86-K86 -> 8.75 | M86: =L86/F86 -> 3.69% | N86: Successful | O86: 2018-04-18 | S86: H
A87: 18 | B87: 2018-04-13 | D87: HINDALCO | E87: Sell | F87: 236.5 | G87: 247 | H87: 253.5 | I87: 220-217 | J87: Loss of Rs.17/- | L87: =F87-H87 -> -17 | M87: -7.19% | N87: Unsuccessful | O87: 2018-04-19 | S87: R
A88: 19 | B88: 2018-04-16 | D88: NATCOPHARM | E88: Buy | F88: 794 | G88: 770 | H88: 815 | I88: 835-845 | J88: Profit of Rs.21/- | L88: =H88-F88-K88 -> 21 | M88: =L88/F88 -> 2.64% | N88: Successful | O88: 2018-04-17 | S88: R
A89: 20 | B89: 2018-04-16 | D89: TATACHEM | E89: Buy | F89: 736-739 | G89: 720 | I89: 770 | J89: Open | P89: =VLOOKUP(D89,Sheet2!$A$1:M2198,6,0) -> 731.75 | S89: R
A90: 21 | B90: 2018-04-17 | D90: PCJEWELLER | E90: Buy | F90: 303 | G90: 295 | H90: 311 | I90: 315-318 | J90: Profit of Rs.8/- | L90: =H90-F90-K90 -> 8 | M90: =L90/F90 -> 2.64% | N90: Successful | O90: 2018-04-17 | S90: R
A91: 22 | B91: 2018-04-18 | D91: BHARTIARTL | E91: Buy | F91: 382 | G91: 369 | H91: 394.9 | I91: 400-410 | J91: Profit of Rs.12.9/- | L91: =H91-F91-K91 -> 12.9 | M91: =L91/F91 -> 3.38% | N91: Successful | O91: 2018-04-20 | S91: H
A92: 23 | B92: 2018-04-19 | D92: PCJEWELLER | E92: Buy | F92: 294-295 | G92: 288 | I92: 305-308 | J92: Open | P92: =VLOOKUP(D92,Sheet2!$A$1:M2201,6,0) -> 294.7 | S92: R
A93: 24 | B93: 2018-04-20 | D93: ASHOKLEY | E93: Buy | F93: 153 | G93: 148 | H93: 157.75 | I93: 160-163 | J93: Part Profit of Rs.4.75/- | L93: =H93-F93-K93 -> 4.75 | M93: =L93/F93 -> 3.10% | N93: Successful | O93: 2018-04-23 | S93: H
A94: 25 | B94: 2018-04-23 | D94: TATACOMM | E94: Buy | F94: 630-632 | G94: 615 | I94: 660-665 | J94: Open | P94: =VLOOKUP(D94,Sheet2!$A$1:M2203,6,0) -> 633.6 | S94: R
A97: CLBS = Closing Basis *** | F97: Reinitiated $
A98: Dividend adjusted <> | F98: Revised stoploss #
A101: Techno -Funda (positional)
A102: Sr.no | B102: Date | D102: Company | E102: Rec | F102: Rec Price | G102: Stop Loss*** | H102: Call Closed At | I102: Target | J102: Remark | L102: Profit / Loss per Share | M102: Gain / Loss % | N102: Status | O102: Closed Date | P102: NSE Closed Price
A103: 1 | B103: 2018-03-05 | D103: NILKAMAL | E103: Buy | F103: 1650 | G103: 1520 | H103: 1760 | I103: 1850-1900 | J103: Profit of Rs.110/- | L103: =H103-F103-K103 -> 110 | M103: =L103/F103 -> 6.67% | N103: Successful | O103: 2018-04-23 | S103: H
A104: 2 | B104: 2018-04-16 | D104: ENGINERSIN | E104: Buy | F104: 157-160 | G104: 147 | I104: 185-190 | J104: Open | S104: H
A105: CLBS = Closing Basis *** | F105: Reinitiated $
A106: Dividend adjusted <> | F106: Revised stoploss #
B110: Momentum Call
A111: Sr.no | B111: Date | D111: Company | E111: Rec | F111: Rec Price | G111: Stop Loss | H111: Call Closed At | I111: Target | J111: Remark | L111: Profit / Loss per Share/Lot | M111: Gain / Loss % | N111: Gain / Loss per Lot | O111: Lot | P111: Status | Q111: Closed Date | R111: NSE Closed Price
A112: 1 | B112: 2018-04-03 | D112: GLENMARK APR FUT | E112: Buy | F112: 552.5 | G112: 528 | H112: 559.5 | I112: 570 | J112: Profit of Rs.7/- | L112: =H112-F112 -> 7 | N112: =L112*O112 -> 6300 | O112: 900 | P112: Successful | Q112: 2018-04-04 | S112: H
A113: 2 | B113: 2018-04-03 | D113: SUVEN | E113: Buy | F113: 174 | G113: 168 | H113: 178.5 | I113: 188-190 | J113: Profit of Rs.4.5/- | L113: =H113-F113-K113 -> 4.5 | M113: =L113/F113 -> 2.59% | P113: Successful | Q113: 2018-04-09 | S113: R
A114: 3 | B114: 2018-04-03 | D114: VOLTAS | E114: Buy | F114: 533.5 | G114: 517 | H114: 549.5 | I114: 560-565 | J114: Profit of Rs.16/- | L114: =H114-F114-K114 -> 16 | M114: =L114/F114 -> 3.00% | P114: Successful | Q114: 2018-04-03 | S114: H
A115: 4 | B115: 2018-04-03 | D115: ARVIND | E115: Buy | F115: 399 | G115: 389 | H115: 407.5 | I115: 418-422 | J115: Profit of Rs.8.5/- | L115: =H115-F115-K115 -> 8.5 | M115: =L115/F115 -> 2.13% | P115: Successful | Q115: 2018-04-04 | S115: H
A116: 5 | B116: 2018-04-04 | D116: BANKNIFTY 26 APR | E116: Buy | F116: 24255 | G116: 24130 | H116: 24130 | I116: 24500 | J116: Loss of Rs.125/- | L116: -125 | N116: =O116*L116 -> -5000 | O116: 40 | P116: Unsuccessful | Q116: 2018-04-04 | S116: R
A117: 6 | B117: 2018-04-04 | D117: ARVIND | E117: Buy | F117: 399 | G117: 389 | H117: 407.5 | I117: 418-422 | J117: Profit of Rs.8.5/- | L117: =H117-F117-K117 -> 8.5 | M117: =L117/F117 -> 2.13% | P117: Successful | Q117: 2018-04-05 | S117: H
A118: 7 | B118: 2018-04-05 | D118: VOLTAS | E118: Buy | F118: 631.5 | G118: 617 | H118: 645 | I118: 660-665 | J118: Profit of Rs.13.5/- | L118: =H118-F118-K118 -> 13.5 | M118: 2.14% | P118: Successful | Q118: 2018-04-13 | S118: H
A119: 8 | B119: 2018-04-05 | D119: BFUTILITIE | E119: Buy | F119: 401 | G119: 388 | H119: 409.5 | I119: 425 | J119: Profit of Rs.8.5/- | L119: =H119-F119-K119 -> 8.5 | M119: =L119/F119 -> 2.12% | P119: Successful | Q119: 2018-04-06 | S119: R
A120: 9 | B120: 2018-04-06 | D120: LT APR FUT | E120: Buy | F120: 1316.5 | G120: 1297 | H120: 1327.5 | I120: 1350-1360 | J120: Profit of Rs.11/- | L120: =H120-F120-K120 -> 11 | N120: =O120*L120 -> 8250 | O120: 750 | P120: Successful | Q120: 2018-04-09 | S120: H
A121: 10 | B121: 2018-04-06 | D121: BHARTIARTL APR FUT | E121: Sell | F121: 390.5 | G121: 397 | H121: 384.25 | I121: 382 | J121: Profit of Rs.6.25/- | L121: =F121-H121 -> 6.25 | N121: =O121*L121 -> 10625 | O121: 1700 | P121: Successful | Q121: 2018-04-06 | S121: H
A122: 11 | B122: 2018-04-10 | D122: KOTAKBANK APR FUT | E122: Sell | F122: 1128 | G122: 1146 | H122: 1114.5 | I122: 1100-1090 | J122: Profit of Rs.13.5/- | L122: =F122-H122 -> 13.5 | N122: =O122*L122 -> 10800 | O122: 800 | P122: Successful | Q122: 2018-04-06 | S122: H
A123: 12 | B123: 2018-04-10 | D123: BHARATFORG | E123: Buy | F123: 733.5 | G123: 714 | H123: 750.5 | I123: 765 | J123: Profit of Rs.17/- | L123: =H123-F123-K123 -> 17 | M123: =L123/F123 -> 2.32% | P123: Successful | Q123: 2018-04-19 | S123: R
A124: 13 | B124: 2018-04-10 | D124: BOMDYEING | E124: Buy | F124: 257.5 | G124: 250 | H124: 263.75 | I124: 270-275 | J124: Profit of Rs.6.25/- | L124: =H124-F124-K124 -> 6.25 | M124: =L124/F124 -> 2.43% | P124: Successful | Q124: 2018-04-17 | S124: H
A125: 14 | B125: 2018-04-11 | D125: NIITTECH | E125: Buy | F125: 891 | G125: 868 | H125: 909.5 | I125: 918-922 | J125: Profit of Rs.18.5/- | L125: =H125-F125-K125 -> 18.5 | M125: =L125/F125 -> 2.08% | P125: Successful | Q125: 2018-04-12 | S125: R
A126: 15 | B126: 2018-04-12 | D126: DHFL | E126: Buy | F126: 534 | G126: 523 | H126: 544.5 | I126: 550-555 | J126: Profit of Rs.10.5/- | L126: =H126-F126-K126 -> 10.5 | M126: =L126/F126 -> 1.97% | P126: Successful | Q126: 2018-04-13 | S126: R
A127: 16 | B127: 2018-04-12 | D127: JSLHISAR | E127: Buy | F127: 179.5 | G127: 176 | H127: 184 | I127: 190-192 | J127: Profit of Rs.4.5/- | L127: =H127-F127-K127 -> 4.5 | M127: =L127/F127 -> 2.51% | P127: Successful | Q127: 2018-04-12 | S127: R
A128: 17 | B128: 2018-04-16 | D128: GLENMARK | E128: Buy | F128: 574-577 | G128: 559 | I128: 600-610 | J128: Open | S128: H
A129: 18 | B129: 2018-04-16 | D129: BALKRISIND | E129: Buy | F129: 1297.5 | G129: 1268 | H129: 1326.5 | I129: 1340-1350 | J129: Profit of Rs.29/- | L129: =H129-F129-K129 -> 29 | M129: =L129/F129 -> 2.24% | P129: Successful | Q129: 2018-04-16 | S129: H
A130: 19 | B130: 2018-04-16 | D130: RADICO | E130: Buy | F130: 382 | G130: 372 | H130: 391.5 | I130: 395-400 | J130: Profit of Rs.9.5/- | L130: =H130-F130-K130 -> 9.5 | M130: =L130/F130 -> 2.49% | P130: Successful | Q130: 2018-04-17 | S130: R
A131: 20 | B131: 2018-04-17 | D131: ASIANPAINT APR FUT | E131: Buy | F131: 1173.5 | G131: 1158 | H131: 1187.5 | I131: 1200-1210 | J131: Profit of Rs.14/- | L131: =H131-F131-K131 -> 14 | N131: =O131*L131 -> 8400 | O131: 600 | P131: Successful | Q131: 2018-04-17 | S131: H
A132: 21 | B132: 2018-04-17 | D132: BANKNIFTY | E132: Sell | F132: 25355 | G132: 25510 | H132: 25270 | I132: 25100-25050 | J132: Profit of Rs.85/- | L132: =F132-H132 -> 85 | N132: =O132*L132 -> 3400 | O132: 40 | P132: Successful | Q132: 2018-04-17 | S132: R
A133: 22 | B133: 2018-04-18 | D133: SOUTHBANK | E133: Buy | F133: 26.4 | G133: 25.9 | H133: 25.8 | I133: 27.6-28 | J133: Loss of Rs.0.6/- | L133: =H133-F133-K133 -> -0.6 | M133: =L133/F133 -> -2.27% | P133: Unsuccessful | Q133: 2018-04-23 | S133: H
A134: 23 | B134: 2018-04-19 | D134: DRREDDY APR FUT | E134: Sell | F134: 2110 | G134: 2131 | H134: 2131 | I134: 2050 | J134: Loss of Rs.-21/- | L134: =F134-H134 -> -21 | N134: =O134*L134 -> -5250 | O134: 250 | P134: Unsuccessful | Q134: 2018-04-19 | S134: R
A135: 24 | B135: 2018-04-19 | D135: RAIN | E135: Buy | F135: 339.5 | G135: 328 | H135: 347.5 | I135: 355-350 | J135: Profit of Rs.8/- | L135: =H135-F135-K135 -> 8 | M135: =L135/F135 -> 2.36% | P135: Successful | Q135: 2018-04-19 | S135: H
A136: 25 | B136: 2018-04-19 | D136: DLF APR FUT | E136: Sell | F136: 214.5 | G136: 217 | H136: 212.25 | I136: 208 | J136: Profit of Rs.2.25/- | L136: =F136-H136 -> 2.25 | N136: =O136*L136 -> 11250 | O136: 5000 | P136: Successful | Q136: 2018-04-20 | S136: H
A137: 26 | B137: 2018-04-19 | D137: DHFL | E137: Sell | F137: 592 | G137: 604 | H137: 580.5 | I137: 574-570 | J137: Profit of Rs.11.5/- | L137: =F137-H137 -> 11.5 | M137: =L137/F137 -> 1.94% | P137: Successful | Q137: 2018-04-20 | S137: R
A138: 27 | B138: 2018-04-20 | D138: KOTAKBANK APR FUT | E138: Buy | F138: 1149.5 | G138: 1139 | H138: 1157.5 | I138: 1170 | J138: Profit of Rs.8/- | L138: =H138-F138-K138 -> 8 | N138: =O138*L138 -> 6400 | O138: 800 | P138: Successful | Q138: 2018-04-20 | S138: R
A139: 28 | B139: 2018-04-23 | D139: V-GAURD | E139: Buy | F139: 246-249 | G139: 240 | I139: 255-260 | J139: Open | S139: H
A140: 29 | B140: 2018-04-23 | D140: BIOCON | E140: Buy | F140: 633-637 | G140: 619 | I140: 655-660 | J140: Open | S140: H
A141: 30 | B141: 2018-04-23 | D141: DELTACORP | E141: Buy | F141: 289 | G141: 283 | H141: 285.5 | I141: 302-305 | J141: Loss of Rs.3.5/- | L141: =H141-F141-K141 -> -3.5 | M141: =L141/F141 -> -1.21% | P141: Unsuccessful | Q141: 2018-04-23 | S141: R
A142: 31 | B142: 2018-04-23 | D142: GRANULES | E142: Buy | F142: 110-111 | G142: 108 | I142: 115 | J142: Open | S142: H
A147: CLBS = Closing Basis *** | F147: Reinitiated $
A148: Dividend adjusted <> | F148: Revised stoploss #
B152: Quick Pick Intraday
A153: Sr.no | B153: Date | D153: Company | E153: Rec | F153: Rec Price | G153: Stop Loss*** | H153: Call Closed At | I153: Target | J153: Remark | L153: Profit / Loss per Share | M153: Gain / Loss % | N153: Status | O153: Closed Date
A154: 1 | B154: 2018-04-09 | D154: BFUTILITIE | E154: Buy | F154: 406 | G154: 398 | H154: 413.5 | I154: 425 | J154: Profit of Rs.7.5/- | L154: =H154-F154-K154 -> 7.5 | M154: =L154/F154 -> 1.85% | N154: Successful | O154: 2018-04-09 | S154: R
A155: 2 | B155: 2018-04-09 | D155: WABAG | E155: Buy | F155: 501.5 | G155: 490 | H155: 499.5 | I155: 518 | J155: Loss of Rs.2/- | L155: =H155-F155-K155 -> -2 | M155: =L155/F155 -> -0.40% | N155: Neutral | O155: 2018-04-09 | S155: R
A156: 3 | B156: 2018-04-09 | D156: ORIENTBANK | E156: Sell | F156: 99.5 | G156: 101 | H156: 101 | I156: 97-96 | J156: Loss of Rs.1.5/- | L156: =F156-H156 -> -1.5 | M156: =L156/F156 -> -1.51% | N156: Unsuccessful | O156: 2018-04-09 | S156: H
A157: 4 | B157: 2018-04-10 | D157: RADICO | E157: Buy | F157: 373 | G157: 366 | H157: 373 | I157: 385-390 | J157: No profit no loss | L157: =H157-F157-K157 -> 0 | M157: 0.00% | N157: Neutral | O157: 2018-04-10 | S157: R
A158: 5 | B158: 2018-04-10 | D158: WABAG | E158: Buy | F158: 497 | G158: 487 | H158: 515 | I158: 510 | J158: Profit of Rs.18/- | L158: =H158-F158-K158 -> 18 | M158: 3.62% | N158: Successful | O158: 2018-04-10 | S158: R
A159: 6 | B159: 2018-04-11 | D159: VIPIND | E159: Buy | F159: 377 | G159: 369 | H159: 384.75 | I159: 395 | J159: Profit of Rs.7.75/- | L159: =H159-F159-K159 -> 7.75 | M159: =L159/F159 -> 2.06% | N159: Successful | O159: 2018-04-11 | S159: R
A160: 7 | B160: 2018-04-12 | D160: RADICO | E160: Buy | F160: 374 | G160: 366 | H160: 381.5 | I160: 395-390 | J160: Profit of Rs.7.5/- | L160: =H160-F160 -> 7.5 | M160: =L160/F160 -> 2.01% | N160: Successful | O160: 2018-04-12 | S160: R
A161: 8 | B161: 2018-04-12 | D161: BALKRISIND | E161: Buy | F161: 1283 | G161: 1258 | H161: 1291.5 | I161: 1315-1325 | J161: Profit of Rs.8.5/- | L161: =H161-F161-K161 -> 8.5 | M161: 0.66% | N161: Neutral | O161: 2018-04-11 | S161: H
A162: 9 | B162: 2018-04-12 | D162: HEIDELBERG | E162: Buy | F162: 153.5 | G162: 149 | H162: 156.5 | I162: 157-160 | J162: Profit of Rs.3/- | L162: =H162-F162 -> 3 | M162: =L162/F162 -> 1.95% | N162: Successful | O162: 2018-04-12 | S162: R
A163: 10 | B163: 2018-04-13 | D163: HINDPETRO | E163: Buy | F163: 341 | G163: 334 | H163: 334 | I163: 350-352 | J163: Loss of Rs.7/- | L163: =H163-F163 -> -7 | M163: -2.05% | N163: Unsuccessful | O163: 2018-04-13 | S163: R
A164: 11 | B164: 2018-04-13 | D164: RAIN | E164: Buy | F164: 358 | G164: 354 | H164: 354 | I164: 370 | J164: Loss of Rs.4/- | L164: =H164-F164 -> -4 | M164: =L164/F164 -> -1.12% | N164: Unsuccessful | O164: 2018-04-13 | S164: R
A165: 12 | B165: 2018-04-13 | D165: JAICORPLTD | E165: Buy | F165: 156 | G165: 153 | H165: 153 | I165: 162-164 | J165: Loss of Rs.3/- | L165: -3 | M165: -1.92% | N165: Unsuccessful | O165: 2018-04-13 | S165: R
A166: 13 | B166: 2018-04-17 | D166: PNB | E166: Sell | F166: 99.75 | G166: 102 | H166: 98.55 | I166: 97-96 | J166: Profit of Rs.1.2/- | L166: =F166-H166 -> 1.2 | M166: =L166/F166 -> 1.20% | N166: Successful | O166: 2018-04-17 | S166: H
A167: 14 | B167: 2018-04-17 | D167: VOLTAS | E167: Buy | F167: 645.5 | G167: 637 | H167: 637 | I167: 655-660 | J167: Loss of Rs.8.5/- | L167: =H167-F167 -> -8.5 | M167: -1.32% | N167: Unsuccessful | O167: 2018-04-17 | S167: H
A168: 15 | B168: 2018-04-19 | D168: WABAG | E168: Buy | F168: 516 | G168: 507 | H168: 525.5 | I168: 530 | J168: Profit of Rs.9.5/- | L168: =H168-F168 -> 9.5 | M168: 1.84% | N168: Successful | O168: 2018-04-19 | S168: R
A169: 16 | B169: 2018-04-20 | D169: BOMDYEING | E169: Buy | F169: 281 | G169: 275 | H169: 275 | I169: 290 | J169: Loss of Rs.6/- | L169: =H169-F169 -> -6 | M169: =L169/F169 -> -2.14% | N169: Unsuccessful | O169: 2018-04-20 | S169: R
A170: 17 | B170: 2018-04-20 | D170: GHCL | E170: Buy | F170: 295.5 | G170: 289 | H170: 294.5 | I170: 302-305 | J170: Loss of Rs.1/- | L170: =H170-F170 -> -1 | M170: =L170/F170 -> -0.34% | N170: Neutral | O170: 2018-04-20 | S170: H
B176: Investment Idea
A177: Sr.no | B177: Date | D177: Company | E177: Rec | F177: Rec Price | G177: Point of Review | H177: Close Rate | I177: Target | J177: Remark | L177: Profit / Loss per Share | M177: Gain / Loss % | N177: Status | O177: Closed Date
A178: 1 | B178: 2013-11-01 | D178: L&T Finance Holding | E178: Accu | F178: 82.00 | G178: - | H178: 100 | I178: 100.00 | J178: Target Achieved | L178: =H178-F178-K178 -> 18.00 | M178: =L178/F178 -> 21.95% | N178: Successful | O178: 2016-10-14
A179: 2 | B179: 2014-06-04 | D179: Finolex Inds | E179: Buy | F179: 257.00 | G179: - | H179: 300 | I179: 300.00 | J179: Target Achieved | L179: 43.00 | M179: 16.73% | N179: Successful | O179: 2014-07-02
A180: =1+A179 -> 3 | B180: 2014-07-08 | D180: JK Cement | E180: Buy | F180: 393.00 | G180: - | H180: 468 | I180: 468.00 | J180: Target Achieved | L180: 75.00 | M180: 19.08% | N180: Successful | O180: 2014-08-12
A181: 4 | B181: 2014-08-06 | D181: Finolex Cables | E181: Buy | F181: 205.00 | G181: - | H181: 275 | I181: 250.00 | J181: Target Achieved | L181: 70.00 | M181: 34.15% | N181: Successful | O181: 2014-11-19
A182: 5 | B182: 2014-09-04 | D182: Exide Inds | E182: Buy | F182: 162.00 | G182: - | H182: 190 | I182: 190.00 | J182: Target Achieved | L182: 28.00 | M182: 17.28% | N182: Successful | O182: 2015-01-02
A183: 6 | B183: 2014-09-04 | D183: Deepak Nitrite | E183: Buy | F183: 75.00 | G183: - | H183: 91.5 | I183: 95-100 | J183: Profit of Rs.16.50/- | L183: 16.50 | M183: 22.00% | N183: Successful | O183: 2014-11-11
A184: 7 | B184: 2014-10-01 | D184: Mercks | E184: Buy | F184: 850.00 | G184: - | H184: 982.5 | I184: 1050.00 | J184: Profit of Rs.132.50/- | L184: 132.50 | M184: 15.59% | N184: Successful | O184: 2015-02-04
A185: 8 | B185: 2014-10-01 | D185: Grindwell Norton | E185: Buy | F185: 475.00 | G185: - | H185: 515 | I185: 600.00 | J185: Profit of Rs.40/- | L185: 40.00 | M185: 8.42% | N185: Successful | O185: 2014-10-27
A186: 9 | B186: 2014-10-01 | D186: Snowman Logistics | E186: Buy | F186: 86.00 | G186: - | H186: 99 | I186: 140.00 | J186: Profit of Rs.13.00/- | L186: 13.00 | M186: 15.12% | N186: Successful | O186: 2014-10-27
A187: 10 | B187: 2014-10-14 | D187: Birla Corp | E187: Buy | F187: 496.60 | G187: - | H187: 621 | I187: 580.00 | J187: Target Achieved | L187: 124.40 | M187: 25.05% | N187: Successful | O187: 2016-08-23
A188: 11 | B188: 2014-10-14 | D188: Ultratech Cem | E188: Buy | F188: 2481.90 | G188: - | H188: 2840 | I188: 2870.00 | J188: Profit of Rs.358.10/- | L188: 358.10 | M188: 14.43% | N188: Successful | O188: 2015-01-13
A189: =1+A186 -> 10 | B189: 2014-10-16 | D189: Sintex Inds | E189: Buy | F189: 84.50 | G189: - | H189: 93 | I189: 110.00 | J189: Profit of Rs.8.50/- | L189: 8.50 | M189: 10.06% | N189: Successful | O189: 2014-10-27
A190: =1+A189 -> 11 | B190: 2014-10-16 | D190: HSIL | E190: Buy | F190: 401.00 | G190: - | H190: 428 | I190: 450.00 | J190: Profit of Rs.27.00/- | L190: 27.00 | M190: 6.73% | N190: Successful | O190: 2015-01-16
A191: 12 | B191: 2014-10-16 | D191: Eveready Inds | E191: Buy | F191: 101.00 | G191: - | H191: 112 | I191: 120.00 | J191: Profit of Rs.11.00/- | L191: 11.00 | M191: 10.89% | N191: Successful | O191: 2014-10-27
A192: 13 | B192: 2014-11-11 | D192: Pennar Inds | E192: Buy | F192: 59.00 | G192: - | H192: 76 | I192: 76.00 | J192: Target Achieved | L192: 17.00 | M192: 28.81% | N192: Successful | O192: 2017-10-24
A193: 14 | B193: 2014-11-11 | D193: Snowman Logistics | E193: Buy | F193: 99.00 | G193: - | H193: 120 | I193: 120.00 | J193: Profit of Rs.21/- | L193: 21.00 | M193: 21.21% | N193: Successful | O193: 2014-11-17
A194: 15 | B194: 2014-11-13 | D194: Dharamsi Morarji Chem | E194: Buy | F194: 22.00 | G194: - | H194: 33.55 | I194: 32.00 | J194: Profit of Rs 11.55/- | L194: 11.55 | M194: 52.50% | N194: Successful | O194: 2015-07-03
A195: 16 | B195: 2014-12-03 | D195: Tatachem | E195: Buy | F195: 440.00 | G195: - | H195: 520 | I195: 520.00 | J195: Profit of Rs 80.00/- | L195: 80.00 | M195: 18.18% | N195: Successful | O195: 2015-07-23
A196: 17 | B196: 2014-12-03 | D196: Advanta | E196: Buy | F196: 360.00 | G196: - | H196: 427 | I196: 425.00 | J196: Profit of Rs.67.00/- | L196: 67.00 | M196: 18.61% | N196: Successful | O196: 2015-02-23
A197: 18 | B197: 2015-01-08 | D197: GDL | E197: Buy | F197: 360.00 | G197: - | H197: 455 | I197: 420.00 | J197: Profit of Rs.95.00/- | L197: 95.00 | M197: 26.39% | N197: Successful | O197: 2015-01-20
A198: 19 | B198: 2015-01-08 | D198: NRB Bearing | E198: Buy | F198: 130.00 | H198: 175.5 | I198: 165.00 | J198: Profit of Rs 45.50/- | L198: 45.50 | M198: 35.00% | N198: Successful | O198: 2017-12-19
A199: 20 | B199: 2015-02-05 | D199: GSFC | E199: Accu | F199: 98.00 | H199: 120 | I199: 120.00 | J199: Target Achieved | L199: 22.00 | M199: 22.45% | N199: Successful | O199: 2017-01-18
A200: 21 | B200: 2015-02-05 | D200: Sundrmfast | E200: Accu | F200: 196.00 | H200: 262 | I200: 255.00 | J200: Target Achieved | L200: 66.00 | M200: 33.67% | N200: Successful | O200: 2016-08-17
A201: 22 | B201: 2015-03-04 | D201: GPPL | E201: Accu | F201: 230-240 | I201: 280-285 | J201: Open
A202: 23 | B202: 2015-03-04 | D202: ORIENTCEM | E202: Accu | F202: 185.00 | H202: 224 | I202: 220-225 | J202: Target Achieved | L202: =H202-F202-K202 -> 39.00 | M202: =L202/F202 -> 21.08% | N202: Successful | O202: 2016-10-04
A203: 24 | B203: 2015-03-27 | D203: PFS | E203: Accu | F203: 49-50 | I203: 67.00 | J203: Open
A204: 25 | B204: 2015-03-30 | D204: Walchandnagar Ind Ltd | E204: Accu | F204: 183.50 | H204: 219 | I204: 218.00 | J204: Profit of Rs.35.50/- | L204: =H204-F204-K204 -> 35.50 | M204: =L204/F204 -> 19.35% | N204: Successful | O204: 2015-04-09
A205: 26 | B205: 2015-04-20 | D205: Kalpataru Power Transmission Ltd | E205: Accu | F205: =(227+237)/2 -> 232.00 | H205: 298 | I205: 298.00 | J205: Target Achieved | L205: 66.00 | M205: 28.45% | N205: Successful | O205: 2017-03-29
A206: 27 | B206: 2015-05-04 | D206: Mastek Ltd | E206: Buy | F206: 385.00 | H206: =212.5+331 -> 543.5 | I206: 510.00 | J206: Profit of Rs 158.50/- | L206: 158.50 | M206: 41.17% | N206: Successful | O206: 2015-08-19
A207: 28 | B207: 2015-05-04 | D207: Suprajit Eng | E207: Buy | F207: 115.50 | H207: 146 | I207: 142.00 | J207: Profit of Rs 30.50/- | L207: 30.50 | M207: 26.41% | N207: Successful | O207: 2015-07-17
A208: 29 | B208: 2015-05-27 | D208: TCI | E208: Buy | F208: 237.50 | H208: 279.5 | I208: 278.00 | J208: Target Achieved | L208: 42.00 | M208: 17.68% | N208: Successful | O208: 2015-08-06
A209: 30 | B209: 2015-06-19 | D209: HSIL | E209: Accu | F209: 340.00 | H209: 448 | I209: 448.00 | J209: Target Achieved | L209: 108.00 | M209: 31.76% | N209: Successful | O209: 2017-10-10
A210: 31 | B210: 2015-07-06 | D210: Capital First | E210: Accu | F210: 390.00 | H210: 460 | I210: 460.00 | J210: Target Achieved | L210: 70.00 | M210: 17.95% | N210: Successful | O210: 2016-04-18
A211: 32 | B211: 2015-07-10 | D211: Dolphin OffShore | E211: Accu | F211: 118-127 | I211: 172.00 | J211: Open
A212: 33 | B212: 2015-08-03 | D212: Allcargo logistics | E212: Accu | F212: 297.50 | H212: 350 | I212: 360.00 | J212: Profit of Rs 52.50/- | L212: =H212-F212-K212 -> 52.50 | M212: =L212/F212 -> 17.65% | N212: Successful | O212: 2015-08-16
A213: 34 | B213: 2015-08-03 | D213: Camline Fine | E213: Accu | F213: 115.50 | H213: 149 | I213: 140.00 | J213: Profit of Rs 33.50/- | L213: 33.50 | M213: 29.00% | N213: Successful | O213: 2017-01-05
A214: 35 | B214: 2015-09-04 | D214: TCI | E214: Accu | F214: 226.00 | H214: 292 | I214: 292.00 | J214: Target Achieved | L214: 66.00 | M214: 29.20% | N214: Successful | O214: 2015-10-09
A215: 36 | B215: 2015-09-07 | D215: Kalpataru Power Transmission Ltd | E215: Accu | F215: 232.50 | H215: 312.5 | I215: 310.00 | J215: Target Achieved | L215: 80.00 | M215: 34.41% | N215: Successful | O215: 2017-03-29
A216: 37 | B216: 2015-09-21 | D216: LLOYD ELECTRIC & ENG LTD | E216: Accu | F216: 196.50 | H216: 238 | I216: 238.00 | J216: Target Achieved | L216: 41.50 | M216: 21.12% | N216: Successful | O216: 2015-10-14
A217: 38 | B217: 2015-09-24 | D217: L&T Finance Holding | E217: Accu | F217: 65.00 | H217: 82 | I217: 82.00 | J217: Target Achieved | L217: 17.00 | M217: 26.15% | N217: Successful | O217: 2016-07-27
A218: 39 | B218: 2015-10-14 | D218: KEC International ltd | E218: Accu | F218: 144.00 | H218: 182.5 | I218: 181.00 | J218: Target Achieved | L218: 38.50 | M218: 26.74% | N218: Successful | O218: 2017-03-23
A219: 40 | B219: 2015-10-14 | D219: Gruh Finance | E219: Accu | F219: 264.00 | H219: 311 | I219: 311.00 | J219: Target Achieved | L219: 47.00 | M219: 17.80% | N219: Successful | O219: 2016-08-22
A220: 41 | B220: 2015-11-10 | D220: Pidilitind | E220: Buy | F220: 549.50 | H220: 630 | I220: 630.00 | J220: Target Achieved | L220: 80.50 | M220: 14.65% | N220: Successful | O220: 2016-02-19
A221: 42 | B221: 2015-12-04 | D221: Zensar Technology | E221: Accu | F221: 1020-1035 | I221: 1250.00 | J221: Open
A222: 43 | B222: 2015-12-29 | D222: Vinati Organics Ltd | E222: Accu | F222: 465.00 | H222: 540 | I222: 540.00 | J222: Target Achieved | L222: =H222-F222-K222 -> 75.00 | M222: =L222/F222 -> 16.13% | N222: Successful | O222: 2016-06-09
A223: 44 | B223: 2016-01-11 | D223: GSFC | E223: Buy | F223: 81.00 | H223: 110 | I223: 110.00 | J223: Target Achieved | L223: 29.00 | M223: 35.80% | N223: Successful | O223: 2017-01-10
A224: 45 | B224: 2016-01-13 | D224: SSWL | E224: Buy | F224: 417.50 | H224: 547 | I224: 535.00 | J224: Target Achieved | L224: 129.50 | M224: 31.02% | N224: Successful | O224: 2016-07-27
A225: 46 | B225: 2016-02-08 | D225: Persistent System Ltd | E225: Accu | F225: 650.00 | H225: 800 | I225: 800.00 | J225: Target Achieved | L225: =H225-F225-K225 -> 150.00 | M225: =L225/F225 -> 23.08% | N225: Successful | O225: 2018-02-23
A226: 47 | B226: 2016-03-04 | D226: UPL | E226: Accu | F226: 437.50 | H226: 504.5 | I226: 522.00 | J226: Profit of Rs.67/- | L226: 67.00 | M226: 15.31% | N226: Successful | O226: 2016-04-20
A227: 48 | B227: 2016-03-09 | D227: Ashoka Buildcon Ltd | E227: Accu | F227: 189.50 | H227: 218 | I227: 218.00 | J227: Target Achieved | L227: 28.50 | M227: 15.04% | N227: Successful | O227: 2017-10-26
A228: 49 | B228: 2016-04-11 | D228: PTC INDIA FIN SERV LTD | E228: Accu | F228: 36-37 | I228: 60.00 | J228: Open
A229: 50 | B229: 2016-04-12 | D229: CAMLINFINE $ | E229: Accu | F229: 93.00 | H229: 149 | I229: 140.00 | J229: Profit of Rs 56/- | L229: =H229-F229-K229 -> 56.00 | M229: =L229/F229 -> 60.22% | N229: Successful | O229: 2017-01-05
A230: 51 | B230: 2016-04-12 | D230: Greaves Cotton Ltd. | E230: Accu | F230: 130.00 | H230: 150 | I230: 150-155 | J230: Target Achieved | L230: 20.00 | M230: 15.38% | N230: Successful | O230: 2016-07-13
A231: 52 | B231: 2016-04-13 | D231: DHFL | E231: Accu | F231: 196.00 | H231: 299 | I231: 299.00 | J231: Target Achieved | L231: 103.00 | M231: 52.55% | N231: Successful | O231: 2016-09-07
A232: 53 | B232: 2016-04-13 | D232: Magma | E232: Accu | F232: 88.00 | H232: 103 | I232: 103.00 | J232: Target Achieved | L232: 15.00 | M232: 17.05% | N232: Successful | O232: 2016-06-09
A233: 54 | B233: 2016-05-02 | D233: KEC International ltd $ | E233: Accu | F233: 127.50 | H233: 148 | I233: 148-150 | J233: Target Achieved | L233: 20.50 | M233: 16.08% | N233: Successful | O233: 2016-07-13
A234: 55 | B234: 2016-05-03 | D234: Mindtree | E234: Accu | F234: 675.00 | H234: 815 | I234: 790-800 | J234: Target Achieved | L234: 140.00 | M234: 20.74% | N234: Successful | O234: 2018-02-23
A235: 56 | B235: 2016-06-01 | D235: Atulauto | E235: Accu | F235: 495-505 | I235: 565-570 | J235: Open
A236: 57 | B236: 2016-06-06 | D236: TRITURBINE | E236: Accu | F236: 110.00 | H236: 126.5 | I236: 125.00 | J236: Profit of Rs.16.50/- | L236: =H236-F236-K236 -> 16.50 | M236: =L236/F236 -> 15.00% | N236: Successful | O236: 2016-07-01
A237: 58 | B237: 2016-06-17 | D237: Pennar Industries Ltd | E237: Accu | F237: 44.00 | H237: 69.5 | I237: 69.50 | J237: Profit of Rs.25.50/- | L237: =H237-F237-K237 -> 25.50 | M237: =L237/F237 -> 57.95% | N237: Successful | O237: 2017-08-30
A238: 59 | B238: 2016-06-28 | D238: EVEREADY INDS. IND. LTD. | E238: Accu | F238: 262.50 | H238: 340 | I238: 333.00 | J238: Profit of Rs.77.50/- | L238: =H238-F238-K238 -> 77.50 | M238: =L238/F238 -> 29.52% | N238: Successful | O238: 2017-10-09
A239: 60 | B239: 2016-06-28 | D239: FIEM INDUSTRIES LIMITED | E239: Accu | F239: 840.00 | H239: 1230 | I239: 1230.00 | J239: Target Achieved | L239: =H239-F239-K239 -> 390.00 | M239: =L239/F239 -> 46.43% | N239: Successful | O239: 2016-10-06
... 66 more rows

Sheet Call Tracker (Currency)
A1: Master Trade High Risk
A2: Sr.no | B2: Date | C2: Company | D2: Rec | E2: Rec Price | F2: Stop Loss | G2: Call Closed At | H2: Target | I2: Remark | K2: Profit / Loss per share | L2: Gain / Loss per Lot | M2: Lot | N2: Status | O2: Closed Date
A3: 1 | B3: 2017-05-08 | C3: USDINR MAY FUT | D3: Buy | E3: 64.3935 | F3: 64.29 | G3: 64.66 | H3: 64.59 | I3: Profit of Rs.0.27/- | K3: 0.27 | L3: 266.5 | M3: 1000 | N3: Successful | O3: 2017-05-09 | R3: P
A4: 2 | B4: 2017-05-08 | C4: USDINR JUN FUT | D4: Buy | E4: 64.6535 | F4: 64.45 | G4: 64.965 | H4: 65.05 | I4: Profit of Rs 0.31/- | K4: 0.31 | L4: 311.5 | M4: 1000 | N4: Successful | O4: 2017-05-09 | R4: P
A5: 3 | B5: 2017-05-09 | C5: EUROINR MAY FUT | D5: Sell | E5: 70.65 | F5: 70.8 | G5: 70.07 | H5: 70.4 | I5: Profit of Rs 0.58/- | K5: 0.58 | L5: 580 | M5: 1000 | N5: Successful | O5: 2017-05-12 | R5: P
A6: 4 | B6: 2017-05-09 | C6: GBPINR MAY FUT | D6: Buy | E6: 83.774 | F6: 83.37 | G6: 83.37 | H6: 84.77 | I6: Loss of Rs 0.40/- | K6: -0.40 | L6: -404 | M6: 1000 | N6: Unsuccessful | O6: 2017-05-11 | R6: P
A7: 5 | B7: 2017-05-11 | C7: USDINR MAY FUT | D7: Buy | E7: 64.6555 | F7: 64.55 | G7: 64.55 | H7: 64.86 | I7: Loss of Rs.0.1055/- | K7: -0.1055 | L7: =K7*M7 -> -105.50 | M7: 1000 | N7: Unsuccessful | O7: 2017-05-11 | R7: P
A8: 6 | B8: 2017-05-15 | C8: USDINR MAY FUT | D8: Buy | E8: 64.2275 | F8: 64.08 | G8: 64.46 | H8: 64.48 | I8: Profit of Rs 0.23/- | K8: 0.23 | L8: 232.5 | M8: 1000 | N8: Successful | O8: 2017-05-18 | R8: P
A9: 7 | B9: 2017-05-19 | C9: USDINR MAY FUT | D9: Sell | E9: 64.83 | F9: 65 | G9: 65 | H9: 64.5 | I9: Loss of Rs.0.17/- | K9: -0.17 | L9: -170 | M9: 1000 | N9: Unsuccessful | O9: 2017-05-19 | R9: P
A10: 8 | B10: 2017-05-23 | C10: USDINR MAY FUT | D10: Buy | E10: 64.83 | F10: 64.62 | G10: 64.95 | H10: 65.2 | I10: Profit of Rs 0.12/- | K10: 0.12 | L10: 120 | M10: 1000 | N10: Successful | O10: 2017-05-24 | R10: P
A11: 9 | B11: 2017-05-25 | C11: USDINR MAY FUT | D11: Buy | E11: 64.57 | F11: 64.25 | G11: 64.56 | H11: 65 | I11: Loss of Rs.0.01/- | K11: -0.01 | L11: -10 | M11: 1000 | N11: Neutral | O11: 2017-05-29 | R11: P
A12: 10 | B12: 2017-05-30 | C12: USDINR JUN FUT | D12: Buy | E12: 64.9125 | F12: 64.71 | G12: 64.71 | H12: 65.31 | I12: Loss of Rs.0.20/- | K12: -0.20 | L12: -202.5 | M12: 1000 | N12: Unsuccessful | O12: 2017-05-31 | R12: P
A13: 11 | B13: 2017-06-01 | C13: USDINR JUN FUT | D13: Buy | E13: 64.655 | F13: 64.45 | G13: 64.45 | H13: 65.05 | I13: Loss of Rs.0.20/- | K13: =G13-E13 -> -0.20 | L13: =K13*M13 -> -205 | M13: 1000.00 | N13: Unsuccessful | O13: 2017-06-08 | R13: P
A14: 12 | B14: 2017-06-12 | C14: USDINR JUN FUT | D14: Buy | E14: 64.45 | F14: 64 | G14: 64.7625 | H14: 65.2 | I14: Profit of Rs 0.31/- | K14: 0.31 | L14: 312.5 | M14: 1000 | N14: Successful | O14: 2017-06-16
A15: 13 | B15: 2017-06-16 | C15: USDINR JUN FUT | D15: Buy | E15: 64.51 | F15: 64.2 | G15: 64.7 | H15: 65.11 | I15: Profit of Rs 0.19/- | K15: 0.19 | L15: 190 | M15: 1000 | N15: Successful | O15: 2017-06-21
A16: 14 | B16: 2017-06-22 | C16: USDINR JUN FUT | D16: Buy | E16: 64.56 | F16: 64.2 | G16: 64.2 | H16: 65.1 | I16: Loss of Rs.0.36/- | K16: -0.36 | L16: -360 | M16: 1000.00 | N16: Unsuccessful | O16: 2017-06-30
A17: 15 | B17: 2017-07-10 | C17: USDINR JUL FUT | D17: Buy | E17: 64.67 | F17: 64.4 | G17: 64.4 | H17: 65.15 | I17: Loss of Rs.0.27/- | K17: -0.27 | L17: -270 | M17: 1000.00 | N17: Unsuccessful | O17: 2017-07-31
A18: 16 | B18: 2017-08-02 | C18: USDINR AUG FUT | D18: Buy | E18: 64.235 | F18: 63.98 | G18: 63.98 | H18: 64.75 | I18: Loss of Rs.0.26/- | K18: -0.26 | L18: -255 | M18: 1000.00 | N18: Unsuccessful | O18: 2017-08-02
A19: 17 | B19: 2017-08-08 | C19: USDINR AUG FUT | D19: Buy | E19: 63.9425 | F19: 63.6 | G19: 64.15 | H19: 64.5 | I19: Profit of Rs 0.21/- | K19: 0.21 | L19: 207.5 | M19: 1000 | N19: Successful | O19: 2017-08-10
A20: 18 | B20: 2017-08-22 | C20: USDINR AUG FUT | D20: Buy | E20: 64.1175 | F20: 63.9 | G20: 64.01 | H20: 64.5 | I20: Loss of Rs.0.11/- | K20: =G20-E20 -> -0.11 | L20: =K20*M20 -> -107.5 | M20: 1000.00 | N20: Unsuccessful | O20: 2017-08-29
A21: 19 | B21: 2017-09-01 | C21: USDINR SEP FUT | D21: Buy | E21: 64.1 | F21: 63.8 | G21: 64.205 | H21: 64.7 | I21: Profit of Rs 0.11/- | K21: 0.11 | L21: 105 | M21: 1000 | N21: Successful | O21: 2017-09-01
A22: 20 | B22: 2017-09-04 | C22: USDINR SEP FUT | D22: Buy | E22: 64.095 | F22: 63.8 | G22: 64.195 | H22: 64.7 | I22: Profit of Rs 0.10/- | K22: 0.10 | L22: =K22*M22 -> 100 | M22: 1000 | N22: Successful | O22: 2017-09-04
A23: 21 | B23: 2017-09-05 | C23: USDINR SEP FUT | D23: Buy | E23: 64.25 | F23: 64 | G23: 64.355 | H23: 64.75 | I23: Profit of Rs 0.11/- | K23: =G23-E23 -> 0.11 | L23: =K23*M23 -> 105 | M23: 1000 | N23: Successful | O23: 2017-09-06
A24: 22 | B24: 2017-09-06 | C24: USDINR SEP FUT | D24: Sell | E24: 64.365 | F24: 64.5 | G24: 64.265 | H24: 64 | I24: Profit of Rs 0.10/- | K24: =E24-G24 -> 0.10 | L24: 100 | M24: 1000 | N24: Successful | O24: 2017-09-06
A25: 23 | B25: 2017-09-07 | C25: USDINR SEP FUT | D25: Buy | E25: 64.145 | F25: 63.9 | G25: 64.2565 | H25: 64.65 | I25: Profit of Rs 0.11/- | K25: =G25-E25 -> 0.11 | L25: =K25*M25 -> 111.5 | M25: 1000 | N25: Successful | O25: 2017-09-14
A26: 24 | B26: 2017-09-11 | C26: JPYINR SEP FUT | D26: Sell | E26: 59.0285 | F26: 59.25 | G26: 58.645 | H26: 58.5 | I26: Profit of Rs 0.38/- | K26: =E26-G26 -> 0.38 | L26: 383.5 | M26: 1000 | N26: Successful | O26: 2017-09-12
A27: 25 | B27: 2017-09-14 | C27: USDINR SEP FUT | D27: Buy | E27: 64.145 | F27: 63.95 | G27: 64.26 | H27: 64.5 | I27: Profit of Rs 0.12/- | K27: =G27-E27 -> 0.12 | L27: 115 | M27: 1000 | N27: Successful | O27: 2017-09-19
A28: 26 | B28: 2017-09-20 | C28: USDINR SEP FUT | D28: Buy | E28: 64.3515 | F28: 64.15 | G28: 64.57 | H28: 64.75 | I28: Profit of Rs 0.22/- | K28: =G28-E28 -> 0.22 | L28: =K28*M28 -> 218.5 | M28: 1000 | N28: Successful | O28: 2017-09-21
A29: 27 | B29: 2017-09-21 | C29: USDINR SEP FUT | D29: Sell | E29: 64.795 | F29: 65.05 | G29: 65.05 | H29: 64.4 | I29: Loss of Rs.0.17/- | K29: -0.17 | L29: -170 | M29: 1000.00 | N29: Unsuccessful | O29: 2017-09-22
A30: 28 | B30: 2017-09-25 | C30: USDINR SEP FUT | D30: Buy | E30: 64.77 | F30: 64.4 | G30: 64.92 | H30: 65.1 | I30: Profit of Rs 0.15/- | K30: =G30-E30 -> 0.15 | L30: =K30*M30 -> 150 | M30: 1000 | N30: Successful | O30: 2017-09-25
A31: 29 | B31: 2017-09-25 | C31: USDINR SEP FUT | D31: Sell | E31: 65.1077 | F31: 65.3 | G31: 65.3 | H31: 64.5 | I31: Loss of Rs.0.19/- | K31: -0.19 | L31: -190 | M31: 1000.00 | N31: Unsuccessful | O31: 2017-09-26
A32: 30 | B32: 2017-09-27 | C32: USDINR SEP FUT | D32: Sell | E32: 65.7225 | F32: 65.83 | G32: 65.7 | H32: 65.52 | I32: Profit of Rs 0.02/- | K32: =E32-G32 -> 0.02 | L32: =K32*M32 -> 22.5 | M32: 1000 | N32: Neutral | O32: 2017-09-27
A33: 31 | B33: 2017-09-27 | C33: USDINR OCT FUT | D33: Sell | E33: 66 | F33: 66.5 | G33: 65.895 | H33: 65 | I33: Profit of Rs 0.11/- | K33: =E33-G33 -> 0.11 | L33: 105 | M33: 1000 | N33: Successful | O33: 2017-09-27
A34: 32 | B34: 2017-09-28 | C34: USDINR OCT FUT | D34: Sell | E34: 66.075 | F34: 66.3 | G34: 65.96 | H34: 65.4 | I34: Profit of Rs 0.12/- | K34: =E34-G34 -> 0.12 | L34: =K34*M34 -> 115 | M34: 1000 | N34: Successful | O34: 2017-09-28
A35: 33 | B35: 2017-09-29 | C35: GBPINR OCT fut | D35: Buy | E35: 87.745 | F35: 87.5 | G35: 87.84 | H35: 88.25 | I35: Profit of Rs 0.09/- | K35: =G35-E35 -> 0.09 | L35: 95 | M35: 1000 | N35: Successful | O35: 2017-09-29
A36: 34 | B36: 2017-09-29 | C36: USDINR OCT FUT | D36: Buy | E36: 65.514 | F36: 65.25 | G36: 65.85 | H36: 66 | I36: Profit of Rs 0.34/- | K36: 0.34 | L36: =K36*M36 -> 336 | M36: 1000 | N36: Successful | O36: 2017-10-03
A37: 35 | B37: 2017-10-09 | C37: USDINR OCT FUT | D37: Buy | E37: 65.48 | F37: 65.23 | G37: 65.5775 | H37: 65.95 | I37: Profit of Rs 0.10/- | K37: =G37-E37 -> 0.10 | L37: =K37*M37 -> 97.5 | M37: 1000 | N37: Successful | O37: 2017-10-09
A38: 36 | B38: 2017-10-10 | C38: USDINR OCT FUT | D38: Buy | E38: 65.41 | F38: 65.15 | G38: 65.5075 | H38: 66 | I38: Profit of Rs 0.10/- | K38: 0.10 | L38: 97.5 | M38: 1000 | N38: Successful | O38: 2017-10-10
A39: 37 | B39: 2017-10-11 | C39: USDINR OCT FUT | D39: Buy | E39: 65.38 | F39: 65.13 | G39: 65.13 | H39: 65.88 | I39: Loss of Rs.0.25/- | K39: -0.25 | L39: -250 | M39: 1000.00 | N39: Unsuccessful | O39: 2017-10-13
A40: 38 | B40: 2017-10-16 | C40: USDINR OCT FUT | D40: Buy | E40: 64.7925 | F40: 64.54 | G40: 64.905 | H40: 65.3 | I40: Profit of Rs 0.11/- | K40: =G40-E40 -> 0.11 | L40: =K40*M40 -> 112.5 | M40: 1000 | N40: Successful | O40: 2017-10-17
A41: 39 | B41: 2017-10-23 | C41: USDINR OCT FUT | D41: Buy | E41: 65.115 | F41: 64.85 | G41: 65.21 | H41: 65.5 | I41: Profit of Rs 0.09/- | K41: =G41-E41 -> 0.09 | L41: =K41*M41 -> 95 | M41: 1000 | N41: Successful | O41: 2017-10-25
A42: 40 | B42: 2017-10-23 | C42: JPYINR OCT FUT | D42: Buy | E42: 57.285 | F42: 57.03 | G42: 57.38 | H42: 58.4 | I42: Profit of Rs 0.10/- | K42: =G42-E42 -> 0.10 | L42: =K42*M42 -> 95 | M42: 1000 | N42: Successful | O42: 2017-10-23
A43: 41 | B43: 2017-10-26 | C43: USDINR OCT FUT | D43: Buy | E43: 64.755 | F43: 64.5 | G43: 64.87 | H43: 65.25 | I43: Profit of Rs 0.12/- | K43: 0.12 | L43: 115 | M43: 1000 | N43: Successful | O43: 2017-10-25
A44: 42 | B44: 2017-10-30 | C44: USDINR NOV FUT | D44: Buy | E44: 65.035 | F44: 64.79 | G44: 64.79 | H44: 65.5 | I44: Loss of Rs.0.24/- | K44: -0.24 | L44: -245 | M44: 1000.00 | N44: Unsuccessful | O44: 2017-11-01
A45: 43 | B45: 2017-11-01 | C45: JPYINR NOV FUT | D45: Buy | E45: 56.9875 | F45: 56.73 | G45: 57.0959 | H45: 57.5 | I45: Profit of Rs 0.11/- | K45: =G45-E45 -> 0.11 | L45: =K45*M45 -> 108.4 | M45: 1000 | N45: Successful | O45: 2017-11-07
A46: 44 | B46: 2017-11-02 | C46: USDINR NOV FUT | D46: Buy | E46: 64.7838 | F46: 64.5 | G46: 64.89 | H46: 65.25 | I46: Profit of Rs 0.11/- | K46: =G46-E46 -> 0.11 | L46: =K46*M46 -> 106.2 | M46: 1000 | N46: Successful | O46: 2017-11-06
A47: 45 | B47: 2017-11-08 | C47: USDINR NOV FUT | D47: Buy | E47: 65.1363 | F47: 64.8375 | G47: 65.235 | H47: 65.73 | I47: Profit of Rs 0.10/- | K47: =G47-E47 -> 0.10 | L47: =K47*M47 -> 98.7 | M47: 1000 | N47: Successful | O47: 2017-11-10
A48: 46 | B48: 2017-11-08 | C48: GBPINR NOV FUT | D48: Buy | E48: 85.4983 | F48: 85.25 | G48: 85.6 | H48: 86 | I48: Profit of Rs 0.10/- | K48: =G48-E48 -> 0.10 | L48: =K48*M48 -> 101.7 | M48: 1000 | N48: Successful | O48: 2017-11-09
A49: 47 | B49: 2017-11-16 | C49: EURINR NOV FUT | D49: Buy | E49: 76.8975 | F49: 76.3975 | G49: 76.3975 | H49: 77.8975 | I49: Loss of Rs.0.50/- | K49: =G49-E49 -> -0.50 | L49: -500 | M49: 1000.00 | N49: Unsuccessful | O49: 2017-11-01
A50: 48 | B50: 2017-11-16 | C50: JPYINR NOV FUT | D50: Buy | E50: 57.6625 | F50: 57.2675 | G50: 57.8075 | H50: 58.6675 | I50: Profit of Rs 0.14/- | K50: =G50-E50 -> 0.14 | L50: =K50*M50 -> 145 | M50: 1000 | N50: Successful | O50: 2017-11-17
A51: 49 | B51: 2017-11-22 | C51: EURINR NOV FUT | D51: Buy | E51: 76.175 | F51: 75.95 | G51: 76.335 | H51: 76.6 | I51: Profit of Rs 0.16/- | K51: 0.16 | L51: =K51*M51 -> 160 | M51: 1000 | N51: Successful | O51: 2017-11-22
A52: 50 | B52: 2017-11-22 | C52: USDINR NOV FUT | D52: Buy | E52: 64.87 | F52: 64.5 | G52: 64.5 | H52: 65.5 | I52: Loss of Rs.0.37/- | K52: -0.37 | L52: -370 | M52: 1000.00 | N52: Unsuccessful | O52: 2017-11-27
A53: 51 | B53: 2017-11-28 | C53: GBPINR DEC FUT | D53: Buy | E53: 86.17 | F53: 85.85 | G53: 86.46 | H53: 87 | I53: Profit of Rs 0.29/- | K53: 0.29 | L53: =K53*M53 -> 290 | M53: 1000 | N53: Successful | O53: 2017-11-29
A54: 52 | B54: 2017-11-28 | C54: JPYINR DEC FUT | D54: Buy | E54: 58.16 | F54: 57.85 | G54: 57.85 | H54: 58.6 | I54: Loss of Rs.0.31/- | K54: -0.31 | L54: -310 | M54: 1000.00 | N54: Unsuccessful | O54: 2017-11-29
A55: 53 | B55: 2017-11-28 | C55: USDINR DEC FUT | D55: Buy | E55: 64.63 | F55: 64.13 | G55: 64.13 | H55: 65.63 | I55: Loss of Rs.0.50/- | K55: -0.50 | L55: =K55*M55 -> -500 | M55: 1000.00 | N55: Unsuccessful | O55: 2017-12-15
A56: 54 | B56: 2017-11-28 | C56: EURINR DEC FUT | D56: Buy | E56: 76.93 | F56: 76.43 | G56: 76.43 | H56: 77.93 | I56: Loss of Rs.0.50/- | K56: =G56-E56 -> -0.50 | L56: =K56*M56 -> -500 | M56: 1000.00 | N56: Unsuccessful | O56: 2017-11-29
A57: 55 | B57: 2017-12-12 | C57: EURINR DEC FUT | D57: Buy | E57: 76.105 | F57: 75.7 | G57: 76.27 | H57: 76.8 | I57: Profit of Rs 0.16/- | K57: =G57-E57 -> 0.16 | L57: 165 | M57: 1000 | N57: Successful | O57: 2017-12-14
A58: 56 | B58: 2017-12-12 | C58: JPYINR DEC FUT | D58: Buy | E58: 56.975 | F58: 56.7 | G58: 57.21 | H58: 57.6 | I58: Profit of Rs 0.23/- | K58: =G58-E58 -> 0.23 | L58: =K58*M58 -> 235 | M58: 1000 | N58: Successful | O58: 2017-12-14

Sheet Sheet2 (hidden)
A1: SYMBOL | B1: SERIES | C1: OPEN | D1: HIGH | E1: LOW | F1: CLOSE | G1: LAST | H1: PREVCLOSE | I1: TOTTRDQTY | J1: TOTTRDVAL | K1: TIMESTAMP | L1: TOTALTRADES | M1: ISIN
A2: 20MICRONS | B2: EQ | C2: 52.1 | D2: 53 | E2: 51.1 | F2: 51.55 | G2: 51.4 | H2: 52.1 | I2: 51579 | J2: 2691254.55 | K2: 2018-04-23 | L2: 630 | M2: INE144J01027
A3: 21STCENMGM | B3: EQ | C3: 40.6 | D3: 40.6 | E3: 40.6 | F3: 40.6 | G3: 40.6 | H3: 39.85 | I3: 50 | J3: 2030 | K3: 2018-04-23 | L3: 1 | M3: INE253B01015
A4: 3IINFOTECH | B4: EQ | C4: 5.75 | D4: 6 | E4: 5.7 | F4: 5.9 | G4: 5.9 | H4: 5.7 | I4: 6619743 | J4: 38971796.5 | K4: 2018-04-23 | L4: 2849 | M4: INE748C01020
A5: 3MINDIA | B5: EQ | C5: 20469 | D5: 20650 | E5: 20405.75 | F5: 20471.15 | G5: 20450 | H5: 20477.35 | I5: 498 | J5: 10229950.95 | K5: 2018-04-23 | L5: 238 | M5: INE470A01017
A6: 63MOONS | B6: EQ | C6: 94.1 | D6: 99.25 | E6: 94.1 | F6: 96.85 | G6: 97.05 | H6: 93.7 | I6: 471813 | J6: 46000544.3 | K6: 2018-04-23 | L6: 5519 | M6: INE111B01023
A7: 8KMILES | B7: EQ | C7: 776.9 | D7: 803 | E7: 776.05 | F7: 784 | G7: 787.95 | H7: 772.65 | I7: 351521 | J7: 277055742.9 | K7: 2018-04-23 | L7: 12246 | M7: INE650K01021
A8: A2ZINFRA | B8: EQ | C8: 28 | D8: 28.15 | E8: 27.7 | F8: 27.75 | G8: 27.8 | H8: 27.8 | I8: 260645 | J8: 7276513.45 | K8: 2018-04-23 | L8: 1277 | M8: INE619I01012
A9: AARTIDRUGS | B9: EQ | C9: 560.35 | D9: 574 | E9: 551.1 | F9: 565.1 | G9: 565.8 | H9: 554.15 | I9: 6108 | J9: 3433116.8 | K9: 2018-04-23 | L9: 740 | M9: INE767A01016
A10: AARTIIND | B10: EQ | C10: 1306.1 | D10: 1360 | E10: 1305.5 | F10: 1325.45 | G10: 1314 | H10: 1306.1 | I10: 50603 | J10: 67234611.55 | K10: 2018-04-23 | L10: 3199 | M10: INE769A01020
A11: AARVEEDEN | B11: EQ | C11: 46 | D11: 47.45 | E11: 45.3 | F11: 45.35 | G11: 45.35 | H11: 46.4 | I11: 18422 | J11: 851288.5 | K11: 2018-04-23 | L11: 170 | M11: INE273D01019
A12: ABAN | B12: EQ | C12: 174 | D12: 175.9 | E12: 172.45 | F12: 173.2 | G12: 173 | H12: 175.35 | I12: 554923 | J12: 96299075.35 | K12: 2018-04-23 | L12: 7534 | M12: INE421A01028
A13: ABB | B13: EQ | C13: 1288 | D13: 1350 | E13: 1280.55 | F13: 1333.3 | G13: 1335 | H13: 1274.4 | I13: 252664 | J13: 336531959.9 | K13: 2018-04-23 | L13: 15170 | M13: INE117A01022
A14: ABBOTINDIA | B14: EQ | C14: 6100.05 | D14: 6209 | E14: 6100.05 | F14: 6158.15 | G14: 6130 | H14: 6150 | I14: 19291 | J14: 119477592 | K14: 2018-04-23 | L14: 891 | M14: INE358A01014
A15: ABCAPITAL | B15: EQ | C15: 156 | D15: 159.75 | E15: 156 | F15: 158.65 | G15: 158 | H15: 156.15 | I15: 1289982 | J15: 203750357.8 | K15: 2018-04-23 | L15: 25018 | M15: INE674K01013
A16: ABFRL | B16: EQ | C16: 147.05 | D16: 149 | E16: 145.1 | F16: 148 | G16: 147.8 | H16: 147.05 | I16: 184263 | J16: 27121201.15 | K16: 2018-04-23 | L16: 2830 | M16: INE647O01011
A17: ACC | B17: EQ | C17: 1560 | D17: 1581.8 | E17: 1552 | F17: 1565.3 | G17: 1570 | H17: 1561.65 | I17: 302886 | J17: 474168705.6 | K17: 2018-04-23 | L17: 11209 | M17: INE012A01025
A18: ACCELYA | B18: EQ | C18: 1364.7 | D18: 1419 | E18: 1353.65 | F18: 1393.65 | G18: 1399 | H18: 1358 | I18: 15580 | J18: 21707391.5 | K18: 2018-04-23 | L18: 2041 | M18: INE793A01012
A19: ACE | B19: EQ | C19: 179.75 | D19: 197.85 | E19: 178.1 | F19: 193.4 | G19: 193.55 | H19: 180.25 | I19: 3112533 | J19: 595427914.2 | K19: 2018-04-23 | L19: 27566 | M19: INE731H01025
A20: ADANIENT | B20: EQ | C20: 139 | D20: 142 | E20: 137.6 | F20: 139.75 | G20: 139.35 | H20: 137.7 | I20: 4466205 | J20: 623744160.1 | K20: 2018-04-23 | L20: 24051 | M20: INE423A01024
A21: ADANIPORTS | B21: EQ | C21: 381.45 | D21: 389.55 | E21: 375.55 | F21: 386.35 | G21: 387.25 | H21: 381.15 | I21: 3614484 | J21: 1390187330 | K21: 2018-04-23 | L21: 60308 | M21: INE742F01042
A22: ADANIPOWER | B22: EQ | C22: 26 | D22: 26.1 | E22: 25.65 | F22: 25.85 | G22: 25.85 | H22: 26 | I22: 6136777 | J22: 159029263.4 | K22: 2018-04-23 | L22: 7099 | M22: INE814H01011
A23: ADANITRANS | B23: EQ | C23: 172.5 | D23: 175.35 | E23: 168.6 | F23: 170.7 | G23: 170.4 | H23: 172.35 | I23: 3795969 | J23: 649499139.5 | K23: 2018-04-23 | L23: 19601 | M23: INE931S01010
A24: ADFFOODS | B24: EQ | C24: 239.95 | D24: 246.9 | E24: 238.5 | F24: 239.95 | G24: 239 | H24: 240.4 | I24: 234672 | J24: 57158481.6 | K24: 2018-04-23 | L24: 4254 | M24: INE982B01019
A25: ADHUNIK | B25: EQ | C25: 4.1 | D25: 4.3 | E25: 4.1 | F25: 4.25 | G25: 4.3 | H25: 4.1 | I25: 59555 | J25: 250717.7 | K25: 2018-04-23 | L25: 76 | M25: INE400H01019
A26: ADLABS | B26: EQ | C26: 54.1 | D26: 55.35 | E26: 53.5 | F26: 54 | G26: 53.9 | H26: 54.3 | I26: 43956 | J26: 2393755.8 | K26: 2018-04-23 | L26: 846 | M26: INE172N01012
A27: ADORWELD | B27: EQ | C27: 416.05 | D27: 423 | E27: 414.1 | F27: 417.5 | G27: 415.25 | H27: 415.05 | I27: 4308 | J27: 1800736.45 | K27: 2018-04-23 | L27: 295 | M27: INE045A01017
A28: ADROITINFO | B28: EQ | C28: 33.5 | D28: 34.4 | E28: 33.05 | F28: 33.95 | G28: 33.95 | H28: 33.25 | I28: 5877 | J28: 198288.1 | K28: 2018-04-23 | L28: 34 | M28: INE737B01033
A29: ADSL | B29: EQ | C29: 23 | D29: 23.3 | E29: 22.4 | F29: 22.8 | G29: 22.9 | H29: 22.8 | I29: 34024 | J29: 774317.8 | K29: 2018-04-23 | L29: 164 | M29: INE102I01027
A30: ADVANIHOTR | B30: EQ | C30: 68.25 | D30: 69.15 | E30: 64.3 | F30: 67.05 | G30: 66.85 | H30: 68.25 | I30: 31773 | J30: 2125111.75 | K30: 2018-04-23 | L30: 472 | M30: INE199C01026
A31: ADVENZYMES | B31: EQ | C31: 233.35 | D31: 238.6 | E31: 232.45 | F31: 235.15 | G31: 235.2 | H31: 232.35 | I31: 126407 | J31: 29814036.8 | K31: 2018-04-23 | L31: 3388 | M31: INE837H01020
A32: AEGISCHEM | B32: EQ | C32: 280.4 | D32: 287.8 | E32: 278.15 | F32: 287.15 | G32: 287.65 | H32: 280.15 | I32: 151353 | J32: 43097542.35 | K32: 2018-04-23 | L32: 3153 | M32: INE208C01025
A33: AFL | B33: EQ | C33: 50.1 | D33: 51.95 | E33: 50.1 | F33: 51.05 | G33: 51.05 | H33: 51.2 | I33: 359 | J33: 18370.9 | K33: 2018-04-23 | L33: 5 | M33: INE020G01017
A34: AGCNET | B34: EQ | C34: 116.5 | D34: 123.5 | E34: 108.1 | F34: 120.3 | G34: 121 | H34: 116.45 | I34: 6503 | J34: 767381.5 | K34: 2018-04-23 | L34: 62 | M34: INE676A01019
A35: AGLSL | B35: EQ | C35: 104 | D35: 104.5 | E35: 98.8 | F35: 100.2 | G35: 100.05 | H35: 103.2 | I35: 3365 | J35: 344955.55 | K35: 2018-04-23 | L35: 57 | M35: INE517U01013
A36: AGRITECH | B36: EQ | C36: 145.75 | D36: 145.75 | E36: 140.3 | F36: 140.8 | G36: 140.7 | H36: 143.75 | I36: 26031 | J36: 3692436.45 | K36: 2018-04-23 | L36: 617 | M36: INE449G01018
A37: AHLUCONT | B37: EQ | C37: 418.55 | D37: 424.45 | E37: 418.1 | F37: 421.35 | G37: 422.15 | H37: 419 | I37: 13911 | J37: 5855368.3 | K37: 2018-04-23 | L37: 205 | M37: INE758C01029
A38: AHLWEST | B38: EQ | C38: 409.9 | D38: 424 | E38: 405 | F38: 410.9 | G38: 412 | H38: 404.6 | I38: 7269 | J38: 3028600.35 | K38: 2018-04-23 | L38: 300 | M38: INE915K01010
A39: AIAENG | B39: EQ | C39: 1417.2 | D39: 1433.45 | E39: 1396.05 | F39: 1417.6 | G39: 1410.5 | H39: 1415.1 | I39: 20402 | J39: 28812980.25 | K39: 2018-04-23 | L39: 1561 | M39: INE212H01026
A40: AIFL | B40: EQ | C40: 464.3 | D40: 478.25 | E40: 464.3 | F40: 471.45 | G40: 471 | H40: 464.85 | I40: 161478 | J40: 76397384.35 | K40: 2018-04-23 | L40: 2160 | M40: INE428O01016
A41: AJANTPHARM | B41: EQ | C41: 1364 | D41: 1392.65 | E41: 1338 | F41: 1383.2 | G41: 1377 | H41: 1365 | I41: 175230 | J41: 239922277.8 | K41: 2018-04-23 | L41: 7473 | M41: INE031B01049
A42: AJMERA | B42: EQ | C42: 277 | D42: 281.55 | E42: 272 | F42: 274.35 | G42: 273.8 | H42: 276.65 | I42: 51439 | J42: 14292837.7 | K42: 2018-04-23 | L42: 1346 | M42: INE298G01027
A43: AKSHARCHEM | B43: EQ | C43: 609.7 | D43: 614 | E43: 601.7 | F43: 607.35 | G43: 603.05 | H43: 604.85 | I43: 4502 | J43: 2729293.95 | K43: 2018-04-23 | L43: 244 | M43: INE542B01011
A44: AKSHOPTFBR | B44: EQ | C44: 36.5 | D44: 37.9 | E44: 36.5 | F44: 36.8 | G44: 36.8 | H44: 36.65 | I44: 753049 | J44: 27883834.55 | K44: 2018-04-23 | L44: 1926 | M44: INE523B01011
A45: AKZOINDIA | B45: EQ | C45: 1924.9 | D45: 1936 | E45: 1916 | F45: 1917.3 | G45: 1918.5 | H45: 1922.25 | I45: 4301 | J45: 8266775.8 | K45: 2018-04-23 | L45: 456 | M45: INE133A01011
A46: ALANKIT | B46: EQ | C46: 44.9 | D46: 44.9 | E46: 40.15 | F46: 42.85 | G46: 42.7 | H46: 44.6 | I46: 147247 | J46: 6245309.8 | K46: 2018-04-23 | L46: 921 | M46: INE914E01040
A47: ALBK | B47: EQ | C47: 48 | D47: 49.8 | E47: 47.35 | F47: 49.25 | G47: 49.5 | H47: 48.5 | I47: 4132139 | J47: 202148311.2 | K47: 2018-04-23 | L47: 12262 | M47: INE428A01015
A48: ALEMBICLTD | B48: EQ | C48: 56.15 | D48: 58.6 | E48: 55.9 | F48: 56.6 | G48: 56.9 | H48: 56.4 | I48: 279043 | J48: 15917002.55 | K48: 2018-04-23 | L48: 1751 | M48: INE426A01027
A49: ALICON | B49: EQ | C49: 600.05 | D49: 622 | E49: 600 | F49: 608.25 | G49: 608 | H49: 605.6 | I49: 1216 | J49: 743039.5 | K49: 2018-04-23 | L49: 90 | M49: INE062D01024
A50: ALKALI | B50: EQ | C50: 86.6 | D50: 91.3 | E50: 85.5 | F50: 87.85 | G50: 87.4 | H50: 86.15 | I50: 135385 | J50: 11978289.3 | K50: 2018-04-23 | L50: 1493 | M50: INE773I01017
A51: ALKEM | B51: EQ | C51: 1775 | D51: 1850 | E51: 1775 | F51: 1831.7 | G51: 1840.05 | H51: 1783.35 | I51: 39257 | J51: 71216141.2 | K51: 2018-04-23 | L51: 4838 | M51: INE540L01014
A52: ALKYLAMINE | B52: EQ | C52: 630 | D52: 671.45 | E52: 630 | F52: 662.35 | G52: 653 | H52: 628.85 | I52: 9850 | J52: 6441578.3 | K52: 2018-04-23 | L52: 399 | M52: INE150B01021
A53: ALLCARGO | B53: EQ | C53: 151.1 | D53: 154.45 | E53: 150.45 | F53: 151.25 | G53: 151.2 | H53: 149.75 | I53: 239245 | J53: 36395185.15 | K53: 2018-04-23 | L53: 3345 | M53: INE418H01029
A54: ALLSEC | B54: EQ | C54: 369.6 | D54: 387.1 | E54: 359.3 | F54: 368.05 | G54: 366 | H54: 370.1 | I54: 41013 | J54: 15255662.65 | K54: 2018-04-23 | L54: 2826 | M54: INE835G01018
A55: ALMONDZ | B55: EQ | C55: 27.85 | D55: 28.5 | E55: 26.3 | F55: 27.55 | G55: 27.5 | H55: 27.4 | I55: 11096 | J55: 303078.5 | K55: 2018-04-23 | L55: 46 | M55: INE326B01027
A56: ALOKTEXT | B56: EQ | C56: 2.8 | D56: 2.8 | E56: 2.8 | F56: 2.8 | G56: 2.8 | H56: 2.9 | I56: 2335624 | J56: 6539747.2 | K56: 2018-04-23 | L56: 904 | M56: INE270A01011
A57: ALPA | B57: EQ | C57: 40 | D57: 40.6 | E57: 39.75 | F57: 40.1 | G57: 40.25 | H57: 40.1 | I57: 18314 | J57: 735941.8 | K57: 2018-04-23 | L57: 119 | M57: INE385I01010
A58: ALPHAGEO | B58: EQ | C58: 785 | D58: 790 | E58: 768.05 | F58: 772.7 | G58: 769 | H58: 780.3 | I58: 15341 | J58: 11967338.75 | K58: 2018-04-23 | L58: 1317 | M58: INE137C01018
A59: AMARAJABAT | B59: EQ | C59: 852.85 | D59: 868.2 | E59: 844.4 | F59: 860.4 | G59: 858.75 | H59: 853.45 | I59: 502976 | J59: 432179683.4 | K59: 2018-04-23 | L59: 12470 | M59: INE885A01032
A60: AMBER | B60: EQ | C60: 1099 | D60: 1110 | E60: 1090 | F60: 1104.6 | G60: 1106 | H60: 1097.75 | I60: 13953 | J60: 15332096.05 | K60: 2018-04-23 | L60: 1202 | M60: INE371P01015
A61: AMBIKCO | B61: EQ | C61: 1355 | D61: 1379.15 | E61: 1333.3 | F61: 1348.9 | G61: 1357 | H61: 1368.35 | I61: 4532 | J61: 6137621.45 | K61: 2018-04-23 | L61: 676 | M61: INE540G01014
A62: AMBUJACEM | B62: EQ | C62: 245.4 | D62: 249 | E62: 245.25 | F62: 247.6 | G62: 247.4 | H62: 246.6 | I62: 1051719 | J62: 260133215.5 | K62: 2018-04-23 | L62: 19064 | M62: INE079A01024
A63: AMJLAND | B63: EQ | C63: 27.4 | D63: 27.4 | E63: 25.5 | F63: 25.75 | G63: 25.65 | H63: 26.9 | I63: 32443 | J63: 849503.6 | K63: 2018-04-23 | L63: 253 | M63: INE606A01024
A64: AMRUTANJAN | B64: EQ | C64: 292 | D64: 293 | E64: 282.5 | F64: 284.95 | G64: 283 | H64: 289.05 | I64: 11359 | J64: 3265731.05 | K64: 2018-04-23 | L64: 639 | M64: INE098F01031
A65: ANANTRAJ | B65: EQ | C65: 48.55 | D65: 49.4 | E65: 48.5 | F65: 48.7 | G65: 48.65 | H65: 48.9 | I65: 472859 | J65: 23135889 | K65: 2018-04-23 | L65: 1741 | M65: INE242C01024
A66: ANDHRABANK | B66: EQ | C66: 39 | D66: 39.7 | E66: 37.85 | F66: 39.4 | G66: 39.4 | H66: 39.15 | I66: 5811838 | J66: 226313750.8 | K66: 2018-04-23 | L66: 10970 | M66: INE434A01013
A67: ANDHRACEMT | B67: EQ | C67: 11.6 | D67: 11.8 | E67: 11.3 | F67: 11.4 | G67: 11.35 | H67: 11.45 | I67: 154817 | J67: 1790942.85 | K67: 2018-04-23 | L67: 335 | M67: INE666E01012
A68: ANDHRSUGAR | B68: EQ | C68: 435.6 | D68: 448.8 | E68: 435.1 | F68: 443.2 | G68: 443.95 | H68: 435.35 | I68: 24558 | J68: 10828419.7 | K68: 2018-04-23 | L68: 959 | M68: INE715B01013
A69: ANIKINDS | B69: EQ | C69: 45 | D69: 45 | E69: 42 | F69: 42.5 | G69: 42.4 | H69: 45.85 | I69: 109538 | J69: 4682233.45 | K69: 2018-04-23 | L69: 1113 | M69: INE087B01017
A70: ANSALAPI | B70: EQ | C70: 20.95 | D70: 21.5 | E70: 20.25 | F70: 20.75 | G70: 20.5 | H70: 20.4 | I70: 102109 | J70: 2118392.95 | K70: 2018-04-23 | L70: 286 | M70: INE436A01026
A71: ANSALHSG | B71: EQ | C71: 20.25 | D71: 21.25 | E71: 20.25 | F71: 20.4 | G71: 20.35 | H71: 20.25 | I71: 47833 | J71: 982968.75 | K71: 2018-04-23 | L71: 319 | M71: INE880B01015
A72: APARINDS | B72: EQ | C72: 789 | D72: 798 | E72: 776.3 | F72: 785.05 | G72: 785 | H72: 786 | I72: 15049 | J72: 11845660.35 | K72: 2018-04-23 | L72: 807 | M72: INE372A01015
A73: APCL | B73: EQ | C73: 198.1 | D73: 202 | E73: 194.5 | F73: 199 | G73: 199 | H73: 200.05 | I73: 1193 | J73: 236915.55 | K73: 2018-04-23 | L73: 50 | M73: INE071F01012
A74: APCOTEXIND | B74: EQ | C74: 565 | D74: 585 | E74: 561 | F74: 569.75 | G74: 568.65 | H74: 564.65 | I74: 38822 | J74: 22426402.05 | K74: 2018-04-23 | L74: 1536 | M74: INE116A01024
A75: APEX | B75: EQ | C75: 673 | D75: 689 | E75: 668.5 | F75: 671.05 | G75: 670 | H75: 678.85 | I75: 154073 | J75: 104674686.5 | K75: 2018-04-23 | L75: 5054 | M75: INE346W01013
A76: APLAPOLLO | B76: EQ | C76: 2129.85 | D76: 2169 | E76: 2110 | F76: 2158 | G76: 2163 | H76: 2129.5 | I76: 7142 | J76: 15306309.1 | K76: 2018-04-23 | L76: 906 | M76: INE702C01019
A77: APLLTD | B77: EQ | C77: 505.9 | D77: 508.1 | E77: 502 | F77: 505.3 | G77: 505 | H77: 500.45 | I77: 18727 | J77: 9467597.05 | K77: 2018-04-23 | L77: 906 | M77: INE901L01018
A78: APOLLO | B78: EQ | C78: 239.8 | D78: 249.7 | E78: 237.05 | F78: 242.35 | G78: 241.4 | H78: 240.4 | I78: 72064 | J78: 17664834.85 | K78: 2018-04-23 | L78: 2115 | M78: INE713T01010
A79: APOLLOHOSP | B79: EQ | C79: 1130.1 | D79: 1148 | E79: 1121.65 | F79: 1132.2 | G79: 1128 | H79: 1134 | I79: 142729 | J79: 162077317.8 | K79: 2018-04-23 | L79: 7839 | M79: INE437A01024
A80: APOLLOTYRE | B80: EQ | C80: 287 | D80: 290.5 | E80: 283.95 | F80: 289.1 | G80: 288.25 | H80: 287.95 | I80: 2374803 | J80: 682515342.1 | K80: 2018-04-23 | L80: 25042 | M80: INE438A01022
A81: APOLSINHOT | B81: EQ | C81: 1392 | D81: 1559.95 | E81: 1392 | F81: 1514.75 | G81: 1495 | H81: 1389.55 | I81: 3276 | J81: 4897842.2 | K81: 2018-04-23 | L81: 305 | M81: INE451F01016
A82: APTECHT | B82: EQ | C82: 290 | D82: 302.45 | E82: 289 | F82: 292.3 | G82: 293 | H82: 289.25 | I82: 1490296 | J82: 440651634.1 | K82: 2018-04-23 | L82: 17488 | M82: INE266F01018
A83: ARCHIDPLY | B83: EQ | C83: 91.1 | D83: 94.4 | E83: 89.55 | F83: 90.05 | G83: 89.75 | H83: 91.2 | I83: 99752 | J83: 9123323.7 | K83: 2018-04-23 | L83: 1162 | M83: INE877I01016
A84: ARCHIES | B84: EQ | C84: 43.25 | D84: 43.45 | E84: 39.8 | F84: 41.45 | G84: 41.45 | H84: 43.55 | I84: 476572 | J84: 19920584.05 | K84: 2018-04-23 | L84: 3464 | M84: INE731A01020
A85: ARCOTECH | B85: EQ | C85: 32 | D85: 32.35 | E85: 30 | F85: 30.15 | G85: 30.15 | H85: 31.95 | I85: 597154 | J85: 18471870.6 | K85: 2018-04-23 | L85: 2623 | M85: INE574I01035
A86: ARIES | B86: EQ | C86: 209 | D86: 209 | E86: 202.05 | F86: 203.75 | G86: 205.4 | H86: 207.55 | I86: 25713 | J86: 5289476.35 | K86: 2018-04-23 | L86: 650 | M86: INE298I01015
A87: ARIHANTSUP | B87: EQ | C87: 137.1 | D87: 140.55 | E87: 135.85 | F87: 136.3 | G87: 136.15 | H87: 136.45 | I87: 37832 | J87: 5194809.45 | K87: 2018-04-23 | L87: 1811 | M87: INE643K01018
A88: ARMANFIN | B88: EQ | C88: 415 | D88: 435 | E88: 410.25 | F88: 428.8 | G88: 430.05 | H88: 420.8 | I88: 13131 | J88: 5557672.35 | K88: 2018-04-23 | L88: 263 | M88: INE109C01017
A89: AROGRANITE | B89: EQ | C89: 61 | D89: 62.15 | E89: 58.05 | F89: 58.3 | G89: 58.5 | H89: 61.1 | I89: 82176 | J89: 4859580.95 | K89: 2018-04-23 | L89: 796 | M89: INE210C01013
A90: ARROWGREEN | B90: EQ | C90: 354 | D90: 378 | E90: 344 | F90: 361.9 | G90: 364 | H90: 347.15 | I90: 41350 | J90: 15048035.8 | K90: 2018-04-23 | L90: 1453 | M90: INE570D01018
A91: ARROWTEX | B91: EQ | C91: 37.4 | D91: 37.4 | E91: 35.1 | F91: 35.65 | G91: 36 | H91: 36.65 | I91: 7964 | J91: 287973.45 | K91: 2018-04-23 | L91: 108 | M91: INE933J01015
A92: ARSHIYA | B92: EQ | C92: 77 | D92: 77.35 | E92: 74 | F92: 74.95 | G92: 74.95 | H92: 77.15 | I92: 54882 | J92: 4136163.55 | K92: 2018-04-23 | L92: 594 | M92: INE968D01022
A93: ARVIND | B93: EQ | C93: 422 | D93: 428.8 | E93: 419.25 | F93: 425.2 | G93: 425.2 | H93: 422 | I93: 1251242 | J93: 531766019.6 | K93: 2018-04-23 | L93: 21241 | M93: INE034A01011
A94: ARVSMART | B94: EQ | C94: 185.15 | D94: 192.5 | E94: 182.5 | F94: 191.65 | G94: 192 | H94: 182.95 | I94: 37015 | J94: 6998829.55 | K94: 2018-04-23 | L94: 642 | M94: INE034S01021
A95: ASAHIINDIA | B95: EQ | C95: 351.9 | D95: 354 | E95: 347 | F95: 349.2 | G95: 347.1 | H95: 348.9 | I95: 9950 | J95: 3489554.8 | K95: 2018-04-23 | L95: 609 | M95: INE439A01020
A96: ASAHISONG | B96: EQ | C96: 351.6 | D96: 352.9 | E96: 339 | F96: 339.2 | G96: 339.1 | H96: 353.1 | I96: 17562 | J96: 6025832.7 | K96: 2018-04-23 | L96: 305 | M96: INE228I01012
A97: ASAL | B97: EQ | C97: 80.2 | D97: 81.9 | E97: 78.2 | F97: 79.25 | G97: 78.2 | H97: 80.2 | I97: 17919 | J97: 1433229.2 | K97: 2018-04-23 | L97: 215 | M97: INE900C01027
A98: ASHAPURMIN | B98: EQ | C98: 76 | D98: 78 | E98: 74.95 | F98: 76.6 | G98: 76.7 | H98: 75.7 | I98: 115115 | J98: 8823568.6 | K98: 2018-04-23 | L98: 991 | M98: INE348A01023
A99: ASHIANA | B99: EQ | C99: 161.4 | D99: 163.9 | E99: 160 | F99: 160.95 | G99: 161.25 | H99: 161.05 | I99: 54823 | J99: 8847043.65 | K99: 2018-04-23 | L99: 1131 | M99: INE365D01021
A100: ASHIMASYN | B100: EQ | C100: 31 | D100: 32.2 | E100: 30.5 | F100: 30.75 | G100: 30.75 | H100: 31 | I100: 168707 | J100: 5272334.6 | K100: 2018-04-23 | L100: 992 | M100: INE440A01010
A101: ASHOKA | B101: EQ | C101: 267.1 | D101: 268.45 | E101: 263.5 | F101: 265.4 | G101: 264.8 | H101: 266.9 | I101: 61816 | J101: 16439120.6 | K101: 2018-04-23 | L101: 1684 | M101: INE442H01029
A102: ASHOKLEY | B102: EQ | C102: 155.95 | D102: 159.95 | E102: 155.65 | F102: 159.45 | G102: 159.4 | H102: 155.55 | I102: 22119097 | J102: 3489985986 | K102: 2018-04-23 | L102: 77297 | M102: INE208A01029
A103: ASIANPAINT | B103: EQ | C103: 1160.9 | D103: 1181.4 | E103: 1145.4 | F103: 1178.7 | G103: 1177.6 | H103: 1159.35 | I103: 554353 | J103: 646671924.5 | K103: 2018-04-23 | L103: 23507 | M103: INE021A01026
A104: ASIANTILES | B104: EQ | C104: 482 | D104: 489.7 | E104: 477.65 | F104: 482.4 | G104: 482.5 | H104: 486.65 | I104: 55151 | J104: 26626672.7 | K104: 2018-04-23 | L104: 1034 | M104: INE022I01019
A105: ASPINWALL | B105: EQ | C105: 393.9 | D105: 393.95 | E105: 387 | F105: 393 | G105: 393 | H105: 388.35 | I105: 412 | J105: 160658.65 | K105: 2018-04-23 | L105: 13 | M105: INE991I01015
A106: ASSAMCO | B106: EQ | C106: 4.3 | D106: 4.65 | E106: 4.3 | F106: 4.55 | G106: 4.6 | H106: 4.4 | I106: 389243 | J106: 1757987.1 | K106: 2018-04-23 | L106: 311 | M106: INE442A01024
A107: ASTEC | B107: EQ | C107: 605.95 | D107: 609.15 | E107: 602 | F107: 607.1 | G107: 605.55 | H107: 604.5 | I107: 9455 | J107: 5736592.55 | K107: 2018-04-23 | L107: 461 | M107: INE563J01010
A108: ASTERDM | B108: EQ | C108: 166.45 | D108: 167.75 | E108: 165.65 | F108: 166.15 | G108: 166.6 | H108: 166.45 | I108: 63835 | J108: 10608038.65 | K108: 2018-04-23 | L108: 1458 | M108: INE914M01019
A109: ASTRAL | B109: EQ | C109: 915.5 | D109: 939 | E109: 915.5 | F109: 931.65 | G109: 925.3 | H109: 922.95 | I109: 11877 | J109: 11057216.3 | K109: 2018-04-23 | L109: 1092 | M109: INE006I01046
A110: ASTRAMICRO | B110: EQ | C110: 80.85 | D110: 90.25 | E110: 80.35 | F110: 87.9 | G110: 89.55 | H110: 80.8 | I110: 10064104 | J110: 852127846.8 | K110: 2018-04-23 | L110: 17730 | M110: INE386C01029
A111: ASTRAZEN | B111: EQ | C111: 988.15 | D111: 1020 | E111: 980 | F111: 1014.1 | G111: 1010.15 | H111: 986.75 | I111: 4066 | J111: 4108536.7 | K111: 2018-04-23 | L111: 535 | M111: INE203A01020
A112: ASTRON | B112: EQ | C112: 120.7 | D112: 125.5 | E112: 120.7 | F112: 124.1 | G112: 124.2 | H112: 122.05 | I112: 146728 | J112: 18209817.85 | K112: 2018-04-23 | L112: 1912 | M112: INE646X01014
A113: ATFL | B113: EQ | C113: 783.75 | D113: 804.8 | E113: 761.4 | F113: 787.9 | G113: 788 | H113: 781.75 | I113: 105373 | J113: 82600756.15 | K113: 2018-04-23 | L113: 4069 | M113: INE209A01019
A114: ATLANTA | B114: EQ | C114: 79.55 | D114: 80.75 | E114: 79 | F114: 79.4 | G114: 79.2 | H114: 80.15 | I114: 80860 | J114: 6453568.65 | K114: 2018-04-23 | L114: 858 | M114: INE285H01022
A115: ATUL | B115: EQ | C115: 2721.1 | D115: 2774.95 | E115: 2721.1 | F115: 2765.8 | G115: 2769 | H115: 2721.7 | I115: 1988 | J115: 5478779.6 | K115: 2018-04-23 | L115: 371 | M115: INE100A01010
A116: ATULAUTO | B116: EQ | C116: 435.5 | D116: 445 | E116: 435.5 | F116: 441.85 | G116: 440.25 | H116: 442.45 | I116: 9941 | J116: 4381341.5 | K116: 2018-04-23 | L116: 477 | M116: INE951D01028
A117: AUBANK | B117: EQ | C117: 655 | D117: 659.75 | E117: 650 | F117: 656.8 | G117: 655 | H117: 653.95 | I117: 63508 | J117: 41616632 | K117: 2018-04-23 | L117: 3705 | M117: INE949L01017
A118: AURIONPRO | B118: EQ | C118: 234.55 | D118: 249.5 | E118: 231.25 | F118: 241.05 | G118: 240.1 | H118: 237.9 | I118: 76516 | J118: 18608191.75 | K118: 2018-04-23 | L118: 1351 | M118: INE132H01018
A119: AUROPHARMA | B119: EQ | C119: 611.8 | D119: 645 | E119: 611.8 | F119: 642.55 | G119: 643.7 | H119: 618.6 | I119: 3138957 | J119: 1996308694 | K119: 2018-04-23 | L119: 59798 | M119: INE406A01037
A120: AUSOMENT | B120: EQ | C120: 101.65 | D120: 112.9 | E120: 98.05 | F120: 107.5 | G120: 108.5 | H120: 98.25 | I120: 787548 | J120: 83513251.4 | K120: 2018-04-23 | L120: 7940 | M120: INE218C01016
A121: AUTOAXLES | B121: EQ | C121: 1515.05 | D121: 1540 | E121: 1515.05 | F121: 1527.1 | G121: 1530.95 | H121: 1529.85 | I121: 17212 | J121: 26398045.5 | K121: 2018-04-23 | L121: 568 | M121: INE449A01011
A122: AUTOIND | B122: EQ | C122: 75.2 | D122: 77 | E122: 73.95 | F122: 75.35 | G122: 75.1 | H122: 76.95 | I122: 17768 | J122: 1339944.9 | K122: 2018-04-23 | L122: 351 | M122: INE718H01014
A123: AUTOLITIND | B123: EQ | C123: 76 | D123: 77.8 | E123: 75.1 | F123: 75.7 | G123: 75.4 | H123: 76.05 | I123: 21768 | J123: 1669339.15 | K123: 2018-04-23 | L123: 285 | M123: INE448A01013
A124: AVADHSUGAR | B124: EQ | C124: 385.7 | D124: 392 | E124: 380 | F124: 384 | G124: 382.1 | H124: 382.25 | I124: 39416 | J124: 15228151.7 | K124: 2018-04-23 | L124: 1903 | M124: INE349W01017
A125: AVANTIFEED | B125: EQ | C125: 2490 | D125: 2498 | E125: 2351.5 | F125: 2364.8 | G125: 2365 | H125: 2357.05 | I125: 411162 | J125: 996840547.4 | K125: 2018-04-23 | L125: 30895 | M125: INE871C01020
A126: AVTNPL | B126: EQ | C126: 39.75 | D126: 40.3 | E126: 39.55 | F126: 39.65 | G126: 39.75 | H126: 39.6 | I126: 64294 | J126: 2557417.85 | K126: 2018-04-23 | L126: 371 | M126: INE488D01021
A127: AXISBANK | B127: EQ | C127: 508.4 | D127: 511.2 | E127: 500 | F127: 506.2 | G127: 506.85 | H127: 505.7 | I127: 4766412 | J127: 2414025793 | K127: 2018-04-23 | L127: 64889 | M127: INE238A01034
A128: AXISCADES | B128: EQ | C128: 174 | D128: 180.9 | E128: 172.4 | F128: 173.85 | G128: 173.5 | H128: 175.4 | I128: 267239 | J128: 47511175 | K128: 2018-04-23 | L128: 4156 | M128: INE555B01013
A129: AXISGOLD | B129: EQ | C129: 2758.05 | D129: 2758.05 | E129: 2738 | F129: 2738.75 | G129: 2744 | H129: 2758.05 | I129: 194 | J129: 532930.6 | K129: 2018-04-23 | L129: 52 | M129: INF846K01347
A130: AXISNIFTY | B130: EQ | C130: 1064.68 | D130: 1065.29 | E130: 1064.68 | F130: 1065.29 | G130: 1065.29 | H130: 1066.47 | I130: 25 | J130: 26626.15 | K130: 2018-04-23 | L130: 2 | M130: INF846K01ZL0
A131: AYMSYNTEX | B131: EQ | C131: 64.05 | D131: 71 | E131: 62.95 | F131: 70.1 | G131: 70 | H131: 63.7 | I131: 108573 | J131: 7377343.3 | K131: 2018-04-23 | L131: 590 | M131: INE193B01039
A132: BAFNAPHARM | B132: EQ | C132: 28.9 | D132: 29.3 | E132: 28.1 | F132: 29.15 | G132: 29.25 | H132: 28.95 | I132: 8487 | J132: 245699.1 | K132: 2018-04-23 | L132: 101 | M132: INE878I01014
A133: BAGFILMS | B133: EQ | C133: 5.6 | D133: 5.7 | E133: 5.25 | F133: 5.55 | G133: 5.65 | H133: 5.35 | I133: 396778 | J133: 2181772.4 | K133: 2018-04-23 | L133: 479 | M133: INE116D01028
A134: BAJAJ-AUTO | B134: EQ | C134: 2852.8 | D134: 2880 | E134: 2820 | F134: 2852.15 | G134: 2852 | H134: 2852.7 | I134: 235602 | J134: 671324967.5 | K134: 2018-04-23 | L134: 18961 | M134: INE917I01010
A135: BAJAJCORP | B135: EQ | C135: 481 | D135: 496.75 | E135: 481 | F135: 491.9 | G135: 492.6 | H135: 488.3 | I135: 20726 | J135: 10213723.8 | K135: 2018-04-23 | L135: 1273 | M135: INE933K01021
A136: BAJAJELEC | B136: EQ | C136: 646.95 | D136: 694.8 | E136: 637.9 | F136: 682 | G136: 684.9 | H136: 643.65 | I136: 1389590 | J136: 935251290.9 | K136: 2018-04-23 | L136: 31989 | M136: INE193E01025
A137: BAJAJFINSV | B137: EQ | C137: 5298.85 | D137: 5348.85 | E137: 5256.65 | F137: 5294 | G137: 5291.2 | H137: 5286.35 | I137: 87805 | J137: 465722994.4 | K137: 2018-04-23 | L137: 13586 | M137: INE918I01018
A138: BAJAJHIND | B138: EQ | C138: 8.95 | D138: 9.15 | E138: 8.85 | F138: 8.95 | G138: 8.95 | H138: 8.9 | I138: 1734430 | J138: 15563458.05 | K138: 2018-04-23 | L138: 2591 | M138: INE306A01021
A139: BAJAJHLDNG | B139: EQ | C139: 2605.05 | D139: 2621.65 | E139: 2600 | F139: 2602.4 | G139: 2600.35 | H139: 2620.95 | I139: 6957 | J139: 18123439.4 | K139: 2018-04-23 | L139: 1400 | M139: INE118A01012
A140: BAJFINANCE | B140: EQ | C140: 1880 | D140: 1919.75 | E140: 1860.8 | F140: 1899.35 | G140: 1899 | H140: 1880.4 | I140: 762125 | J140: 1442053158 | K140: 2018-04-23 | L140: 48306 | M140: INE296A01024
A141: BALAJITELE | B141: EQ | C141: 134.95 | D141: 137.25 | E141: 132.2 | F141: 133.15 | G141: 133.35 | H141: 134.4 | I141: 181111 | J141: 24409459.75 | K141: 2018-04-23 | L141: 1404 | M141: INE794B01026
A142: BALAMINES | B142: EQ | C142: 676.95 | D142: 700 | E142: 665.6 | F142: 680.05 | G142: 680.65 | H142: 677.05 | I142: 23411 | J142: 15968813.6 | K142: 2018-04-23 | L142: 665 | M142: INE050E01027
A143: BALKRISHNA | B143: EQ | C143: 86.8 | D143: 86.8 | E143: 82.35 | F143: 84.6 | G143: 84.4 | H143: 84.25 | I143: 13787 | J143: 1179021.35 | K143: 2018-04-23 | L143: 120 | M143: INE875R01011
A144: BALKRISIND | B144: EQ | C144: 1300.7 | D144: 1303.75 | E144: 1278 | F144: 1281.7 | G144: 1280 | H144: 1298.8 | I144: 383275 | J144: 493244684.3 | K144: 2018-04-23 | L144: 14980 | M144: INE787D01026
A145: BALLARPUR | B145: EQ | C145: 13.5 | D145: 13.9 | E145: 13.3 | F145: 13.7 | G145: 13.75 | H145: 13.55 | I145: 809479 | J145: 11057610.4 | K145: 2018-04-23 | L145: 1900 | M145: INE294A01037
A146: BALMLAWRIE | B146: EQ | C146: 220 | D146: 222.5 | E146: 218.55 | F146: 219.15 | G146: 219.5 | H146: 219.95 | I146: 44608 | J146: 9820425.85 | K146: 2018-04-23 | L146: 1155 | M146: INE164A01016
A147: BALPHARMA | B147: EQ | C147: 84.2 | D147: 86.45 | E147: 81.7 | F147: 84.2 | G147: 84.05 | H147: 83.45 | I147: 14129 | J147: 1191796 | K147: 2018-04-23 | L147: 368 | M147: INE083D01012
A148: BALRAMCHIN | B148: EQ | C148: 68 | D148: 69.7 | E148: 67.25 | F148: 68.65 | G148: 68.9 | H148: 67.65 | I148: 8051648 | J148: 548841732.2 | K148: 2018-04-23 | L148: 22008 | M148: INE119A01028
A149: BANARBEADS | B149: EQ | C149: 58.4 | D149: 61.8 | E149: 58.3 | F149: 59.65 | G149: 59.35 | H149: 61.5 | I149: 1395 | J149: 83141.1 | K149: 2018-04-23 | L149: 25 | M149: INE655B01011
A150: BANARISUG | B150: EQ | C150: 1775.95 | D150: 1776 | E150: 1681.7 | F150: 1704.55 | G150: 1681.7 | H150: 1730.45 | I150: 1627 | J150: 2800903.4 | K150: 2018-04-23 | L150: 73 | M150: INE459A01010
A151: BANCOINDIA | B151: EQ | C151: 230.45 | D151: 238.9 | E151: 230.45 | F151: 234.4 | G151: 234 | H151: 235.5 | I151: 48440 | J151: 11310585.1 | K151: 2018-04-23 | L151: 1589 | M151: INE213C01025
A152: BANDHANBNK | B152: EQ | C152: 496 | D152: 504.3 | E152: 481.75 | F152: 498.35 | G152: 497.95 | H152: 495.05 | I152: 2474228 | J152: 1221379663 | K152: 2018-04-23 | L152: 111869 | M152: INE545U01014
A153: BANG | B153: EQ | C153: 35.6 | D153: 37 | E153: 34.3 | F153: 36.8 | G153: 36.9 | H153: 36.1 | I153: 11513 | J153: 410429.2 | K153: 2018-04-23 | L153: 114 | M153: INE863I01016
A154: BANKBARODA | B154: EQ | C154: 143.95 | D154: 145.8 | E154: 141.5 | F154: 144.15 | G154: 144.3 | H154: 143.6 | I154: 7841803 | J154: 1127639377 | K154: 2018-04-23 | L154: 33989 | M154: INE028A01039
A155: BANKBEES | B155: EQ | C155: 2535 | D155: 2544.05 | E155: 2511.18 | F155: 2528.54 | G155: 2527.85 | H155: 2534.5 | I155: 2660 | J155: 6734973.44 | K155: 2018-04-23 | L155: 125 | M155: INF732E01078
A156: BANKINDIA | B156: EQ | C156: 101.95 | D156: 104 | E156: 99.95 | F156: 102.5 | G156: 102 | H156: 102.35 | I156: 9095306 | J156: 931136019.1 | K156: 2018-04-23 | L156: 33006 | M156: INE084A01016
A157: BANSWRAS | B157: EQ | C157: 103.35 | D157: 105.95 | E157: 103.2 | F157: 104.05 | G157: 104 | H157: 103.4 | I157: 12215 | J157: 1271154.95 | K157: 2018-04-23 | L157: 71 | M157: INE629D01012
A158: BARTRONICS | B158: EQ | C158: 12.4 | D158: 12.45 | E158: 12.35 | F158: 12.45 | G158: 12.45 | H158: 11.35 | I158: 98742 | J158: 1226217 | K158: 2018-04-23 | L158: 172 | M158: INE855F01034
A159: BASF | B159: EQ | C159: 2088.6 | D159: 2143 | E159: 2053.45 | F159: 2067.55 | G159: 2058 | H159: 2084.6 | I159: 5386 | J159: 11278833.7 | K159: 2018-04-23 | L159: 1122 | M159: INE373A01013
A160: BASML | B160: EQ | C160: 235 | D160: 256.7 | E160: 235 | F160: 242.5 | G160: 243.05 | H160: 237.7 | I160: 3155 | J160: 771524.35 | K160: 2018-04-23 | L160: 90 | M160: INE186H01014
A161: BATAINDIA | B161: EQ | C161: 802 | D161: 802 | E161: 782.2 | F161: 785.95 | G161: 784.45 | H161: 801.9 | I161: 874732 | J161: 693372086.2 | K161: 2018-04-23 | L161: 28067 | M161: INE176A01028
A162: BAYERCROP | B162: EQ | C162: 4585 | D162: 4668.75 | E162: 4540.9 | F162: 4652.65 | G162: 4655 | H162: 4587.35 | I162: 5562 | J162: 25746605 | K162: 2018-04-23 | L162: 1301 | M162: INE462A01022
A163: BBL | B163: EQ | C163: 1634.6 | D163: 1668 | E163: 1633.2 | F163: 1641.8 | G163: 1641 | H163: 1632.65 | I163: 8278 | J163: 13652602.8 | K163: 2018-04-23 | L163: 696 | M163: INE464A01028
A164: BBTC | B164: EQ | C164: 1533 | D164: 1625 | E164: 1503.6 | F164: 1554.3 | G164: 1564 | H164: 1536.2 | I164: 908959 | J164: 1438191985 | K164: 2018-04-23 | L164: 26941 | M164: INE050A01025
A165: BDL | B165: EQ | C165: 415.8 | D165: 421 | E165: 406.5 | F165: 408.1 | G165: 407 | H165: 415.6 | I165: 151209 | J165: 62825740.35 | K165: 2018-04-23 | L165: 4513 | M165: INE171Z01018
A166: BEARDSELL | B166: EQ | C166: 54.25 | D166: 54.8 | E166: 54 | F166: 54.3 | G166: 54 | H166: 53.3 | I166: 458 | J166: 24873.8 | K166: 2018-04-23 | L166: 15 | M166: INE520H01022
A167: BEDMUTHA | B167: EQ | C167: 23.25 | D167: 27.65 | E167: 23 | F167: 26.7 | G167: 26.65 | H167: 25.15 | I167: 367317 | J167: 9708013.3 | K167: 2018-04-23 | L167: 2553 | M167: INE844K01012
A168: BEL | B168: EQ | C168: 132.45 | D168: 138.9 | E168: 132.45 | F168: 137.25 | G168: 137.2 | H168: 132.3 | I168: 8725397 | J168: 1192242717 | K168: 2018-04-23 | L168: 64131 | M168: INE263A01024
A169: BEML | B169: EQ | C169: 1090.1 | D169: 1092 | E169: 1061.45 | F169: 1067.7 | G169: 1065 | H169: 1091.95 | I169: 304820 | J169: 326963815.4 | K169: 2018-04-23 | L169: 8761 | M169: INE258A01016
A170: BEPL | B170: EQ | C170: 213 | D170: 214.5 | E170: 207.75 | F170: 208.6 | G170: 208.25 | H170: 211.9 | I170: 648425 | J170: 136744139.3 | K170: 2018-04-23 | L170: 9067 | M170: INE922A01025
A171: BERGEPAINT | B171: EQ | C171: 268 | D171: 270 | E171: 265.55 | F171: 267.95 | G171: 268.35 | H171: 268.6 | I171: 227450 | J171: 60985813.05 | K171: 2018-04-23 | L171: 3070 | M171: INE463A01038
A172: BFINVEST | B172: EQ | C172: 305.1 | D172: 311 | E172: 300.5 | F172: 302.3 | G172: 303.1 | H172: 305.45 | I172: 73220 | J172: 22394229.75 | K172: 2018-04-23 | L172: 2020 | M172: INE878K01010
A173: BFUTILITIE | B173: EQ | C173: 410.1 | D173: 421.7 | E173: 407.4 | F173: 409.3 | G173: 409.4 | H173: 411.05 | I173: 449308 | J173: 185808952.2 | K173: 2018-04-23 | L173: 9223 | M173: INE243D01012
A174: BGRENERGY | B174: EQ | C174: 111.75 | D174: 113 | E174: 109.3 | F174: 109.85 | G174: 109.7 | H174: 112.35 | I174: 54382 | J174: 6019654.8 | K174: 2018-04-23 | L174: 1015 | M174: INE661I01014
A175: BHAGERIA | B175: EQ | C175: 325 | D175: 329.25 | E175: 316.4 | F175: 327.4 | G175: 328 | H175: 319.65 | I175: 32113 | J175: 10410741.2 | K175: 2018-04-23 | L175: 966 | M175: INE354C01027
A176: BHAGYANGR | B176: EQ | C176: 50.55 | D176: 52.2 | E176: 47.45 | F176: 49.9 | G176: 49.75 | H176: 50.5 | I176: 254104 | J176: 12803813.9 | K176: 2018-04-23 | L176: 2228 | M176: INE458B01036
A177: BHAGYAPROP | B177: EQ | C177: 24.9 | D177: 26.75 | E177: 23.6 | F177: 26.1 | G177: 26.35 | H177: 25.45 | I177: 95562 | J177: 2481908.5 | K177: 2018-04-23 | L177: 103 | M177: INE363W01018
A178: BHANDARI | B178: EQ | C178: 3.25 | D178: 3.4 | E178: 3.2 | F178: 3.35 | G178: 3.4 | H178: 3.3 | I178: 153207 | J178: 508044.45 | K178: 2018-04-23 | L178: 149 | M178: INE474E01029
A179: BHARATFIN | B179: EQ | C179: 1119 | D179: 1166 | E179: 1115 | F179: 1159.55 | G179: 1163 | H179: 1116.8 | I179: 1813562 | J179: 2082688492 | K179: 2018-04-23 | L179: 44174 | M179: INE180K01011
A180: BHARATFORG | B180: EQ | C180: 764.45 | D180: 765 | E180: 755.75 | F180: 759.9 | G180: 760 | H180: 762.95 | I180: 549829 | J180: 418048009.4 | K180: 2018-04-23 | L180: 12852 | M180: INE465A01025
A181: BHARATGEAR | B181: EQ | C181: 185.9 | D181: 187.35 | E181: 184 | F181: 185.55 | G181: 184.5 | H181: 182.9 | I181: 15083 | J181: 2804785.3 | K181: 2018-04-23 | L181: 401 | M181: INE561C01019
A182: BHARATRAS | B182: EQ | C182: 5538.7 | D182: 5540 | E182: 5229 | F182: 5425.4 | G182: 5477 | H182: 5547.7 | I182: 4287 | J182: 23047601.15 | K182: 2018-04-23 | L182: 1054 | M182: INE838B01013
A183: BHARATWIRE | B183: EQ | C183: 118.7 | D183: 122 | E183: 116.55 | F183: 118.7 | G183: 119.9 | H183: 118.45 | I183: 32600 | J183: 3894801.3 | K183: 2018-04-23 | L183: 468 | M183: INE316L01019
A184: BHARTIARTL | B184: EQ | C184: 401.5 | D184: 406.5 | E184: 396.85 | F184: 402.85 | G184: 404.3 | H184: 402 | I184: 3780866 | J184: 1525130499 | K184: 2018-04-23 | L184: 43038 | M184: INE397D01024
A185: BHEL | B185: EQ | C185: 89.65 | D185: 90.45 | E185: 89.05 | F185: 89.3 | G185: 89.2 | H185: 89.35 | I185: 3518684 | J185: 315614781.2 | K185: 2018-04-23 | L185: 12908 | M185: INE257A01026
A186: BHUSANSTL | B186: EQ | C186: 35 | D186: 35.85 | E186: 32.5 | F186: 32.65 | G186: 32.65 | H186: 36.05 | I186: 6652228 | J186: 222437435.3 | K186: 2018-04-23 | L186: 23558 | M186: INE824B01021
A187: BIGBLOC | B187: EQ | C187: 181 | D187: 182.8 | E187: 176 | F187: 177.7 | G187: 177.6 | H187: 179.05 | I187: 66704 | J187: 11935383.65 | K187: 2018-04-23 | L187: 838 | M187: INE412U01017
A188: BIL | B188: EQ | C188: 406 | D188: 412.7 | E188: 402.65 | F188: 403.7 | G188: 402.95 | H188: 406.65 | I188: 2750 | J188: 1115003.05 | K188: 2018-04-23 | L188: 125 | M188: INE828A01016
A189: BILENERGY | B189: EQ | C189: 0.6 | D189: 0.7 | E189: 0.6 | F189: 0.65 | G189: 0.65 | H189: 0.65 | I189: 188415 | J189: 121008.4 | K189: 2018-04-23 | L189: 148 | M189: INE607L01029
A190: BINANIIND | B190: EQ | C190: 95.9 | D190: 96.75 | E190: 94.05 | F190: 95.3 | G190: 95.6 | H190: 95.9 | I190: 66435 | J190: 6354333.4 | K190: 2018-04-23 | L190: 750 | M190: INE071A01013
A191: BINDALAGRO | B191: EQ | C191: 29.7 | D191: 30.1 | E191: 28.5 | F191: 29.4 | G191: 29.4 | H191: 29.1 | I191: 45383 | J191: 1330046.05 | K191: 2018-04-23 | L191: 472 | M191: INE143A01010
A192: BIOCON | B192: EQ | C192: 636 | D192: 640.55 | E192: 627 | F192: 636 | G192: 637.85 | H192: 637.55 | I192: 1530050 | J192: 969024382.6 | K192: 2018-04-23 | L192: 23648 | M192: INE376G01013
A193: BIRLACABLE | B193: EQ | C193: 94 | D193: 98.95 | E193: 93.15 | F193: 93.8 | G193: 94.15 | H193: 92.35 | I193: 131669 | J193: 12606595.3 | K193: 2018-04-23 | L193: 1486 | M193: INE800A01015
A194: BIRLACORPN | B194: EQ | C194: 745 | D194: 745.05 | E194: 737.65 | F194: 743.05 | G194: 743 | H194: 743.35 | I194: 26704 | J194: 19837767.3 | K194: 2018-04-23 | L194: 1399 | M194: INE340A01012
A195: BKMINDST | B195: EQ | C195: 30.4 | D195: 31.05 | E195: 29.5 | F195: 30.2 | G195: 30.55 | H195: 30.3 | I195: 23333 | J195: 712080.05 | K195: 2018-04-23 | L195: 126 | M195: INE831Q01016
A196: BLBLIMITED | B196: EQ | C196: 8.5 | D196: 8.5 | E196: 8.1 | F196: 8.1 | G196: 8.1 | H196: 8.5 | I196: 6063 | J196: 49455.2 | K196: 2018-04-23 | L196: 27 | M196: INE791A01024
A197: BLISSGVS | B197: EQ | C197: 202 | D197: 206.45 | E197: 200.5 | F197: 204.25 | G197: 203.8 | H197: 200.25 | I197: 248502 | J197: 50754799.25 | K197: 2018-04-23 | L197: 3347 | M197: INE416D01022
A198: BLKASHYAP | B198: EQ | C198: 46.9 | D198: 47.45 | E198: 46.15 | F198: 46.7 | G198: 46.9 | H198: 47.1 | I198: 108294 | J198: 5057853.25 | K198: 2018-04-23 | L198: 784 | M198: INE350H01032
A199: BLS | B199: EQ | C199: 155.8 | D199: 164.4 | E199: 154.35 | F199: 159.85 | G199: 161 | H199: 154.85 | I199: 379931 | J199: 60944329.85 | K199: 2018-04-23 | L199: 4891 | M199: INE153T01027
A200: BLUEBLENDS | B200: EQ | C200: 20.7 | D200: 20.7 | E200: 19 | F200: 19.25 | G200: 19.1 | H200: 19.55 | I200: 17747 | J200: 338395.85 | K200: 2018-04-23 | L200: 64 | M200: INE113O01014
... 1304 more rows

Sheet Sheet1
